Department ,Entity,Date of Payment,Expense Type,Expense Area,Supplier,Transaction Number,Amount
United Kingdom Atomic Energy Authority,United Kingdom Atomic Energy Authority,20/05/2015,PLANT SPARES,FUSION,A D INSTALLATION LTD,5100321928,"-1,300.00"
United Kingdom Atomic Energy Authority,United Kingdom Atomic Energy Authority,11/05/2015,PLANT SPARES,FUSION,A D INSTALLATION LTD,5100320679,650.00
United Kingdom Atomic Energy Authority,United Kingdom Atomic Energy Authority,20/05/2015,PLANT SPARES,FUSION,A D INSTALLATION LTD,5100321769,"1,300.00"
United Kingdom Atomic Energy Authority,United Kingdom Atomic Energy Authority,29/04/2015,PLANT SPARES,FUSION,A D INSTALLATION LTD,5100320680,"2,360.00"
United Kingdom Atomic Energy Authority,United Kingdom Atomic Energy Authority,11/05/2015,PLANT SPARES,FUSION,A W CLARKE,5100321342,28.40
United Kingdom Atomic Energy Authority,United Kingdom Atomic Energy Authority,11/05/2015,PLANT SPARES,FUSION,A W CLARKE,5100321309,156.00
United Kingdom Atomic Energy Authority,United Kingdom Atomic Energy Authority,11/05/2015,PLANT SPARES,FUSION,A W CLARKE,5100321443,"2,012.50"
United Kingdom Atomic Energy Authority,United Kingdom Atomic Energy Authority,18/05/2015,PLANT & EQUIPMENT,FUSION,AALCO LIMITED,5100321577,"1,465.89"
United Kingdom Atomic Energy Authority,United Kingdom Atomic Energy Authority,06/05/2015,SOFTWARE,FUSION,ABB LTD,5100321065,"3,788.00"
United Kingdom Atomic Energy Authority,United Kingdom Atomic Energy Authority,20/05/2015,SOFTWARE,FUSION,ABB LTD,5100321064,"9,350.80"
United Kingdom Atomic Energy Authority,United Kingdom Atomic Energy Authority,06/05/2015,MATERIALS & SPARES,FUSION,ACAL TECHNOLOGY LTD,5100319876,"3,230.00"
United Kingdom Atomic Energy Authority,United Kingdom Atomic Energy Authority,27/04/2015,IT EQUIPMENT NON CAPITAL,FUSION,ACME TECHNOLOGY,5100320743,732.50
United Kingdom Atomic Energy Authority,United Kingdom Atomic Energy Authority,06/05/2015,MATERIALS & SPARES,FUSION,ACRONA ENGINEERING LTD,5100321020,555.36
United Kingdom Atomic Energy Authority,United Kingdom Atomic Energy Authority,06/05/2015,MATERIALS & SPARES,FUSION,ALLECTRA LTD,5100320872,"2,762.00"
United Kingdom Atomic Energy Authority,United Kingdom Atomic Energy Authority,20/05/2015,CONSUMABLES,FUSION,ALLEGHENY TECHNOLOGIES LTD,5100321663,130.00
United Kingdom Atomic Energy Authority,United Kingdom Atomic Energy Authority,06/05/2015,MATERIALS & SPARES,FUSION,ALPHA ENGINEERING SUPPLIES,5100320844,108.80
United Kingdom Atomic Energy Authority,United Kingdom Atomic Energy Authority,06/05/2015,MATERIALS & SPARES,FUSION,ALPHA ENGINEERING SUPPLIES,5100320498,169.11
United Kingdom Atomic Energy Authority,United Kingdom Atomic Energy Authority,29/04/2015,MATERIALS & SPARES,FUSION,ALPHA ENGINEERING SUPPLIES,5100320658,272.00
United Kingdom Atomic Energy Authority,United Kingdom Atomic Energy Authority,18/05/2015,PLANT & EQUIPMENT,FUSION,ALPHA LABORATORIES,5100321667,500.00
United Kingdom Atomic Energy Authority,United Kingdom Atomic Energy Authority,18/05/2015,MATERIALS & SPARES,FUSION,ALPHA PACKAGING,5100321550,95.30
United Kingdom Atomic Energy Authority,United Kingdom Atomic Energy Authority,29/04/2015,MATERIALS & SPARES,FUSION,ALPHA PACKAGING,5100320778,399.00
United Kingdom Atomic Energy Authority,United Kingdom Atomic Energy Authority,06/05/2015,MATERIALS & SPARES,FUSION,ALPHA PACKAGING,5100321072,803.00
United Kingdom Atomic Energy Authority,United Kingdom Atomic Energy Authority,11/05/2015,MATERIALS & SPARES,FUSION,ALR SERVICES,5100321187,162.10
United Kingdom Atomic Energy Authority,United Kingdom Atomic Energy Authority,27/04/2015,PROFESSIONAL SERVICES,FUSION,AMEC NUCLEAR UK LIMITED,5100320749,"3,690.00"
United Kingdom Atomic Energy Authority,United Kingdom Atomic Energy Authority,18/05/2015,MATERIALS & SPARES,FUSION,ANIXTER (UK) LTD,5100321060,66.75
United Kingdom Atomic Energy Authority,United Kingdom Atomic Energy Authority,18/05/2015,MATERIALS & SPARES,FUSION,ANIXTER (UK) LTD,5100321008,215.00
United Kingdom Atomic Energy Authority,United Kingdom Atomic Energy Authority,27/04/2015,MATERIALS & SPARES,FUSION,ANIXTER (UK) LTD,5100320615,283.00
United Kingdom Atomic Energy Authority,United Kingdom Atomic Energy Authority,11/05/2015,MATERIALS & SPARES,FUSION,ANIXTER (UK) LTD,5100321189,325.00
United Kingdom Atomic Energy Authority,United Kingdom Atomic Energy Authority,18/05/2015,MATERIALS & SPARES,FUSION,ANIXTER (UK) LTD,5100321772,757.40
United Kingdom Atomic Energy Authority,United Kingdom Atomic Energy Authority,06/05/2015,MATERIALS & SPARES,FUSION,ANIXTER (UK) LTD,5100320604,"1,860.00"
United Kingdom Atomic Energy Authority,United Kingdom Atomic Energy Authority,18/05/2015,MATERIALS & SPARES,FUSION,ANIXTER (UK) LTD,5100321695,"3,150.00"
United Kingdom Atomic Energy Authority,United Kingdom Atomic Energy Authority,18/05/2015,MATERIALS & SPARES,FUSION,ANIXTER (UK) LTD,5100321190,"33,500.00"
United Kingdom Atomic Energy Authority,United Kingdom Atomic Energy Authority,11/05/2015,PROFESSIONAL SERVICES,SUPPORT SERVICES,AON HEWITT LTD,5100321456,"150,082.66"
United Kingdom Atomic Energy Authority,United Kingdom Atomic Energy Authority,27/04/2015,SOFTWARE,FUSION,APPLIED CAE,5100320563,"8,740.00"
United Kingdom Atomic Energy Authority,United Kingdom Atomic Energy Authority,18/05/2015,PLANT SPARES,FUSION,Aquila Nuclear Engineering Ltd,5100321660,"32,241.95"
United Kingdom Atomic Energy Authority,United Kingdom Atomic Energy Authority,27/04/2015,PERSONAL PROTECTIVE EQUIPMENT,FUSION,ARCO LTD,5100320804,5.58
United Kingdom Atomic Energy Authority,United Kingdom Atomic Energy Authority,27/04/2015,PERSONAL PROTECTIVE EQUIPMENT,FUSION,ARCO LTD,5100320710,7.04
United Kingdom Atomic Energy Authority,United Kingdom Atomic Energy Authority,06/05/2015,PERSONAL PROTECTIVE EQUIPMENT,FUSION,ARCO LTD,5100320865,14.42
United Kingdom Atomic Energy Authority,United Kingdom Atomic Energy Authority,27/04/2015,PERSONAL PROTECTIVE EQUIPMENT,FUSION,ARCO LTD,5100320717,16.90
United Kingdom Atomic Energy Authority,United Kingdom Atomic Energy Authority,20/05/2015,PERSONAL PROTECTIVE EQUIPMENT,FUSION,ARCO LTD,5100320864,19.70
United Kingdom Atomic Energy Authority,United Kingdom Atomic Energy Authority,27/04/2015,PERSONAL PROTECTIVE EQUIPMENT,FUSION,ARCO LTD,5100320625,24.34
United Kingdom Atomic Energy Authority,United Kingdom Atomic Energy Authority,27/04/2015,PERSONAL PROTECTIVE EQUIPMENT,FUSION,ARCO LTD,5100320725,33.96
United Kingdom Atomic Energy Authority,United Kingdom Atomic Energy Authority,18/05/2015,PERSONAL PROTECTIVE EQUIPMENT,SUPPORT SERVICES,ARCO LTD,5100321654,38.78
United Kingdom Atomic Energy Authority,United Kingdom Atomic Energy Authority,29/04/2015,PERSONAL PROTECTIVE EQUIPMENT,FUSION,ARCO LTD,5100320817,53.04
United Kingdom Atomic Energy Authority,United Kingdom Atomic Energy Authority,18/05/2015,PERSONAL PROTECTIVE EQUIPMENT,FUSION,ARCO LTD,5100321497,55.19
United Kingdom Atomic Energy Authority,United Kingdom Atomic Energy Authority,18/05/2015,PERSONAL PROTECTIVE EQUIPMENT,FUSION,ARCO LTD,5100321486,59.10
United Kingdom Atomic Energy Authority,United Kingdom Atomic Energy Authority,18/05/2015,PERSONAL PROTECTIVE EQUIPMENT,FUSION,ARCO LTD,5100321512,67.88
United Kingdom Atomic Energy Authority,United Kingdom Atomic Energy Authority,18/05/2015,PERSONAL PROTECTIVE EQUIPMENT,SUPPORT SERVICES,ARCO LTD,5100321510,68.22
United Kingdom Atomic Energy Authority,United Kingdom Atomic Energy Authority,06/05/2015,PERSONAL PROTECTIVE EQUIPMENT,FUSION,ARCO LTD,5100320849,74.99
United Kingdom Atomic Energy Authority,United Kingdom Atomic Energy Authority,18/05/2015,PERSONAL PROTECTIVE EQUIPMENT,FUSION,ARCO LTD,5100321659,83.96
United Kingdom Atomic Energy Authority,United Kingdom Atomic Energy Authority,27/04/2015,PERSONAL PROTECTIVE EQUIPMENT,FUSION,ARCO LTD,5100320713,92.50
United Kingdom Atomic Energy Authority,United Kingdom Atomic Energy Authority,29/04/2015,PERSONAL PROTECTIVE EQUIPMENT,FUSION,ARCO LTD,5100320815,107.28
United Kingdom Atomic Energy Authority,United Kingdom Atomic Energy Authority,27/04/2015,PERSONAL PROTECTIVE EQUIPMENT,FUSION,ARCO LTD,5100320727,113.03
United Kingdom Atomic Energy Authority,United Kingdom Atomic Energy Authority,06/05/2015,PERSONAL PROTECTIVE EQUIPMENT,FUSION,ARCO LTD,5100320855,130.09
United Kingdom Atomic Energy Authority,United Kingdom Atomic Energy Authority,27/04/2015,PERSONAL PROTECTIVE EQUIPMENT,FUSION,ARCO LTD,5100320726,132.60
United Kingdom Atomic Energy Authority,United Kingdom Atomic Energy Authority,27/04/2015,PERSONAL PROTECTIVE EQUIPMENT,FUSION,ARCO LTD,5100320719,140.40
United Kingdom Atomic Energy Authority,United Kingdom Atomic Energy Authority,29/04/2015,PERSONAL PROTECTIVE EQUIPMENT,FUSION,ARCO LTD,5100320814,153.00
United Kingdom Atomic Energy Authority,United Kingdom Atomic Energy Authority,18/05/2015,PERSONAL PROTECTIVE EQUIPMENT,SUPPORT SERVICES,ARCO LTD,5100321508,167.69
United Kingdom Atomic Energy Authority,United Kingdom Atomic Energy Authority,06/05/2015,PERSONAL PROTECTIVE EQUIPMENT,FUSION,ARCO LTD,5100320854,214.50
United Kingdom Atomic Energy Authority,United Kingdom Atomic Energy Authority,27/04/2015,PERSONAL PROTECTIVE EQUIPMENT,FUSION,ARCO LTD,5100320728,214.56
United Kingdom Atomic Energy Authority,United Kingdom Atomic Energy Authority,11/05/2015,PERSONAL PROTECTIVE EQUIPMENT,FUSION,ARCO LTD,5100321192,218.68
United Kingdom Atomic Energy Authority,United Kingdom Atomic Energy Authority,27/04/2015,PERSONAL PROTECTIVE EQUIPMENT,FUSION,ARCO LTD,5100320711,227.50
United Kingdom Atomic Energy Authority,United Kingdom Atomic Energy Authority,18/05/2015,PERSONAL PROTECTIVE EQUIPMENT,FUSION,ARCO LTD,5100321498,232.44
United Kingdom Atomic Energy Authority,United Kingdom Atomic Energy Authority,29/04/2015,PERSONAL PROTECTIVE EQUIPMENT,FUSION,ARCO LTD,5100320802,274.76
United Kingdom Atomic Energy Authority,United Kingdom Atomic Energy Authority,29/04/2015,PERSONAL PROTECTIVE EQUIPMENT,FUSION,ARCO LTD,5100320812,314.50
United Kingdom Atomic Energy Authority,United Kingdom Atomic Energy Authority,29/04/2015,PERSONAL PROTECTIVE EQUIPMENT,FUSION,ARCO LTD,5100320811,315.58
United Kingdom Atomic Energy Authority,United Kingdom Atomic Energy Authority,11/05/2015,PERSONAL PROTECTIVE EQUIPMENT,FUSION,ARCO LTD,5100321191,388.00
United Kingdom Atomic Energy Authority,United Kingdom Atomic Energy Authority,18/05/2015,PERSONAL PROTECTIVE EQUIPMENT,FUSION,ARCO LTD,5100321396,398.80
United Kingdom Atomic Energy Authority,United Kingdom Atomic Energy Authority,06/05/2015,PERSONAL PROTECTIVE EQUIPMENT,SUPPORT SERVICES,ARCO LTD,5100320862,484.54
United Kingdom Atomic Energy Authority,United Kingdom Atomic Energy Authority,27/04/2015,PERSONAL PROTECTIVE EQUIPMENT,FUSION,ARCO LTD,5100320712,484.75
United Kingdom Atomic Energy Authority,United Kingdom Atomic Energy Authority,18/05/2015,PERSONAL PROTECTIVE EQUIPMENT,FUSION,ARCO LTD,5100321485,548.64
United Kingdom Atomic Energy Authority,United Kingdom Atomic Energy Authority,18/05/2015,PERSONAL PROTECTIVE EQUIPMENT,FUSION,ARCO LTD,5100321500,590.04
United Kingdom Atomic Energy Authority,United Kingdom Atomic Energy Authority,20/05/2015,PERSONAL PROTECTIVE EQUIPMENT,FUSION,ARCO LTD,5100321887,613.45
United Kingdom Atomic Energy Authority,United Kingdom Atomic Energy Authority,06/05/2015,PERSONAL PROTECTIVE EQUIPMENT,FUSION,ARCO LTD,5100320852,636.48
United Kingdom Atomic Energy Authority,United Kingdom Atomic Energy Authority,27/04/2015,PERSONAL PROTECTIVE EQUIPMENT,FUSION,ARCO LTD,5100320626,736.20
United Kingdom Atomic Energy Authority,United Kingdom Atomic Energy Authority,29/04/2015,PERSONAL PROTECTIVE EQUIPMENT,FUSION,ARCO LTD,5100320810,889.96
United Kingdom Atomic Energy Authority,United Kingdom Atomic Energy Authority,06/05/2015,PERSONAL PROTECTIVE EQUIPMENT,FUSION,ARCO LTD,5100320851,"1,678.76"
United Kingdom Atomic Energy Authority,United Kingdom Atomic Energy Authority,29/04/2015,PERSONAL PROTECTIVE EQUIPMENT,FUSION,ARCO LTD,5100320808,"1,755.00"
United Kingdom Atomic Energy Authority,United Kingdom Atomic Energy Authority,18/05/2015,PERSONAL PROTECTIVE EQUIPMENT,FUSION,ARCO LTD,5100321397,"1,905.00"
United Kingdom Atomic Energy Authority,United Kingdom Atomic Energy Authority,06/05/2015,STATIONERY,FUSION,ARTISAN LITHO PRINT  DESIGN,5100320922,30.00
United Kingdom Atomic Energy Authority,United Kingdom Atomic Energy Authority,06/05/2015,STATIONERY,FUSION,ARTISAN LITHO PRINT  DESIGN,5100320921,398.00
United Kingdom Atomic Energy Authority,United Kingdom Atomic Energy Authority,13/05/2015,PLANT & EQUIPMENT,FUSION,ARVAL UK LIMITED,5100321393,239.11
United Kingdom Atomic Energy Authority,United Kingdom Atomic Energy Authority,27/04/2015,IT EQUIPMENT NON CAPITAL,FUSION,ASHLYN COMPUTER SERVICES LTD,5100320608,450.00
United Kingdom Atomic Energy Authority,United Kingdom Atomic Energy Authority,20/05/2015,MATERIALS & SPARES,FUSION,ASO GLASBLOWING LTD,5100321885,"1,402.48"
United Kingdom Atomic Energy Authority,United Kingdom Atomic Energy Authority,27/04/2015,PLANT SPARES,FUSION,AURIGA EUROPE PLC,5100320777,95.00
United Kingdom Atomic Energy Authority,United Kingdom Atomic Energy Authority,06/05/2015,PLANT SPARES,FUSION,AURIGA EUROPE PLC,5100320847,"1,801.52"
United Kingdom Atomic Energy Authority,United Kingdom Atomic Energy Authority,06/05/2015,PLANT SPARES,FUSION,AURIGA EUROPE PLC,5100321070,"2,936.99"
United Kingdom Atomic Energy Authority,United Kingdom Atomic Energy Authority,06/05/2015,CATERING,PROPERTY,AVENANCE PLC,5100320906,454.72
United Kingdom Atomic Energy Authority,United Kingdom Atomic Energy Authority,06/05/2015,CATERING,FUSION,AVENANCE PLC,5100320907,484.18
United Kingdom Atomic Energy Authority,United Kingdom Atomic Energy Authority,06/05/2015,CATERING,PROPERTY,AVENANCE PLC,5100320904,"2,231.08"
United Kingdom Atomic Energy Authority,United Kingdom Atomic Energy Authority,06/05/2015,CATERING,PROPERTY,AVENANCE PLC,5100320905,"2,935.00"
United Kingdom Atomic Energy Authority,United Kingdom Atomic Energy Authority,27/04/2015,PRINTING & GRAPHICS,FUSION,AWARDFRAMERS INTERNATIONAL,5100320692,330.25
United Kingdom Atomic Energy Authority,United Kingdom Atomic Energy Authority,11/05/2015,MATERIALS & SPARES,FUSION,B&M Engineering Ltd,5100321224,43.84
United Kingdom Atomic Energy Authority,United Kingdom Atomic Energy Authority,11/05/2015,MATERIALS & SPARES,FUSION,B&M Engineering Ltd,5100321226,105.00
United Kingdom Atomic Energy Authority,United Kingdom Atomic Energy Authority,11/05/2015,MATERIALS & SPARES,FUSION,B&M Engineering Ltd,5100321221,155.00
United Kingdom Atomic Energy Authority,United Kingdom Atomic Energy Authority,11/05/2015,MATERIALS & SPARES,FUSION,B&M Engineering Ltd,5100321223,270.00
United Kingdom Atomic Energy Authority,United Kingdom Atomic Energy Authority,11/05/2015,MATERIALS & SPARES,FUSION,B&M Engineering Ltd,5100321225,880.00
United Kingdom Atomic Energy Authority,United Kingdom Atomic Energy Authority,11/05/2015,MATERIALS & SPARES,FUSION,B&M Engineering Ltd,5100321227,"2,160.00"
United Kingdom Atomic Energy Authority,United Kingdom Atomic Energy Authority,27/04/2015,PLANT SPARES,FUSION,BATT CABLES PLC,5100320695,196.23
United Kingdom Atomic Energy Authority,United Kingdom Atomic Energy Authority,20/05/2015,PLANT SPARES,FUSION,Beacon Group International Ltd,5100321708,123.00
United Kingdom Atomic Energy Authority,United Kingdom Atomic Energy Authority,11/05/2015,REPAIRS & MAINTENANCE,FUSION,BEAVER 84 LIMITED,5100321176,12.46
United Kingdom Atomic Energy Authority,United Kingdom Atomic Energy Authority,11/05/2015,REPAIRS & MAINTENANCE,FUSION,BEAVER 84 LIMITED,5100321175,31.33
United Kingdom Atomic Energy Authority,United Kingdom Atomic Energy Authority,11/05/2015,REPAIRS & MAINTENANCE,FUSION,BEAVER 84 LIMITED,5100321177,96.80
United Kingdom Atomic Energy Authority,United Kingdom Atomic Energy Authority,11/05/2015,REPAIRS & MAINTENANCE,FUSION,BEAVER 84 LIMITED,5100321174,166.64
United Kingdom Atomic Energy Authority,United Kingdom Atomic Energy Authority,11/05/2015,REPAIRS & MAINTENANCE,FUSION,BEAVER 84 LIMITED,5100321180,188.50
United Kingdom Atomic Energy Authority,United Kingdom Atomic Energy Authority,11/05/2015,REPAIRS & MAINTENANCE,FUSION,BEAVER 84 LIMITED,5100321172,345.80
United Kingdom Atomic Energy Authority,United Kingdom Atomic Energy Authority,11/05/2015,REPAIRS & MAINTENANCE,FUSION,BEAVER 84 LIMITED,5100321182,580.12
United Kingdom Atomic Energy Authority,United Kingdom Atomic Energy Authority,27/04/2015,PLANT SPARES,FUSION,BECKHOFF AUTOMATION LTD,5100320664,466.00
United Kingdom Atomic Energy Authority,United Kingdom Atomic Energy Authority,18/05/2015,MATERIALS & SPARES,FUSION,BELMOUNT FABRICATIONS,5100321208,"6,170.00"
United Kingdom Atomic Energy Authority,United Kingdom Atomic Energy Authority,20/05/2015,HIRED STAFF,FUSION,BLACK DIAMOND UMBRELLA LTD,5100321847,601.82
United Kingdom Atomic Energy Authority,United Kingdom Atomic Energy Authority,20/05/2015,HIRED STAFF,FUSION,BLACK DIAMOND UMBRELLA LTD,5100321848,681.30
United Kingdom Atomic Energy Authority,United Kingdom Atomic Energy Authority,20/05/2015,HIRED STAFF,FUSION,BLACK DIAMOND UMBRELLA LTD,5100321843,837.64
United Kingdom Atomic Energy Authority,United Kingdom Atomic Energy Authority,20/05/2015,HIRED STAFF,FUSION,BLACK DIAMOND UMBRELLA LTD,5100321858,851.63
United Kingdom Atomic Energy Authority,United Kingdom Atomic Energy Authority,20/05/2015,HIRED STAFF,FUSION,BLACK DIAMOND UMBRELLA LTD,5100321859,851.63
United Kingdom Atomic Energy Authority,United Kingdom Atomic Energy Authority,20/05/2015,HIRED STAFF,FUSION,BLACK DIAMOND UMBRELLA LTD,5100321844,957.30
United Kingdom Atomic Energy Authority,United Kingdom Atomic Energy Authority,20/05/2015,HIRED STAFF,FUSION,BLACK DIAMOND UMBRELLA LTD,5100321845,"1,196.63"
United Kingdom Atomic Energy Authority,United Kingdom Atomic Energy Authority,20/05/2015,HIRED STAFF,FUSION,BLACK DIAMOND UMBRELLA LTD,5100321846,"1,196.63"
United Kingdom Atomic Energy Authority,United Kingdom Atomic Energy Authority,20/05/2015,HIRED STAFF,FUSION,BLACK DIAMOND UMBRELLA LTD,5100321861,"4,060.90"
United Kingdom Atomic Energy Authority,United Kingdom Atomic Energy Authority,20/05/2015,HIRED STAFF,FUSION,BLACK DIAMOND UMBRELLA LTD,5100321862,"4,623.82"
United Kingdom Atomic Energy Authority,United Kingdom Atomic Energy Authority,18/05/2015,LAUNDRY,FUSION,BLUEBELL LAUNDRY,5100321590,178.05
United Kingdom Atomic Energy Authority,United Kingdom Atomic Energy Authority,29/04/2015,PROFESSIONAL SERVICES,FUSION,BNS NUCLEAR SERVICES,5100320835,-404.86
United Kingdom Atomic Energy Authority,United Kingdom Atomic Energy Authority,29/04/2015,PROFESSIONAL SERVICES,FUSION,BNS NUCLEAR SERVICES,5100320531,"9,851.48"
United Kingdom Atomic Energy Authority,United Kingdom Atomic Energy Authority,29/04/2015,PROFESSIONAL SERVICES,FUSION,BNS NUCLEAR SERVICES,5100320715,"30,652.69"
United Kingdom Atomic Energy Authority,United Kingdom Atomic Energy Authority,29/04/2015,PROFESSIONAL SERVICES,FUSION,BNS NUCLEAR SERVICES,5100320538,"31,275.25"
United Kingdom Atomic Energy Authority,United Kingdom Atomic Energy Authority,29/04/2015,PROFESSIONAL SERVICES,FUSION,BNS NUCLEAR SERVICES,5100320767,"41,668.30"
United Kingdom Atomic Energy Authority,United Kingdom Atomic Energy Authority,11/05/2015,PROFESSIONAL SERVICES,FUSION,BNS NUCLEAR SERVICES,5100321112,"42,105.57"
United Kingdom Atomic Energy Authority,United Kingdom Atomic Energy Authority,20/05/2015,MATERIALS & SPARES,FUSION,BOA Flexible Solution,5100321636,408.57
United Kingdom Atomic Energy Authority,United Kingdom Atomic Energy Authority,18/05/2015,GASES,FUSION,BOC LTD,5100321492,-399.40
United Kingdom Atomic Energy Authority,United Kingdom Atomic Energy Authority,18/05/2015,GASES,FUSION,BOC LTD,5100321494,-246.97
United Kingdom Atomic Energy Authority,United Kingdom Atomic Energy Authority,18/05/2015,GASES,FUSION,BOC LTD,5100321535,6.20
United Kingdom Atomic Energy Authority,United Kingdom Atomic Energy Authority,18/05/2015,GASES,FUSION,BOC LTD,5100321593,9.98
United Kingdom Atomic Energy Authority,United Kingdom Atomic Energy Authority,18/05/2015,GASES,FUSION,BOC LTD,5100321538,10.04
United Kingdom Atomic Energy Authority,United Kingdom Atomic Energy Authority,18/05/2015,GASES,FUSION,BOC LTD,5100321547,28.86
United Kingdom Atomic Energy Authority,United Kingdom Atomic Energy Authority,29/04/2015,GASES,FUSION,BOC LTD,5100320452,29.76
United Kingdom Atomic Energy Authority,United Kingdom Atomic Energy Authority,18/05/2015,GASES,FUSION,BOC LTD,5100321536,30.76
United Kingdom Atomic Energy Authority,United Kingdom Atomic Energy Authority,27/04/2015,GASES,FUSION,BOC LTD,5100320021,39.76
United Kingdom Atomic Energy Authority,United Kingdom Atomic Energy Authority,06/05/2015,GASES,FUSION,BOC LTD,5100321050,40.80
United Kingdom Atomic Energy Authority,United Kingdom Atomic Energy Authority,29/04/2015,GASES,FUSION,BOC LTD,5100320699,41.10
United Kingdom Atomic Energy Authority,United Kingdom Atomic Energy Authority,18/05/2015,GASES,FUSION,BOC LTD,5100321791,41.10
United Kingdom Atomic Energy Authority,United Kingdom Atomic Energy Authority,18/05/2015,GASES,FUSION,BOC LTD,5100321560,57.72
United Kingdom Atomic Energy Authority,United Kingdom Atomic Energy Authority,18/05/2015,GASES,FUSION,BOC LTD,5100321558,61.36
United Kingdom Atomic Energy Authority,United Kingdom Atomic Energy Authority,27/04/2015,GASES,FUSION,BOC LTD,5100320453,81.12
United Kingdom Atomic Energy Authority,United Kingdom Atomic Energy Authority,11/05/2015,GASES,FUSION,BOC LTD,5100321238,101.64
United Kingdom Atomic Energy Authority,United Kingdom Atomic Energy Authority,06/05/2015,GASES,FUSION,BOC LTD,5100321049,105.97
United Kingdom Atomic Energy Authority,United Kingdom Atomic Energy Authority,27/04/2015,GASES,FUSION,BOC LTD,5100320702,128.16
United Kingdom Atomic Energy Authority,United Kingdom Atomic Energy Authority,29/04/2015,GASES,FUSION,BOC LTD,5100320454,156.56
United Kingdom Atomic Energy Authority,United Kingdom Atomic Energy Authority,06/05/2015,GASES,FUSION,BOC LTD,5100320860,164.55
United Kingdom Atomic Energy Authority,United Kingdom Atomic Energy Authority,18/05/2015,GASES,FUSION,BOC LTD,5100321591,169.94
United Kingdom Atomic Energy Authority,United Kingdom Atomic Energy Authority,18/05/2015,GASES,FUSION,BOC LTD,5100321548,185.18
United Kingdom Atomic Energy Authority,United Kingdom Atomic Energy Authority,18/05/2015,GASES,FUSION,BOC LTD,5100321551,216.36
United Kingdom Atomic Energy Authority,United Kingdom Atomic Energy Authority,18/05/2015,GASES,FUSION,BOC LTD,5100321592,246.97
United Kingdom Atomic Energy Authority,United Kingdom Atomic Energy Authority,18/05/2015,GASES,FUSION,BOC LTD,5100321545,252.49
United Kingdom Atomic Energy Authority,United Kingdom Atomic Energy Authority,18/05/2015,GASES,FUSION,BOC LTD,5100321687,256.60
United Kingdom Atomic Energy Authority,United Kingdom Atomic Energy Authority,18/05/2015,GASES,FUSION,BOC LTD,5100321542,277.67
United Kingdom Atomic Energy Authority,United Kingdom Atomic Energy Authority,27/04/2015,GASES,FUSION,BOC LTD,5100320535,293.76
United Kingdom Atomic Energy Authority,United Kingdom Atomic Energy Authority,27/04/2015,GASES,FUSION,BOC LTD,5100320002,363.70
United Kingdom Atomic Energy Authority,United Kingdom Atomic Energy Authority,27/04/2015,GASES,FUSION,BOC LTD,5100320001,369.75
United Kingdom Atomic Energy Authority,United Kingdom Atomic Energy Authority,18/05/2015,GASES,FUSION,BOC LTD,5100320594,404.04
United Kingdom Atomic Energy Authority,United Kingdom Atomic Energy Authority,18/05/2015,GASES,FUSION,BOC LTD,5100321490,404.04
United Kingdom Atomic Energy Authority,United Kingdom Atomic Energy Authority,11/05/2015,GASES,FUSION,BOC LTD,5100321239,473.06
United Kingdom Atomic Energy Authority,United Kingdom Atomic Energy Authority,27/04/2015,GASES,FUSION,BOC LTD,5100320707,653.72
United Kingdom Atomic Energy Authority,United Kingdom Atomic Energy Authority,06/05/2015,GASES,FUSION,BOC LTD,5100321047,664.80
United Kingdom Atomic Energy Authority,United Kingdom Atomic Energy Authority,11/05/2015,GASES,FUSION,BOC LTD,5100321240,664.80
United Kingdom Atomic Energy Authority,United Kingdom Atomic Energy Authority,06/05/2015,GASES,FUSION,BOC LTD,5100321048,671.66
United Kingdom Atomic Energy Authority,United Kingdom Atomic Energy Authority,20/05/2015,GASES,FUSION,BOC LTD,5100321792,704.46
United Kingdom Atomic Energy Authority,United Kingdom Atomic Energy Authority,18/05/2015,GASES,FUSION,BOC LTD,5100321541,"1,894.25"
United Kingdom Atomic Energy Authority,United Kingdom Atomic Energy Authority,18/05/2015,GASES,FUSION,BOC LTD,5100321639,"2,763.66"
United Kingdom Atomic Energy Authority,United Kingdom Atomic Energy Authority,18/05/2015,GASES,FUSION,BOC LTD,5100320704,"4,747.20"
United Kingdom Atomic Energy Authority,United Kingdom Atomic Energy Authority,20/05/2015,GASES,FUSION,BOC LTD,5100321785,"5,382.08"
United Kingdom Atomic Energy Authority,United Kingdom Atomic Energy Authority,27/04/2015,CONSUMABLES,FUSION,BOXER MACHINE TOOLS SERVICES,5100320650,617.50
United Kingdom Atomic Energy Authority,United Kingdom Atomic Energy Authority,27/04/2015,CONSUMABLES,FUSION,BOXER MACHINE TOOLS SERVICES,5100320651,641.15
United Kingdom Atomic Energy Authority,United Kingdom Atomic Energy Authority,18/05/2015,MATERIALS & SPARES,FUSION,BRAMMER UK LTD,5100321565,19.96
United Kingdom Atomic Energy Authority,United Kingdom Atomic Energy Authority,06/05/2015,PLANT SPARES,FUSION,BRITE PRECISION,5100320859,630.00
United Kingdom Atomic Energy Authority,United Kingdom Atomic Energy Authority,18/05/2015,PLANT SPARES,FUSION,BRITE PRECISION,5100321587,"1,140.00"
United Kingdom Atomic Energy Authority,United Kingdom Atomic Energy Authority,06/05/2015,PLANT SPARES,FUSION,BRITE PRECISION,5100321043,"3,760.00"
United Kingdom Atomic Energy Authority,United Kingdom Atomic Energy Authority,06/05/2015,PLANT SPARES,FUSION,BRITE PRECISION,5100321003,"9,664.95"
United Kingdom Atomic Energy Authority,United Kingdom Atomic Energy Authority,18/05/2015,UTILITIES/ELECTRICITY,PROPERTY,BRITISH GAS BUSINESS,5100321741,52.04
United Kingdom Atomic Energy Authority,United Kingdom Atomic Energy Authority,18/05/2015,UTILITIES/ELECTRICITY,PROPERTY,BRITISH GAS BUSINESS,5100321743,67.55
United Kingdom Atomic Energy Authority,United Kingdom Atomic Energy Authority,18/05/2015,UTILITIES/ELECTRICITY,PROPERTY,BRITISH GAS BUSINESS,5100321744,87.66
United Kingdom Atomic Energy Authority,United Kingdom Atomic Energy Authority,18/05/2015,UTILITIES/ELECTRICITY,PROPERTY,BRITISH GAS BUSINESS,5100321742,132.57
United Kingdom Atomic Energy Authority,United Kingdom Atomic Energy Authority,18/05/2015,UTILITIES/ELECTRICITY,PROPERTY,BRITISH GAS BUSINESS,5100321747,655.78
United Kingdom Atomic Energy Authority,United Kingdom Atomic Energy Authority,18/05/2015,UTILITIES/ELECTRICITY,PROPERTY,BRITISH GAS BUSINESS,5100321748,799.54
United Kingdom Atomic Energy Authority,United Kingdom Atomic Energy Authority,18/05/2015,MATERIALS & SPARES,FUSION,BRITISH GASKETS LTD,5100321638,148.93
United Kingdom Atomic Energy Authority,United Kingdom Atomic Energy Authority,20/05/2015,MATERIALS & SPARES,FUSION,BROWNELL LTD,5100321877,497.50
United Kingdom Atomic Energy Authority,United Kingdom Atomic Energy Authority,11/05/2015,REPAIRS & MAINTENANCE,FUSION,BSA MACHINE TOOLS LTD,5100321052,710.00
United Kingdom Atomic Energy Authority,United Kingdom Atomic Energy Authority,11/05/2015,REPAIRS & MAINTENANCE,FUSION,BSA MACHINE TOOLS LTD,5100321051,"1,065.00"
United Kingdom Atomic Energy Authority,United Kingdom Atomic Energy Authority,13/05/2015,PROFESSIONAL SERVICES,PROPERTY,BSP CONSULTING,5100321326,550.00
United Kingdom Atomic Energy Authority,United Kingdom Atomic Energy Authority,06/05/2015,MATERIALS & SPARES,FUSION,BSS OXFORD,5100321045,435.00
United Kingdom Atomic Energy Authority,United Kingdom Atomic Energy Authority,06/05/2015,PERSONAL PROTECTIVE EQUIPMENT,FUSION,BUCK & HICKMAN LTD,5100321044,18.78
United Kingdom Atomic Energy Authority,United Kingdom Atomic Energy Authority,27/04/2015,PERSONAL PROTECTIVE EQUIPMENT,FUSION,BUCK & HICKMAN LTD,5100320675,57.48
United Kingdom Atomic Energy Authority,United Kingdom Atomic Energy Authority,06/05/2015,MATERIALS & SPARES,PROPERTY,BUDGET FORKTRUCKS LTD,5100320953,268.67
United Kingdom Atomic Energy Authority,United Kingdom Atomic Energy Authority,11/05/2015,MATERIALS & SPARES,FUSION,BUDGET FORKTRUCKS LTD,5100320957,312.00
United Kingdom Atomic Energy Authority,United Kingdom Atomic Energy Authority,11/05/2015,MATERIALS & SPARES,FUSION,BUDGET FORKTRUCKS LTD,5100320955,342.33
United Kingdom Atomic Energy Authority,United Kingdom Atomic Energy Authority,18/05/2015,MATERIALS & SPARES,FUSION,BUDGET FORKTRUCKS LTD,5100321628,343.07
United Kingdom Atomic Energy Authority,United Kingdom Atomic Energy Authority,18/05/2015,MATERIALS & SPARES,FUSION,BUDGET FORKTRUCKS LTD,5100321623,390.00
United Kingdom Atomic Energy Authority,United Kingdom Atomic Energy Authority,11/05/2015,MATERIALS & SPARES,FUSION,BUDGET FORKTRUCKS LTD,5100320958,390.00
United Kingdom Atomic Energy Authority,United Kingdom Atomic Energy Authority,06/05/2015,MATERIALS & SPARES,FUSION,BUDGET FORKTRUCKS LTD,5100320956,506.00
United Kingdom Atomic Energy Authority,United Kingdom Atomic Energy Authority,06/05/2015,MATERIALS & SPARES,FUSION,BUDGET FORKTRUCKS LTD,5100320954,793.00
United Kingdom Atomic Energy Authority,United Kingdom Atomic Energy Authority,06/05/2015,MATERIALS & SPARES,FUSION,Cable Services Ltd,5100320863,"1,797.60"
United Kingdom Atomic Energy Authority,United Kingdom Atomic Energy Authority,18/05/2015,MATERIALS & SPARES,FUSION,Cablecraft Ltd,5100321656,94.77
United Kingdom Atomic Energy Authority,United Kingdom Atomic Energy Authority,18/05/2015,MATERIALS & SPARES,FUSION,Cablecraft Ltd,5100321680,389.96
United Kingdom Atomic Energy Authority,United Kingdom Atomic Energy Authority,06/05/2015,CONSUMABLES,FUSION,CAPARO TESTING TECHNOLOGIES,5100320909,287.01
United Kingdom Atomic Energy Authority,United Kingdom Atomic Energy Authority,20/05/2015,CONSUMABLES,FUSION,CAPARO TESTING TECHNOLOGIES,5100321458,287.01
United Kingdom Atomic Energy Authority,United Kingdom Atomic Energy Authority,27/04/2015,CONSUMABLES,FUSION,CAPARO TESTING TECHNOLOGIES,5100320560,337.93
United Kingdom Atomic Energy Authority,United Kingdom Atomic Energy Authority,06/05/2015,CONSUMABLES,FUSION,CARILLON INDUSTRIAL SERVICES LTD,5100321275,-82.90
United Kingdom Atomic Energy Authority,United Kingdom Atomic Energy Authority,27/04/2015,CONSUMABLES,FUSION,CARILLON INDUSTRIAL SERVICES LTD,5100320766,20.42
United Kingdom Atomic Energy Authority,United Kingdom Atomic Energy Authority,11/05/2015,CONSUMABLES,FUSION,CARILLON INDUSTRIAL SERVICES LTD,5100321210,20.72
United Kingdom Atomic Energy Authority,United Kingdom Atomic Energy Authority,11/05/2015,CONSUMABLES,FUSION,CARILLON INDUSTRIAL SERVICES LTD,5100321231,20.72
United Kingdom Atomic Energy Authority,United Kingdom Atomic Energy Authority,11/05/2015,CONSUMABLES,FUSION,CARILLON INDUSTRIAL SERVICES LTD,5100321228,20.94
United Kingdom Atomic Energy Authority,United Kingdom Atomic Energy Authority,11/05/2015,CONSUMABLES,FUSION,CARILLON INDUSTRIAL SERVICES LTD,5100321230,23.67
United Kingdom Atomic Energy Authority,United Kingdom Atomic Energy Authority,06/05/2015,CONSUMABLES,FUSION,CARILLON INDUSTRIAL SERVICES LTD,5100320994,40.83
United Kingdom Atomic Energy Authority,United Kingdom Atomic Energy Authority,06/05/2015,CONSUMABLES,FUSION,CARILLON INDUSTRIAL SERVICES LTD,5100320996,47.54
United Kingdom Atomic Energy Authority,United Kingdom Atomic Energy Authority,06/05/2015,CONSUMABLES,FUSION,CARILLON INDUSTRIAL SERVICES LTD,5100320999,82.90
United Kingdom Atomic Energy Authority,United Kingdom Atomic Energy Authority,06/05/2015,CONSUMABLES,FUSION,CARILLON INDUSTRIAL SERVICES LTD,5100321276,82.90
United Kingdom Atomic Energy Authority,United Kingdom Atomic Energy Authority,27/04/2015,CONSUMABLES,FUSION,CARILLON INDUSTRIAL SERVICES LTD,5100320765,192.00
United Kingdom Atomic Energy Authority,United Kingdom Atomic Energy Authority,11/05/2015,CONSUMABLES,FUSION,CARILLON INDUSTRIAL SERVICES LTD,5100321229,203.00
United Kingdom Atomic Energy Authority,United Kingdom Atomic Energy Authority,06/05/2015,COMPENSATION AND LEGAL FEES,SUPPORT SERVICES,CATER LEYDON MILLARD LTD,5100321130,163.50
United Kingdom Atomic Energy Authority,United Kingdom Atomic Energy Authority,18/05/2015,PROFESSIONAL SERVICES,PROPERTY,CB RICHARD ELLIS,5100321562,"5,070.45"
United Kingdom Atomic Energy Authority,United Kingdom Atomic Energy Authority,18/05/2015,CONSUMABLES,FUSION,CENTRAL METAL & ALLOYS LTD,5100321689,295.00
United Kingdom Atomic Energy Authority,United Kingdom Atomic Energy Authority,11/05/2015,PLANT & EQUIPMENT,FUSION,CERAMIC SUBSTRATES AND COMPONENTS L,5100321103,"2,590.00"
United Kingdom Atomic Energy Authority,United Kingdom Atomic Energy Authority,20/05/2015,MATERIALS: HAZARDOUS,FUSION,CHEMTECH WASTE MANAGEMENT,5100321875,"5,832.00"
United Kingdom Atomic Energy Authority,United Kingdom Atomic Energy Authority,06/05/2015,LAUNDRY,FUSION,CLEAN LINEN SERVICES LTD,5100321000,4.12
United Kingdom Atomic Energy Authority,United Kingdom Atomic Energy Authority,06/05/2015,LAUNDRY,FUSION,CLEAN LINEN SERVICES LTD,5100321001,96.15
United Kingdom Atomic Energy Authority,United Kingdom Atomic Energy Authority,06/05/2015,UTILITIES/GAS,PROPERTY,COFELY LTD,5100320965,"5,014.19"
United Kingdom Atomic Energy Authority,United Kingdom Atomic Energy Authority,06/05/2015,UTILITIES/GAS,PROPERTY,COFELY LTD,5100320967,"5,280.87"
United Kingdom Atomic Energy Authority,United Kingdom Atomic Energy Authority,06/05/2015,UTILITIES/GAS,PROPERTY,COFELY LTD,5100320969,"5,506.55"
United Kingdom Atomic Energy Authority,United Kingdom Atomic Energy Authority,29/04/2015,UTILITIES/GAS,PROPERTY,COFELY LTD,5100320714,"20,911.50"
United Kingdom Atomic Energy Authority,United Kingdom Atomic Energy Authority,06/05/2015,UTILITIES/GAS,PROPERTY,COFELY LTD,5100320964,"79,365.61"
United Kingdom Atomic Energy Authority,United Kingdom Atomic Energy Authority,06/05/2015,UTILITIES/GAS,PROPERTY,COFELY LTD,5100320966,"83,586.56"
United Kingdom Atomic Energy Authority,United Kingdom Atomic Energy Authority,06/05/2015,UTILITIES/GAS,PROPERTY,COFELY LTD,5100320968,"87,158.68"
United Kingdom Atomic Energy Authority,United Kingdom Atomic Energy Authority,11/05/2015,MATERIALS & SPARES,FUSION,COMAR INSTRUMENTS,5100321344,"2,506.50"
United Kingdom Atomic Energy Authority,United Kingdom Atomic Energy Authority,29/04/2015,MATERIALS & SPARES,FUSION,COMPRESSORS & PNEUMATIC SYSTEMS LTD,5100320813,"75,059.53"
United Kingdom Atomic Energy Authority,United Kingdom Atomic Energy Authority,20/05/2015,PLANT SPARES,FUSION,CONDEC INDUSTRIAL MAINTENANCE,5100321896,480.00
United Kingdom Atomic Energy Authority,United Kingdom Atomic Energy Authority,11/05/2015,MATERIALS & SPARES,FUSION,CPC PLC,5100320264,-137.31
United Kingdom Atomic Energy Authority,United Kingdom Atomic Energy Authority,06/05/2015,MATERIALS & SPARES,FUSION,CPC PLC,5100321109,-37.95
United Kingdom Atomic Energy Authority,United Kingdom Atomic Energy Authority,06/05/2015,MATERIALS & SPARES,FUSION,CPC PLC,5100320934,7.96
United Kingdom Atomic Energy Authority,United Kingdom Atomic Energy Authority,06/05/2015,MATERIALS & SPARES,FUSION,CPC PLC,5100320937,8.01
United Kingdom Atomic Energy Authority,United Kingdom Atomic Energy Authority,18/05/2015,MATERIALS & SPARES,SUPPORT SERVICES,CPC PLC,5100321588,15.82
United Kingdom Atomic Energy Authority,United Kingdom Atomic Energy Authority,29/04/2015,MATERIALS & SPARES,FUSION,CPC PLC,5100320832,26.26
United Kingdom Atomic Energy Authority,United Kingdom Atomic Energy Authority,06/05/2015,MATERIALS & SPARES,FUSION,CPC PLC,5100320936,29.96
United Kingdom Atomic Energy Authority,United Kingdom Atomic Energy Authority,06/05/2015,MATERIALS & SPARES,FUSION,CPC PLC,5100320830,40.94
United Kingdom Atomic Energy Authority,United Kingdom Atomic Energy Authority,06/05/2015,MATERIALS & SPARES,FUSION,CPC PLC,5100320933,77.01
United Kingdom Atomic Energy Authority,United Kingdom Atomic Energy Authority,29/04/2015,MATERIALS & SPARES,FUSION,CPC PLC,5100320831,79.38
United Kingdom Atomic Energy Authority,United Kingdom Atomic Energy Authority,06/05/2015,MATERIALS & SPARES,FUSION,CPC PLC,5100320932,79.43
United Kingdom Atomic Energy Authority,United Kingdom Atomic Energy Authority,11/05/2015,MATERIALS & SPARES,FUSION,CPC PLC,5100319912,137.31
United Kingdom Atomic Energy Authority,United Kingdom Atomic Energy Authority,11/05/2015,MATERIALS & SPARES,FUSION,CROMWELL LTD,5100321241,5.25
United Kingdom Atomic Energy Authority,United Kingdom Atomic Energy Authority,11/05/2015,MATERIALS & SPARES,FUSION,CROMWELL LTD,5100321249,9.60
United Kingdom Atomic Energy Authority,United Kingdom Atomic Energy Authority,27/04/2015,MATERIALS & SPARES,FUSION,CROMWELL LTD,5100320759,9.68
United Kingdom Atomic Energy Authority,United Kingdom Atomic Energy Authority,11/05/2015,MATERIALS & SPARES,FUSION,CROMWELL LTD,5100321245,11.34
United Kingdom Atomic Energy Authority,United Kingdom Atomic Energy Authority,11/05/2015,MATERIALS & SPARES,FUSION,CROMWELL LTD,5100321243,19.00
United Kingdom Atomic Energy Authority,United Kingdom Atomic Energy Authority,18/05/2015,MATERIALS & SPARES,FUSION,CROMWELL LTD,5100321584,20.93
United Kingdom Atomic Energy Authority,United Kingdom Atomic Energy Authority,11/05/2015,MATERIALS & SPARES,FUSION,CROMWELL LTD,5100321244,31.20
United Kingdom Atomic Energy Authority,United Kingdom Atomic Energy Authority,27/04/2015,MATERIALS & SPARES,FUSION,CROMWELL LTD,5100320760,34.70
United Kingdom Atomic Energy Authority,United Kingdom Atomic Energy Authority,18/05/2015,MATERIALS & SPARES,FUSION,CROMWELL LTD,5100321570,38.99
United Kingdom Atomic Energy Authority,United Kingdom Atomic Energy Authority,18/05/2015,MATERIALS & SPARES,FUSION,CROMWELL LTD,5100321583,59.01
United Kingdom Atomic Energy Authority,United Kingdom Atomic Energy Authority,20/05/2015,MATERIALS & SPARES,FUSION,CROMWELL LTD,5100321869,65.92
United Kingdom Atomic Energy Authority,United Kingdom Atomic Energy Authority,18/05/2015,MATERIALS & SPARES,FUSION,CROMWELL LTD,5100321585,72.13
United Kingdom Atomic Energy Authority,United Kingdom Atomic Energy Authority,20/05/2015,MATERIALS & SPARES,FUSION,CROMWELL LTD,5100321873,77.98
United Kingdom Atomic Energy Authority,United Kingdom Atomic Energy Authority,20/05/2015,MATERIALS & SPARES,FUSION,CROMWELL LTD,5100321871,86.00
United Kingdom Atomic Energy Authority,United Kingdom Atomic Energy Authority,18/05/2015,MATERIALS & SPARES,FUSION,CROMWELL LTD,5100321574,107.45
United Kingdom Atomic Energy Authority,United Kingdom Atomic Energy Authority,27/04/2015,MATERIALS & SPARES,FUSION,CROMWELL LTD,5100320761,133.73
United Kingdom Atomic Energy Authority,United Kingdom Atomic Energy Authority,27/04/2015,MATERIALS & SPARES,SUPPORT SERVICES,CROMWELL LTD,5100320757,136.71
United Kingdom Atomic Energy Authority,United Kingdom Atomic Energy Authority,20/05/2015,MATERIALS & SPARES,FUSION,CROMWELL LTD,5100321866,139.06
United Kingdom Atomic Energy Authority,United Kingdom Atomic Energy Authority,18/05/2015,MATERIALS & SPARES,FUSION,CROMWELL LTD,5100321571,145.00
United Kingdom Atomic Energy Authority,United Kingdom Atomic Energy Authority,18/05/2015,MATERIALS & SPARES,FUSION,CROMWELL LTD,5100321580,145.00
United Kingdom Atomic Energy Authority,United Kingdom Atomic Energy Authority,18/05/2015,MATERIALS & SPARES,FUSION,CROMWELL LTD,5100321582,168.96
United Kingdom Atomic Energy Authority,United Kingdom Atomic Energy Authority,11/05/2015,MATERIALS & SPARES,FUSION,CROMWELL LTD,5100321242,178.71
United Kingdom Atomic Energy Authority,United Kingdom Atomic Energy Authority,18/05/2015,MATERIALS & SPARES,FUSION,CROMWELL LTD,5100321573,180.00
United Kingdom Atomic Energy Authority,United Kingdom Atomic Energy Authority,11/05/2015,MATERIALS & SPARES,FUSION,CROMWELL LTD,5100321250,199.60
United Kingdom Atomic Energy Authority,United Kingdom Atomic Energy Authority,11/05/2015,MATERIALS & SPARES,FUSION,CROMWELL LTD,5100321248,230.90
United Kingdom Atomic Energy Authority,United Kingdom Atomic Energy Authority,20/05/2015,MATERIALS & SPARES,FUSION,CROMWELL LTD,5100321867,256.62
United Kingdom Atomic Energy Authority,United Kingdom Atomic Energy Authority,27/04/2015,MATERIALS & SPARES,FUSION,CROMWELL LTD,5100320762,260.49
United Kingdom Atomic Energy Authority,United Kingdom Atomic Energy Authority,18/05/2015,MATERIALS & SPARES,FUSION,CROMWELL LTD,5100321581,294.40
United Kingdom Atomic Energy Authority,United Kingdom Atomic Energy Authority,18/05/2015,MATERIALS & SPARES,FUSION,CROMWELL LTD,5100321572,312.31
United Kingdom Atomic Energy Authority,United Kingdom Atomic Energy Authority,27/04/2015,MATERIALS & SPARES,FUSION,CROMWELL LTD,5100320758,377.11
United Kingdom Atomic Energy Authority,United Kingdom Atomic Energy Authority,11/05/2015,MATERIALS & SPARES,FUSION,CROMWELL LTD,5100321247,398.40
United Kingdom Atomic Energy Authority,United Kingdom Atomic Energy Authority,11/05/2015,MATERIALS & SPARES,FUSION,CROMWELL LTD,5100321246,407.20
United Kingdom Atomic Energy Authority,United Kingdom Atomic Energy Authority,20/05/2015,MATERIALS & SPARES,FUSION,CROMWELL LTD,5100321872,470.70
United Kingdom Atomic Energy Authority,United Kingdom Atomic Energy Authority,20/05/2015,PROFESSIONAL SERVICES,SUPPORT SERVICES,CSC COMPUTER SERVICES,5100321752,"3,332.02"
United Kingdom Atomic Energy Authority,United Kingdom Atomic Energy Authority,18/05/2015,PROFESSIONAL SERVICES,SUPPORT SERVICES,CSC COMPUTER SERVICES,5100321469,"18,672.31"
United Kingdom Atomic Energy Authority,United Kingdom Atomic Energy Authority,18/05/2015,PROFESSIONAL SERVICES,SUPPORT SERVICES,CSC COMPUTER SERVICES,5100321468,"42,240.33"
United Kingdom Atomic Energy Authority,United Kingdom Atomic Energy Authority,27/04/2015,PLANT SPARES,FUSION,CSE INDUSTRIAL ELECTRICAL DISTRIBUT,5100320558,729.00
United Kingdom Atomic Energy Authority,United Kingdom Atomic Energy Authority,20/05/2015,MATERIALS & SPARES,SUPPORT SERVICES,Cut Keys Direct Ltd,5100321597,5.60
United Kingdom Atomic Energy Authority,United Kingdom Atomic Energy Authority,30/04/2015,DESIGN & CONSTRUCTION,PROPERTY,Dean Interiors Ltd,5100320723,"13,688.61"
United Kingdom Atomic Energy Authority,United Kingdom Atomic Energy Authority,29/04/2015,MATERIALS & SPARES,FUSION,DIDCOT PLANT LTD,5100320806,76.20
United Kingdom Atomic Energy Authority,United Kingdom Atomic Energy Authority,07/05/2015,MATERIALS & SPARES,FUSION,DILO ARMATURAN AND ANLAGEN GMBH,5100321317,45.43
United Kingdom Atomic Energy Authority,United Kingdom Atomic Energy Authority,27/04/2015,PROFESSIONAL SERVICES,SUPPORT SERVICES,DISCLOSURE SCOTLAND,5100320716,50.00
United Kingdom Atomic Energy Authority,United Kingdom Atomic Energy Authority,29/04/2015,PLANT & EQUIPMENT,FUSION,D-TAQ SOLUTIONS,5100320975,"1,400.00"
United Kingdom Atomic Energy Authority,United Kingdom Atomic Energy Authority,06/05/2015,PLANT & EQUIPMENT,FUSION,D-TAQ SOLUTIONS,5100321005,"9,900.00"
United Kingdom Atomic Energy Authority,United Kingdom Atomic Energy Authority,11/05/2015,MATERIALS & SPARES,FUSION,DURA COMPOSITES LTD,5100321183,374.00
United Kingdom Atomic Energy Authority,United Kingdom Atomic Energy Authority,06/05/2015,MATERIALS & SPARES,FUSION,DURBIN METAL INDUSTRIES LTD,5100320929,68.72
United Kingdom Atomic Energy Authority,United Kingdom Atomic Energy Authority,27/04/2015,MATERIALS & SPARES,FUSION,DURBIN METAL INDUSTRIES LTD,5100320511,69.60
United Kingdom Atomic Energy Authority,United Kingdom Atomic Energy Authority,06/05/2015,MATERIALS & SPARES,FUSION,DURBIN METAL INDUSTRIES LTD,5100320951,140.90
United Kingdom Atomic Energy Authority,United Kingdom Atomic Energy Authority,29/04/2015,MATERIALS & SPARES,FUSION,Dwyer Instruments Ltd,5100320885,392.50
United Kingdom Atomic Energy Authority,United Kingdom Atomic Energy Authority,18/05/2015,ELECTRICITY,FUSION,E.ON (UK) Ltd,5100321658,"139,503.65"
United Kingdom Atomic Energy Authority,United Kingdom Atomic Energy Authority,13/05/2015,UTILITIES/ELECTRICITY,PROPERTY,EDF ENERGY,5100321080,"-2,917.49"
United Kingdom Atomic Energy Authority,United Kingdom Atomic Energy Authority,13/05/2015,UTILITIES/ELECTRICITY,PROPERTY,EDF ENERGY,5100321198,"-2,904.31"
United Kingdom Atomic Energy Authority,United Kingdom Atomic Energy Authority,13/05/2015,UTILITIES/ELECTRICITY,PROPERTY,EDF ENERGY,5100321084,-174.27
United Kingdom Atomic Energy Authority,United Kingdom Atomic Energy Authority,13/05/2015,UTILITIES/ELECTRICITY,PROPERTY,EDF ENERGY,5100321085,-14.16
United Kingdom Atomic Energy Authority,United Kingdom Atomic Energy Authority,13/05/2015,UTILITIES/ELECTRICITY,PROPERTY,EDF ENERGY,5100321083,-13.16
United Kingdom Atomic Energy Authority,United Kingdom Atomic Energy Authority,13/05/2015,UTILITIES/ELECTRICITY,PROPERTY,EDF ENERGY,5100321082,5.10
United Kingdom Atomic Energy Authority,United Kingdom Atomic Energy Authority,20/05/2015,UTILITIES/ELECTRICITY,PROPERTY,EDF ENERGY,5100321621,55.17
United Kingdom Atomic Energy Authority,United Kingdom Atomic Energy Authority,20/05/2015,UTILITIES/ELECTRICITY,PROPERTY,EDF ENERGY,5100321620,57.01
United Kingdom Atomic Energy Authority,United Kingdom Atomic Energy Authority,13/05/2015,UTILITIES/ELECTRICITY,PROPERTY,EDF ENERGY,5100321517,61.24
United Kingdom Atomic Energy Authority,United Kingdom Atomic Energy Authority,13/05/2015,UTILITIES/ELECTRICITY,PROPERTY,EDF ENERGY,5100321291,66.62
United Kingdom Atomic Energy Authority,United Kingdom Atomic Energy Authority,13/05/2015,UTILITIES/ELECTRICITY,PROPERTY,EDF ENERGY,5100321505,151.64
United Kingdom Atomic Energy Authority,United Kingdom Atomic Energy Authority,13/05/2015,UTILITIES/ELECTRICITY,PROPERTY,EDF ENERGY,5100321523,"1,640.61"
United Kingdom Atomic Energy Authority,United Kingdom Atomic Energy Authority,13/05/2015,UTILITIES/ELECTRICITY,PROPERTY,EDF ENERGY,5100321515,"2,756.87"
United Kingdom Atomic Energy Authority,United Kingdom Atomic Energy Authority,13/05/2015,UTILITIES/ELECTRICITY,PROPERTY,EDF ENERGY,5100321199,"2,903.83"
United Kingdom Atomic Energy Authority,United Kingdom Atomic Energy Authority,13/05/2015,UTILITIES/ELECTRICITY,PROPERTY,EDF ENERGY,5100321081,"2,917.57"
United Kingdom Atomic Energy Authority,United Kingdom Atomic Energy Authority,13/05/2015,UTILITIES/ELECTRICITY,PROPERTY,EDF ENERGY,5100321519,"3,376.11"
United Kingdom Atomic Energy Authority,United Kingdom Atomic Energy Authority,13/05/2015,UTILITIES/ELECTRICITY,PROPERTY,EDF ENERGY,5100321522,"7,284.47"
United Kingdom Atomic Energy Authority,United Kingdom Atomic Energy Authority,13/05/2015,UTILITIES/ELECTRICITY,PROPERTY,EDF ENERGY,5100321503,"21,888.75"
United Kingdom Atomic Energy Authority,United Kingdom Atomic Energy Authority,13/05/2015,UTILITIES/ELECTRICITY,PROPERTY,EDF ENERGY,5100321499,"26,146.59"
United Kingdom Atomic Energy Authority,United Kingdom Atomic Energy Authority,29/04/2015,PLANT & EQUIPMENT,FUSION,EDMUNDSON ELECTRICALS LTD,5100320819,2.86
United Kingdom Atomic Energy Authority,United Kingdom Atomic Energy Authority,13/05/2015,PLANT & EQUIPMENT,FUSION,EDMUNDSON ELECTRICALS LTD,5100321413,3.28
United Kingdom Atomic Energy Authority,United Kingdom Atomic Energy Authority,18/05/2015,PLANT & EQUIPMENT,FUSION,EDMUNDSON ELECTRICALS LTD,5100321124,18.48
United Kingdom Atomic Energy Authority,United Kingdom Atomic Energy Authority,11/05/2015,PLANT & EQUIPMENT,FUSION,EDMUNDSON ELECTRICALS LTD,5100321302,22.77
United Kingdom Atomic Energy Authority,United Kingdom Atomic Energy Authority,06/05/2015,PLANT & EQUIPMENT,FUSION,EDMUNDSON ELECTRICALS LTD,5100320980,23.54
United Kingdom Atomic Energy Authority,United Kingdom Atomic Energy Authority,13/05/2015,PLANT & EQUIPMENT,FUSION,EDMUNDSON ELECTRICALS LTD,5100321323,24.50
United Kingdom Atomic Energy Authority,United Kingdom Atomic Energy Authority,06/05/2015,PLANT & EQUIPMENT,FUSION,EDMUNDSON ELECTRICALS LTD,5100321042,24.51
United Kingdom Atomic Energy Authority,United Kingdom Atomic Energy Authority,27/04/2015,PLANT & EQUIPMENT,FUSION,EDMUNDSON ELECTRICALS LTD,5100320689,26.71
United Kingdom Atomic Energy Authority,United Kingdom Atomic Energy Authority,18/05/2015,PLANT & EQUIPMENT,FUSION,EDMUNDSON ELECTRICALS LTD,5100321696,30.02
United Kingdom Atomic Energy Authority,United Kingdom Atomic Energy Authority,18/05/2015,PLANT & EQUIPMENT,FUSION,EDMUNDSON ELECTRICALS LTD,5100321127,30.19
United Kingdom Atomic Energy Authority,United Kingdom Atomic Energy Authority,13/05/2015,PLANT & EQUIPMENT,FUSION,EDMUNDSON ELECTRICALS LTD,5100321320,31.62
United Kingdom Atomic Energy Authority,United Kingdom Atomic Energy Authority,06/05/2015,PLANT & EQUIPMENT,FUSION,EDMUNDSON ELECTRICALS LTD,5100320981,31.76
United Kingdom Atomic Energy Authority,United Kingdom Atomic Energy Authority,27/04/2015,PLANT & EQUIPMENT,FUSION,EDMUNDSON ELECTRICALS LTD,5100320738,39.52
United Kingdom Atomic Energy Authority,United Kingdom Atomic Energy Authority,27/04/2015,PLANT & EQUIPMENT,FUSION,EDMUNDSON ELECTRICALS LTD,5100320691,46.62
United Kingdom Atomic Energy Authority,United Kingdom Atomic Energy Authority,20/05/2015,PLANT & EQUIPMENT,FUSION,EDMUNDSON ELECTRICALS LTD,5100321718,55.22
United Kingdom Atomic Energy Authority,United Kingdom Atomic Energy Authority,06/05/2015,PLANT & EQUIPMENT,FUSION,EDMUNDSON ELECTRICALS LTD,5100321125,56.66
United Kingdom Atomic Energy Authority,United Kingdom Atomic Energy Authority,18/05/2015,PLANT & EQUIPMENT,FUSION,EDMUNDSON ELECTRICALS LTD,5100321322,60.38
United Kingdom Atomic Energy Authority,United Kingdom Atomic Energy Authority,18/05/2015,PLANT & EQUIPMENT,FUSION,EDMUNDSON ELECTRICALS LTD,5100321721,62.93
United Kingdom Atomic Energy Authority,United Kingdom Atomic Energy Authority,13/05/2015,PLANT & EQUIPMENT,FUSION,EDMUNDSON ELECTRICALS LTD,5100321324,63.98
United Kingdom Atomic Energy Authority,United Kingdom Atomic Energy Authority,27/04/2015,PLANT & EQUIPMENT,FUSION,EDMUNDSON ELECTRICALS LTD,5100320823,64.62
United Kingdom Atomic Energy Authority,United Kingdom Atomic Energy Authority,11/05/2015,PLANT & EQUIPMENT,FUSION,EDMUNDSON ELECTRICALS LTD,5100321321,65.34
United Kingdom Atomic Energy Authority,United Kingdom Atomic Energy Authority,20/05/2015,PLANT & EQUIPMENT,FUSION,EDMUNDSON ELECTRICALS LTD,5100321836,67.99
United Kingdom Atomic Energy Authority,United Kingdom Atomic Energy Authority,06/05/2015,PLANT & EQUIPMENT,FUSION,EDMUNDSON ELECTRICALS LTD,5100320840,70.00
United Kingdom Atomic Energy Authority,United Kingdom Atomic Energy Authority,18/05/2015,PLANT & EQUIPMENT,FUSION,EDMUNDSON ELECTRICALS LTD,5100321631,70.06
United Kingdom Atomic Energy Authority,United Kingdom Atomic Energy Authority,18/05/2015,PLANT & EQUIPMENT,FUSION,EDMUNDSON ELECTRICALS LTD,5100321719,75.97
United Kingdom Atomic Energy Authority,United Kingdom Atomic Energy Authority,06/05/2015,PLANT & EQUIPMENT,FUSION,EDMUNDSON ELECTRICALS LTD,5100320841,98.80
United Kingdom Atomic Energy Authority,United Kingdom Atomic Energy Authority,13/05/2015,PLANT & EQUIPMENT,FUSION,EDMUNDSON ELECTRICALS LTD,5100320495,108.56
United Kingdom Atomic Energy Authority,United Kingdom Atomic Energy Authority,06/05/2015,PLANT & EQUIPMENT,FUSION,EDMUNDSON ELECTRICALS LTD,5100320978,114.40
United Kingdom Atomic Energy Authority,United Kingdom Atomic Energy Authority,11/05/2015,PLANT & EQUIPMENT,FUSION,EDMUNDSON ELECTRICALS LTD,5100321126,138.65
United Kingdom Atomic Energy Authority,United Kingdom Atomic Energy Authority,11/05/2015,PLANT & EQUIPMENT,FUSION,EDMUNDSON ELECTRICALS LTD,5100321299,150.66
United Kingdom Atomic Energy Authority,United Kingdom Atomic Energy Authority,18/05/2015,PLANT & EQUIPMENT,FUSION,EDMUNDSON ELECTRICALS LTD,5100321694,151.76
United Kingdom Atomic Energy Authority,United Kingdom Atomic Energy Authority,29/04/2015,PLANT & EQUIPMENT,FUSION,EDMUNDSON ELECTRICALS LTD,5100320670,180.00
United Kingdom Atomic Energy Authority,United Kingdom Atomic Energy Authority,06/05/2015,PLANT & EQUIPMENT,FUSION,EDMUNDSON ELECTRICALS LTD,5100320982,180.21
United Kingdom Atomic Energy Authority,United Kingdom Atomic Energy Authority,11/05/2015,PLANT & EQUIPMENT,FUSION,EDMUNDSON ELECTRICALS LTD,5100320829,188.01
United Kingdom Atomic Energy Authority,United Kingdom Atomic Energy Authority,27/04/2015,PLANT & EQUIPMENT,FUSION,EDMUNDSON ELECTRICALS LTD,5100320672,196.68
United Kingdom Atomic Energy Authority,United Kingdom Atomic Energy Authority,27/04/2015,PLANT & EQUIPMENT,FUSION,EDMUNDSON ELECTRICALS LTD,5100320821,202.92
United Kingdom Atomic Energy Authority,United Kingdom Atomic Energy Authority,27/04/2015,PLANT & EQUIPMENT,FUSION,EDMUNDSON ELECTRICALS LTD,5100320677,248.19
United Kingdom Atomic Energy Authority,United Kingdom Atomic Energy Authority,13/05/2015,PLANT & EQUIPMENT,FUSION,EDMUNDSON ELECTRICALS LTD,5100321431,269.14
United Kingdom Atomic Energy Authority,United Kingdom Atomic Energy Authority,27/04/2015,PLANT & EQUIPMENT,FUSION,EDMUNDSON ELECTRICALS LTD,5100320688,314.16
United Kingdom Atomic Energy Authority,United Kingdom Atomic Energy Authority,11/05/2015,PLANT & EQUIPMENT,FUSION,EDMUNDSON ELECTRICALS LTD,5100321301,381.65
United Kingdom Atomic Energy Authority,United Kingdom Atomic Energy Authority,27/04/2015,PLANT & EQUIPMENT,FUSION,EDMUNDSON ELECTRICALS LTD,5100320671,440.00
United Kingdom Atomic Energy Authority,United Kingdom Atomic Energy Authority,06/05/2015,PLANT & EQUIPMENT,FUSION,EDMUNDSON ELECTRICALS LTD,5100320838,504.45
United Kingdom Atomic Energy Authority,United Kingdom Atomic Energy Authority,18/05/2015,PLANT & EQUIPMENT,FUSION,EDMUNDSON ELECTRICALS LTD,5100321692,637.58
United Kingdom Atomic Energy Authority,United Kingdom Atomic Energy Authority,11/05/2015,PLANT & EQUIPMENT,FUSION,EDMUNDSON ELECTRICALS LTD,5100321123,699.55
United Kingdom Atomic Energy Authority,United Kingdom Atomic Energy Authority,18/05/2015,PLANT & EQUIPMENT,FUSION,EDMUNDSON ELECTRICALS LTD,5100321430,907.66
United Kingdom Atomic Energy Authority,United Kingdom Atomic Energy Authority,20/05/2015,PLANT & EQUIPMENT,FUSION,EDMUNDSON ELECTRICALS LTD,5100321630,970.07
United Kingdom Atomic Energy Authority,United Kingdom Atomic Energy Authority,18/05/2015,PLANT & EQUIPMENT,FUSION,EDMUNDSON ELECTRICALS LTD,5100320824,"1,749.00"
United Kingdom Atomic Energy Authority,United Kingdom Atomic Energy Authority,27/04/2015,PLANT & EQUIPMENT,FUSION,EDMUNDSON ELECTRICALS LTD,5100320667,"2,121.47"
United Kingdom Atomic Energy Authority,United Kingdom Atomic Energy Authority,27/04/2015,PLANT & EQUIPMENT,FUSION,EDMUNDSON ELECTRICALS LTD,5100320687,"2,302.04"
United Kingdom Atomic Energy Authority,United Kingdom Atomic Energy Authority,18/05/2015,PLANT & EQUIPMENT,FUSION,EDMUNDSON ELECTRICALS LTD,5100321693,"7,236.98"
United Kingdom Atomic Energy Authority,United Kingdom Atomic Energy Authority,11/05/2015,PLANT & EQUIPMENT,FUSION,EDWARDS LIMITED,5100321304,115.60
United Kingdom Atomic Energy Authority,United Kingdom Atomic Energy Authority,29/04/2015,PLANT & EQUIPMENT,FUSION,EDWARDS LIMITED,5100320491,210.20
United Kingdom Atomic Energy Authority,United Kingdom Atomic Energy Authority,27/04/2015,F&F,SUPPORT SERVICES,EFG MATTHEWS OFFICE FURNITURE LTD,5100320807,894.00
United Kingdom Atomic Energy Authority,United Kingdom Atomic Energy Authority,13/05/2015,MATERIALS & SPARES,FUSION,EG Carter and Company Ltd,5100321432,"179,300.48"
United Kingdom Atomic Energy Authority,United Kingdom Atomic Energy Authority,13/05/2015,MATERIALS & SPARES,SUPPORT SERVICES,EGNYTE INC,5100321280,"2,958.00"
United Kingdom Atomic Energy Authority,United Kingdom Atomic Energy Authority,11/05/2015,PROFESSIONAL SERVICES,FUSION,ELECTRIC STUDIO LTD,5100321421,"1,446.89"
United Kingdom Atomic Energy Authority,United Kingdom Atomic Energy Authority,13/05/2015,REPAIRS & MAINTENANCE,FUSION,ELVA-1,5100321422,"1,952.84"
United Kingdom Atomic Energy Authority,United Kingdom Atomic Energy Authority,02/05/2015,MILEAGE ALLOWANCE,FUSION,EMPLOYEE EXPENSES,100766994,99.00
United Kingdom Atomic Energy Authority,United Kingdom Atomic Energy Authority,02/05/2015,SUBSISTENCE,FUSION,EMPLOYEE EXPENSES,100766995,67.50
United Kingdom Atomic Energy Authority,United Kingdom Atomic Energy Authority,02/05/2015,PROFESSIONAL SUBSCRIPTION,SUPPORT SERVICES,EMPLOYEE EXPENSES,100766996,135.00
United Kingdom Atomic Energy Authority,United Kingdom Atomic Energy Authority,02/05/2015,MILEAGE ALLOWANCE,FUSION,EMPLOYEE EXPENSES,100766997,7.20
United Kingdom Atomic Energy Authority,United Kingdom Atomic Energy Authority,02/05/2015,ROAD TRAVEL,FUSION,EMPLOYEE EXPENSES,100766998,6.20
United Kingdom Atomic Energy Authority,United Kingdom Atomic Energy Authority,02/05/2015,SUBSISTENCE,FUSION,EMPLOYEE EXPENSES,100766999,511.44
United Kingdom Atomic Energy Authority,United Kingdom Atomic Energy Authority,02/05/2015,SUBSISTENCE,FUSION,EMPLOYEE EXPENSES,100767000,8.58
United Kingdom Atomic Energy Authority,United Kingdom Atomic Energy Authority,02/05/2015,SUBSISTENCE,FUSION,EMPLOYEE EXPENSES,100767000,54.00
United Kingdom Atomic Energy Authority,United Kingdom Atomic Energy Authority,02/05/2015,TAXIS,FUSION,EMPLOYEE EXPENSES,100767001,42.45
United Kingdom Atomic Energy Authority,United Kingdom Atomic Energy Authority,02/05/2015,TAXIS,FUSION,EMPLOYEE EXPENSES,100767001,54.00
United Kingdom Atomic Energy Authority,United Kingdom Atomic Energy Authority,02/05/2015,TAXIS,FUSION,EMPLOYEE EXPENSES,100767001,129.90
United Kingdom Atomic Energy Authority,United Kingdom Atomic Energy Authority,02/05/2015,TAXIS,FUSION,EMPLOYEE EXPENSES,100767001,742.05
United Kingdom Atomic Energy Authority,United Kingdom Atomic Energy Authority,02/05/2015,SUBSISTENCE,SUPPORT SERVICES,EMPLOYEE EXPENSES,100767002,4.00
United Kingdom Atomic Energy Authority,United Kingdom Atomic Energy Authority,02/05/2015,SUBSISTENCE,SUPPORT SERVICES,EMPLOYEE EXPENSES,100767002,4.75
United Kingdom Atomic Energy Authority,United Kingdom Atomic Energy Authority,02/05/2015,SUBSISTENCE,SUPPORT SERVICES,EMPLOYEE EXPENSES,100767002,12.60
United Kingdom Atomic Energy Authority,United Kingdom Atomic Energy Authority,02/05/2015,MILEAGE ALLOWANCE,SUPPORT SERVICES,EMPLOYEE EXPENSES,100767003,0.67
United Kingdom Atomic Energy Authority,United Kingdom Atomic Energy Authority,02/05/2015,MILEAGE ALLOWANCE,SUPPORT SERVICES,EMPLOYEE EXPENSES,100767003,0.70
United Kingdom Atomic Energy Authority,United Kingdom Atomic Energy Authority,02/05/2015,MILEAGE ALLOWANCE,SUPPORT SERVICES,EMPLOYEE EXPENSES,100767003,0.74
United Kingdom Atomic Energy Authority,United Kingdom Atomic Energy Authority,02/05/2015,MILEAGE ALLOWANCE,SUPPORT SERVICES,EMPLOYEE EXPENSES,100767003,1.20
United Kingdom Atomic Energy Authority,United Kingdom Atomic Energy Authority,02/05/2015,MILEAGE ALLOWANCE,SUPPORT SERVICES,EMPLOYEE EXPENSES,100767003,2.03
United Kingdom Atomic Energy Authority,United Kingdom Atomic Energy Authority,02/05/2015,MILEAGE ALLOWANCE,SUPPORT SERVICES,EMPLOYEE EXPENSES,100767003,2.10
United Kingdom Atomic Energy Authority,United Kingdom Atomic Energy Authority,02/05/2015,MILEAGE ALLOWANCE,SUPPORT SERVICES,EMPLOYEE EXPENSES,100767003,2.26
United Kingdom Atomic Energy Authority,United Kingdom Atomic Energy Authority,02/05/2015,MILEAGE ALLOWANCE,SUPPORT SERVICES,EMPLOYEE EXPENSES,100767003,3.33
United Kingdom Atomic Energy Authority,United Kingdom Atomic Energy Authority,02/05/2015,MILEAGE ALLOWANCE,SUPPORT SERVICES,EMPLOYEE EXPENSES,100767003,3.60
United Kingdom Atomic Energy Authority,United Kingdom Atomic Energy Authority,02/05/2015,MILEAGE ALLOWANCE,SUPPORT SERVICES,EMPLOYEE EXPENSES,100767003,9.97
United Kingdom Atomic Energy Authority,United Kingdom Atomic Energy Authority,02/05/2015,MILEAGE ALLOWANCE,SUPPORT SERVICES,EMPLOYEE EXPENSES,100767003,37.48
United Kingdom Atomic Energy Authority,United Kingdom Atomic Energy Authority,02/05/2015,MILEAGE ALLOWANCE,SUPPORT SERVICES,EMPLOYEE EXPENSES,100767003,112.48
United Kingdom Atomic Energy Authority,United Kingdom Atomic Energy Authority,02/05/2015,MILEAGE ALLOWANCE,SUPPORT SERVICES,EMPLOYEE EXPENSES,100767004,157.50
United Kingdom Atomic Energy Authority,United Kingdom Atomic Energy Authority,02/05/2015,ROAD TRAVEL,FUSION,EMPLOYEE EXPENSES,100767005,11.00
United Kingdom Atomic Energy Authority,United Kingdom Atomic Energy Authority,02/05/2015,ROAD TRAVEL,FUSION,EMPLOYEE EXPENSES,100767005,142.20
United Kingdom Atomic Energy Authority,United Kingdom Atomic Energy Authority,02/05/2015,PROFESSIONAL SUBSCRIPTION,FUSION,EMPLOYEE EXPENSES,100767006,161.00
United Kingdom Atomic Energy Authority,United Kingdom Atomic Energy Authority,02/05/2015,PROFESSIONAL SUBSCRIPTION,FUSION,EMPLOYEE EXPENSES,100767007,208.20
United Kingdom Atomic Energy Authority,United Kingdom Atomic Energy Authority,02/05/2015,PROFESSIONAL SUBSCRIPTION,SUPPORT SERVICES,EMPLOYEE EXPENSES,100767008,170.34
United Kingdom Atomic Energy Authority,United Kingdom Atomic Energy Authority,02/05/2015,SUBSISTENCE,SUPPORT SERVICES,EMPLOYEE EXPENSES,100767009,1.00
United Kingdom Atomic Energy Authority,United Kingdom Atomic Energy Authority,02/05/2015,SUBSISTENCE,SUPPORT SERVICES,EMPLOYEE EXPENSES,100767009,2.92
United Kingdom Atomic Energy Authority,United Kingdom Atomic Energy Authority,02/05/2015,SUBSISTENCE,SUPPORT SERVICES,EMPLOYEE EXPENSES,100767009,37.90
United Kingdom Atomic Energy Authority,United Kingdom Atomic Energy Authority,02/05/2015,SUBSISTENCE,SUPPORT SERVICES,EMPLOYEE EXPENSES,100767009,55.80
United Kingdom Atomic Energy Authority,United Kingdom Atomic Energy Authority,02/05/2015,MILEAGE ALLOWANCE,FUSION,EMPLOYEE EXPENSES,100767010,6.75
United Kingdom Atomic Energy Authority,United Kingdom Atomic Energy Authority,02/05/2015,MILEAGE ALLOWANCE,FUSION,EMPLOYEE EXPENSES,100767010,157.17
United Kingdom Atomic Energy Authority,United Kingdom Atomic Energy Authority,02/05/2015,SUBSISTENCE,FUSION,EMPLOYEE EXPENSES,100767011,8.00
United Kingdom Atomic Energy Authority,United Kingdom Atomic Energy Authority,02/05/2015,SUBSISTENCE,FUSION,EMPLOYEE EXPENSES,100767011,74.50
United Kingdom Atomic Energy Authority,United Kingdom Atomic Energy Authority,02/05/2015,SUBSISTENCE,FUSION,EMPLOYEE EXPENSES,100767011,102.60
United Kingdom Atomic Energy Authority,United Kingdom Atomic Energy Authority,02/05/2015,MILEAGE ALLOWANCE,FUSION,EMPLOYEE EXPENSES,100767012,9.90
United Kingdom Atomic Energy Authority,United Kingdom Atomic Energy Authority,02/05/2015,SUBSISTENCE,FUSION,EMPLOYEE EXPENSES,100767013,7.33
United Kingdom Atomic Energy Authority,United Kingdom Atomic Energy Authority,02/05/2015,MILEAGE ALLOWANCE,FUSION,EMPLOYEE EXPENSES,100767014,54.90
United Kingdom Atomic Energy Authority,United Kingdom Atomic Energy Authority,02/05/2015,EFDA TRAVEL EXPENSES,FUSION,VISITOR EXPENSES,100767015,639.23
United Kingdom Atomic Energy Authority,United Kingdom Atomic Energy Authority,02/05/2015,EFDA TRAVEL EXPENSES,FUSION,VISITOR EXPENSES,100767016,193.28
United Kingdom Atomic Energy Authority,United Kingdom Atomic Energy Authority,02/05/2015,SUBSISTENCE,FUSION,EMPLOYEE EXPENSES,100767017,2.59
United Kingdom Atomic Energy Authority,United Kingdom Atomic Energy Authority,02/05/2015,SUBSISTENCE,FUSION,EMPLOYEE EXPENSES,100767017,23.22
United Kingdom Atomic Energy Authority,United Kingdom Atomic Energy Authority,02/05/2015,SUBSISTENCE,FUSION,EMPLOYEE EXPENSES,100767018,4.15
United Kingdom Atomic Energy Authority,United Kingdom Atomic Energy Authority,02/05/2015,SUBSISTENCE,FUSION,EMPLOYEE EXPENSES,100767018,8.75
United Kingdom Atomic Energy Authority,United Kingdom Atomic Energy Authority,02/05/2015,SUBSISTENCE,FUSION,EMPLOYEE EXPENSES,100767018,13.86
United Kingdom Atomic Energy Authority,United Kingdom Atomic Energy Authority,02/05/2015,SUBSISTENCE,FUSION,EMPLOYEE EXPENSES,100767018,33.81
United Kingdom Atomic Energy Authority,United Kingdom Atomic Energy Authority,02/05/2015,SUBSISTENCE,FUSION,EMPLOYEE EXPENSES,100767018,65.25
United Kingdom Atomic Energy Authority,United Kingdom Atomic Energy Authority,02/05/2015,SUBSISTENCE,FUSION,EMPLOYEE EXPENSES,100767018,515.43
United Kingdom Atomic Energy Authority,United Kingdom Atomic Energy Authority,02/05/2015,OTHER EMPLOYEE EXPENSES,FUSION,EMPLOYEE EXPENSES,100767019,3.00
United Kingdom Atomic Energy Authority,United Kingdom Atomic Energy Authority,02/05/2015,OTHER EMPLOYEE EXPENSES,FUSION,EMPLOYEE EXPENSES,100767019,10.46
United Kingdom Atomic Energy Authority,United Kingdom Atomic Energy Authority,02/05/2015,OTHER EMPLOYEE EXPENSES,FUSION,EMPLOYEE EXPENSES,100767019,14.00
United Kingdom Atomic Energy Authority,United Kingdom Atomic Energy Authority,02/05/2015,OTHER EMPLOYEE EXPENSES,FUSION,EMPLOYEE EXPENSES,100767019,27.00
United Kingdom Atomic Energy Authority,United Kingdom Atomic Energy Authority,02/05/2015,OTHER EMPLOYEE EXPENSES,FUSION,EMPLOYEE EXPENSES,100767019,54.13
United Kingdom Atomic Energy Authority,United Kingdom Atomic Energy Authority,02/05/2015,OTHER EMPLOYEE EXPENSES,FUSION,EMPLOYEE EXPENSES,100767019,149.49
United Kingdom Atomic Energy Authority,United Kingdom Atomic Energy Authority,02/05/2015,SUBSISTENCE,FUSION,EMPLOYEE EXPENSES,100767020,5.00
United Kingdom Atomic Energy Authority,United Kingdom Atomic Energy Authority,02/05/2015,SUBSISTENCE,FUSION,EMPLOYEE EXPENSES,100767020,30.67
United Kingdom Atomic Energy Authority,United Kingdom Atomic Energy Authority,02/05/2015,SUBSISTENCE,FUSION,EMPLOYEE EXPENSES,100767020,86.37
United Kingdom Atomic Energy Authority,United Kingdom Atomic Energy Authority,02/05/2015,SUBSISTENCE,FUSION,EMPLOYEE EXPENSES,100767021,31.67
United Kingdom Atomic Energy Authority,United Kingdom Atomic Energy Authority,02/05/2015,ROAD TRAVEL,FUSION,EMPLOYEE EXPENSES,100767022,3.00
United Kingdom Atomic Energy Authority,United Kingdom Atomic Energy Authority,02/05/2015,ROAD TRAVEL,FUSION,EMPLOYEE EXPENSES,100767022,69.75
United Kingdom Atomic Energy Authority,United Kingdom Atomic Energy Authority,02/05/2015,ROAD TRAVEL,FUSION,EMPLOYEE EXPENSES,100767023,3.00
United Kingdom Atomic Energy Authority,United Kingdom Atomic Energy Authority,02/05/2015,ROAD TRAVEL,FUSION,EMPLOYEE EXPENSES,100767023,69.75
United Kingdom Atomic Energy Authority,United Kingdom Atomic Energy Authority,02/05/2015,ROAD TRAVEL,FUSION,EMPLOYEE EXPENSES,100767024,3.00
United Kingdom Atomic Energy Authority,United Kingdom Atomic Energy Authority,02/05/2015,ROAD TRAVEL,FUSION,EMPLOYEE EXPENSES,100767024,69.75
United Kingdom Atomic Energy Authority,United Kingdom Atomic Energy Authority,02/05/2015,OTHER EMPLOYEE EXPENSES,FUSION,EMPLOYEE EXPENSES,100767025,7.96
United Kingdom Atomic Energy Authority,United Kingdom Atomic Energy Authority,02/05/2015,OTHER EMPLOYEE EXPENSES,FUSION,EMPLOYEE EXPENSES,100767025,10.54
United Kingdom Atomic Energy Authority,United Kingdom Atomic Energy Authority,02/05/2015,OTHER EMPLOYEE EXPENSES,FUSION,EMPLOYEE EXPENSES,100767025,36.02
United Kingdom Atomic Energy Authority,United Kingdom Atomic Energy Authority,02/05/2015,OTHER EMPLOYEE EXPENSES,FUSION,EMPLOYEE EXPENSES,100767025,151.23
United Kingdom Atomic Energy Authority,United Kingdom Atomic Energy Authority,02/05/2015,SUBSISTENCE,FUSION,EMPLOYEE EXPENSES,100767026,10.00
United Kingdom Atomic Energy Authority,United Kingdom Atomic Energy Authority,02/05/2015,SUBSISTENCE,FUSION,EMPLOYEE EXPENSES,100767026,45.10
United Kingdom Atomic Energy Authority,United Kingdom Atomic Energy Authority,02/05/2015,ROAD TRAVEL,FUSION,EMPLOYEE EXPENSES,100767026,67.50
United Kingdom Atomic Energy Authority,United Kingdom Atomic Energy Authority,02/05/2015,SUBSISTENCE,FUSION,EMPLOYEE EXPENSES,100767026,177.70
United Kingdom Atomic Energy Authority,United Kingdom Atomic Energy Authority,02/05/2015,SUBSISTENCE,FUSION,EMPLOYEE EXPENSES,100767027,5.00
United Kingdom Atomic Energy Authority,United Kingdom Atomic Energy Authority,02/05/2015,SUBSISTENCE,FUSION,EMPLOYEE EXPENSES,100767027,54.00
United Kingdom Atomic Energy Authority,United Kingdom Atomic Energy Authority,02/05/2015,SUBSISTENCE,FUSION,EMPLOYEE EXPENSES,100767028,5.62
United Kingdom Atomic Energy Authority,United Kingdom Atomic Energy Authority,02/05/2015,SUBSISTENCE,FUSION,EMPLOYEE EXPENSES,100767028,13.65
United Kingdom Atomic Energy Authority,United Kingdom Atomic Energy Authority,02/05/2015,SUBSISTENCE,FUSION,EMPLOYEE EXPENSES,100767028,162.96
United Kingdom Atomic Energy Authority,United Kingdom Atomic Energy Authority,02/05/2015,SUBSISTENCE,FUSION,EMPLOYEE EXPENSES,100767028,212.84
United Kingdom Atomic Energy Authority,United Kingdom Atomic Energy Authority,02/05/2015,OTHER EMPLOYEE EXPENSES,FUSION,EMPLOYEE EXPENSES,100767029,95.00
United Kingdom Atomic Energy Authority,United Kingdom Atomic Energy Authority,02/05/2015,MILEAGE ALLOWANCE,SUPPORT SERVICES,EMPLOYEE EXPENSES,100767030,96.30
United Kingdom Atomic Energy Authority,United Kingdom Atomic Energy Authority,02/05/2015,TAXIS,SUPPORT SERVICES,EMPLOYEE EXPENSES,100767031,12.00
United Kingdom Atomic Energy Authority,United Kingdom Atomic Energy Authority,02/05/2015,MILEAGE ALLOWANCE,SUPPORT SERVICES,EMPLOYEE EXPENSES,100767031,67.50
United Kingdom Atomic Energy Authority,United Kingdom Atomic Energy Authority,02/05/2015,RAIL TRAVEL,FUSION,EMPLOYEE EXPENSES,100767032,6.00
United Kingdom Atomic Energy Authority,United Kingdom Atomic Energy Authority,02/05/2015,RAIL TRAVEL,FUSION,EMPLOYEE EXPENSES,100767032,13.89
United Kingdom Atomic Energy Authority,United Kingdom Atomic Energy Authority,02/05/2015,RAIL TRAVEL,FUSION,EMPLOYEE EXPENSES,100767032,24.00
United Kingdom Atomic Energy Authority,United Kingdom Atomic Energy Authority,02/05/2015,RAIL TRAVEL,FUSION,EMPLOYEE EXPENSES,100767032,33.56
United Kingdom Atomic Energy Authority,United Kingdom Atomic Energy Authority,02/05/2015,RAIL TRAVEL,FUSION,EMPLOYEE EXPENSES,100767032,208.83
United Kingdom Atomic Energy Authority,United Kingdom Atomic Energy Authority,02/05/2015,SUBSISTENCE,FUSION,EMPLOYEE EXPENSES,100767033,5.00
United Kingdom Atomic Energy Authority,United Kingdom Atomic Energy Authority,02/05/2015,SUBSISTENCE,FUSION,EMPLOYEE EXPENSES,100767033,15.40
United Kingdom Atomic Energy Authority,United Kingdom Atomic Energy Authority,02/05/2015,SUBSISTENCE,FUSION,EMPLOYEE EXPENSES,100767033,143.10
United Kingdom Atomic Energy Authority,United Kingdom Atomic Energy Authority,02/05/2015,SUBSISTENCE,FUSION,EMPLOYEE EXPENSES,100767034,1.40
United Kingdom Atomic Energy Authority,United Kingdom Atomic Energy Authority,02/05/2015,SUBSISTENCE,FUSION,EMPLOYEE EXPENSES,100767034,3.04
United Kingdom Atomic Energy Authority,United Kingdom Atomic Energy Authority,02/05/2015,SUBSISTENCE,FUSION,EMPLOYEE EXPENSES,100767034,72.00
United Kingdom Atomic Energy Authority,United Kingdom Atomic Energy Authority,02/05/2015,SUBSISTENCE,FUSION,EMPLOYEE EXPENSES,100767035,9.08
United Kingdom Atomic Energy Authority,United Kingdom Atomic Energy Authority,02/05/2015,SUBSISTENCE,FUSION,EMPLOYEE EXPENSES,100767035,20.00
United Kingdom Atomic Energy Authority,United Kingdom Atomic Energy Authority,02/05/2015,SUBSISTENCE,FUSION,EMPLOYEE EXPENSES,100767035,21.66
United Kingdom Atomic Energy Authority,United Kingdom Atomic Energy Authority,02/05/2015,SUBSISTENCE,FUSION,EMPLOYEE EXPENSES,100767035,23.00
United Kingdom Atomic Energy Authority,United Kingdom Atomic Energy Authority,02/05/2015,SUBSISTENCE,FUSION,EMPLOYEE EXPENSES,100767036,2.87
United Kingdom Atomic Energy Authority,United Kingdom Atomic Energy Authority,02/05/2015,SUBSISTENCE,FUSION,EMPLOYEE EXPENSES,100767036,15.24
United Kingdom Atomic Energy Authority,United Kingdom Atomic Energy Authority,02/05/2015,SUBSISTENCE,FUSION,EMPLOYEE EXPENSES,100767036,35.20
United Kingdom Atomic Energy Authority,United Kingdom Atomic Energy Authority,02/05/2015,SUBSISTENCE,FUSION,EMPLOYEE EXPENSES,100767036,435.31
United Kingdom Atomic Energy Authority,United Kingdom Atomic Energy Authority,02/05/2015,MILEAGE ALLOWANCE,FUSION,EMPLOYEE EXPENSES,100767037,22.50
United Kingdom Atomic Energy Authority,United Kingdom Atomic Energy Authority,02/05/2015,MILEAGE ALLOWANCE,FUSION,EMPLOYEE EXPENSES,100767038,24.30
United Kingdom Atomic Energy Authority,United Kingdom Atomic Energy Authority,02/05/2015,SUBSISTENCE,FUSION,EMPLOYEE EXPENSES,100767039,6.74
United Kingdom Atomic Energy Authority,United Kingdom Atomic Energy Authority,02/05/2015,OTHER EMPLOYEE EXPENSES,FUSION,EMPLOYEE EXPENSES,100767040,3.75
United Kingdom Atomic Energy Authority,United Kingdom Atomic Energy Authority,02/05/2015,OTHER EMPLOYEE EXPENSES,FUSION,EMPLOYEE EXPENSES,100767040,6.00
United Kingdom Atomic Energy Authority,United Kingdom Atomic Energy Authority,02/05/2015,OTHER EMPLOYEE EXPENSES,FUSION,EMPLOYEE EXPENSES,100767040,38.11
United Kingdom Atomic Energy Authority,United Kingdom Atomic Energy Authority,02/05/2015,OTHER EMPLOYEE EXPENSES,FUSION,EMPLOYEE EXPENSES,100767040,43.00
United Kingdom Atomic Energy Authority,United Kingdom Atomic Energy Authority,02/05/2015,OTHER EMPLOYEE EXPENSES,FUSION,EMPLOYEE EXPENSES,100767040,212.51
United Kingdom Atomic Energy Authority,United Kingdom Atomic Energy Authority,02/05/2015,ROAD TRAVEL,FUSION,EMPLOYEE EXPENSES,100767041,4.00
United Kingdom Atomic Energy Authority,United Kingdom Atomic Energy Authority,02/05/2015,ROAD TRAVEL,FUSION,EMPLOYEE EXPENSES,100767041,4.35
United Kingdom Atomic Energy Authority,United Kingdom Atomic Energy Authority,02/05/2015,SUBSISTENCE,FUSION,EMPLOYEE EXPENSES,100767042,26.81
United Kingdom Atomic Energy Authority,United Kingdom Atomic Energy Authority,02/05/2015,SUBSISTENCE,FUSION,EMPLOYEE EXPENSES,100767042,80.83
United Kingdom Atomic Energy Authority,United Kingdom Atomic Energy Authority,02/05/2015,SUBSISTENCE,FUSION,EMPLOYEE EXPENSES,100767042,123.07
United Kingdom Atomic Energy Authority,United Kingdom Atomic Energy Authority,02/05/2015,ROAD TRAVEL,FUSION,EMPLOYEE EXPENSES,100767043,28.39
United Kingdom Atomic Energy Authority,United Kingdom Atomic Energy Authority,02/05/2015,ROAD TRAVEL,FUSION,EMPLOYEE EXPENSES,100767043,31.00
United Kingdom Atomic Energy Authority,United Kingdom Atomic Energy Authority,02/05/2015,ROAD TRAVEL,FUSION,EMPLOYEE EXPENSES,100767043,278.07
United Kingdom Atomic Energy Authority,United Kingdom Atomic Energy Authority,02/05/2015,SUBSISTENCE,FUSION,EMPLOYEE EXPENSES,100767044,2.74
United Kingdom Atomic Energy Authority,United Kingdom Atomic Energy Authority,02/05/2015,SUBSISTENCE,FUSION,EMPLOYEE EXPENSES,100767045,5.00
United Kingdom Atomic Energy Authority,United Kingdom Atomic Energy Authority,02/05/2015,SUBSISTENCE,FUSION,EMPLOYEE EXPENSES,100767045,84.37
United Kingdom Atomic Energy Authority,United Kingdom Atomic Energy Authority,02/05/2015,MILEAGE ALLOWANCE,FUSION,EMPLOYEE EXPENSES,100767046,22.08
United Kingdom Atomic Energy Authority,United Kingdom Atomic Energy Authority,02/05/2015,ROAD TRAVEL,SUPPORT SERVICES,EMPLOYEE EXPENSES,100767047,16.25
United Kingdom Atomic Energy Authority,United Kingdom Atomic Energy Authority,02/05/2015,ROAD TRAVEL,SUPPORT SERVICES,EMPLOYEE EXPENSES,100767047,133.20
United Kingdom Atomic Energy Authority,United Kingdom Atomic Energy Authority,09/05/2015,SUBSISTENCE,FUSION,EMPLOYEE EXPENSES,100767071,25.70
United Kingdom Atomic Energy Authority,United Kingdom Atomic Energy Authority,09/05/2015,SUBSISTENCE,FUSION,EMPLOYEE EXPENSES,100767071,41.00
United Kingdom Atomic Energy Authority,United Kingdom Atomic Energy Authority,09/05/2015,SUBSISTENCE,FUSION,EMPLOYEE EXPENSES,100767071,206.98
United Kingdom Atomic Energy Authority,United Kingdom Atomic Energy Authority,09/05/2015,SUBSISTENCE,FUSION,EMPLOYEE EXPENSES,100767072,4.17
United Kingdom Atomic Energy Authority,United Kingdom Atomic Energy Authority,09/05/2015,ROAD TRAVEL,FUSION,EMPLOYEE EXPENSES,100767073,29.00
United Kingdom Atomic Energy Authority,United Kingdom Atomic Energy Authority,09/05/2015,ROAD TRAVEL,FUSION,EMPLOYEE EXPENSES,100767073,30.00
United Kingdom Atomic Energy Authority,United Kingdom Atomic Energy Authority,09/05/2015,ROAD TRAVEL,FUSION,EMPLOYEE EXPENSES,100767073,33.10
United Kingdom Atomic Energy Authority,United Kingdom Atomic Energy Authority,09/05/2015,ROAD TRAVEL,FUSION,EMPLOYEE EXPENSES,100767073,74.24
United Kingdom Atomic Energy Authority,United Kingdom Atomic Energy Authority,09/05/2015,ROAD TRAVEL,FUSION,EMPLOYEE EXPENSES,100767073,478.90
United Kingdom Atomic Energy Authority,United Kingdom Atomic Energy Authority,09/05/2015,ROAD TRAVEL,FUSION,EMPLOYEE EXPENSES,100767074,25.19
United Kingdom Atomic Energy Authority,United Kingdom Atomic Energy Authority,09/05/2015,ROAD TRAVEL,FUSION,EMPLOYEE EXPENSES,100767074,259.51
United Kingdom Atomic Energy Authority,United Kingdom Atomic Energy Authority,09/05/2015,SUBSISTENCE,FUSION,EMPLOYEE EXPENSES,100767075,4.83
United Kingdom Atomic Energy Authority,United Kingdom Atomic Energy Authority,09/05/2015,SUBSISTENCE,FUSION,EMPLOYEE EXPENSES,100767075,5.00
United Kingdom Atomic Energy Authority,United Kingdom Atomic Energy Authority,09/05/2015,PROFESSIONAL SUBSCRIPTION,FUSION,EMPLOYEE EXPENSES,100767076,105.00
United Kingdom Atomic Energy Authority,United Kingdom Atomic Energy Authority,09/05/2015,EFDA TRAVEL EXPENSES,FUSION,VISITOR EXPENSES,100767077,283.14
United Kingdom Atomic Energy Authority,United Kingdom Atomic Energy Authority,09/05/2015,EFDA TRAVEL EXPENSES,FUSION,VISITOR EXPENSES,100767078,120.74
United Kingdom Atomic Energy Authority,United Kingdom Atomic Energy Authority,09/05/2015,ROAD TRAVEL,FUSION,EMPLOYEE EXPENSES,100767079,9.30
United Kingdom Atomic Energy Authority,United Kingdom Atomic Energy Authority,09/05/2015,ROAD TRAVEL,FUSION,EMPLOYEE EXPENSES,100767079,15.00
United Kingdom Atomic Energy Authority,United Kingdom Atomic Energy Authority,09/05/2015,ROAD TRAVEL,FUSION,EMPLOYEE EXPENSES,100767079,27.00
United Kingdom Atomic Energy Authority,United Kingdom Atomic Energy Authority,09/05/2015,ROAD TRAVEL,FUSION,EMPLOYEE EXPENSES,100767079,184.23
United Kingdom Atomic Energy Authority,United Kingdom Atomic Energy Authority,09/05/2015,EFDA TRAVEL EXPENSES,FUSION,VISITOR EXPENSES,100767080,778.19
United Kingdom Atomic Energy Authority,United Kingdom Atomic Energy Authority,09/05/2015,PROFESSIONAL SUBSCRIPTION,FUSION,EMPLOYEE EXPENSES,100767081,69.40
United Kingdom Atomic Energy Authority,United Kingdom Atomic Energy Authority,09/05/2015,PROFESSIONAL SUBSCRIPTION,FUSION,EMPLOYEE EXPENSES,100767082,50.00
United Kingdom Atomic Energy Authority,United Kingdom Atomic Energy Authority,09/05/2015,OTHER EMPLOYEE EXPENSES,FUSION,EMPLOYEE EXPENSES,100767083,3.00
United Kingdom Atomic Energy Authority,United Kingdom Atomic Energy Authority,09/05/2015,OTHER EMPLOYEE EXPENSES,FUSION,EMPLOYEE EXPENSES,100767083,26.31
United Kingdom Atomic Energy Authority,United Kingdom Atomic Energy Authority,09/05/2015,OTHER EMPLOYEE EXPENSES,FUSION,EMPLOYEE EXPENSES,100767083,158.81
United Kingdom Atomic Energy Authority,United Kingdom Atomic Energy Authority,09/05/2015,BUSINESS ENTERTAINMENT,FUSION,EMPLOYEE EXPENSES,100767084,223.57
United Kingdom Atomic Energy Authority,United Kingdom Atomic Energy Authority,09/05/2015,EFDA TRAVEL EXPENSES,FUSION,VISITOR EXPENSES,100767085,370.69
United Kingdom Atomic Energy Authority,United Kingdom Atomic Energy Authority,09/05/2015,SUBSISTENCE,FUSION,EMPLOYEE EXPENSES,100767086,3.90
United Kingdom Atomic Energy Authority,United Kingdom Atomic Energy Authority,09/05/2015,SUBSISTENCE,FUSION,EMPLOYEE EXPENSES,100767086,31.94
United Kingdom Atomic Energy Authority,United Kingdom Atomic Energy Authority,09/05/2015,PROFESSIONAL SUBSCRIPTION,FUSION,EMPLOYEE EXPENSES,100767087,342.00
United Kingdom Atomic Energy Authority,United Kingdom Atomic Energy Authority,09/05/2015,RELOCATION COSTS,FUSION,EMPLOYEE EXPENSES,100767088,"1,191.12"
United Kingdom Atomic Energy Authority,United Kingdom Atomic Energy Authority,09/05/2015,PROFESSIONAL SUBSCRIPTION,FUSION,EMPLOYEE EXPENSES,100767089,38.00
United Kingdom Atomic Energy Authority,United Kingdom Atomic Energy Authority,09/05/2015,TAXIS,FUSION,EMPLOYEE EXPENSES,100767090,2.88
United Kingdom Atomic Energy Authority,United Kingdom Atomic Energy Authority,09/05/2015,TAXIS,FUSION,EMPLOYEE EXPENSES,100767090,7.47
United Kingdom Atomic Energy Authority,United Kingdom Atomic Energy Authority,09/05/2015,TAXIS,FUSION,EMPLOYEE EXPENSES,100767090,732.17
United Kingdom Atomic Energy Authority,United Kingdom Atomic Energy Authority,09/05/2015,SUBSISTENCE,FUSION,EMPLOYEE EXPENSES,100767091,10.67
United Kingdom Atomic Energy Authority,United Kingdom Atomic Energy Authority,09/05/2015,TAXIS,FUSION,EMPLOYEE EXPENSES,100767092,28.00
United Kingdom Atomic Energy Authority,United Kingdom Atomic Energy Authority,16/05/2015,MILEAGE ALLOWANCE,FUSION,EMPLOYEE EXPENSES,100767150,7.20
United Kingdom Atomic Energy Authority,United Kingdom Atomic Energy Authority,16/05/2015,MILEAGE ALLOWANCE,FUSION,EMPLOYEE EXPENSES,100767151,7.20
United Kingdom Atomic Energy Authority,United Kingdom Atomic Energy Authority,16/05/2015,SUBSISTENCE,FUSION,EMPLOYEE EXPENSES,100767152,8.62
United Kingdom Atomic Energy Authority,United Kingdom Atomic Energy Authority,16/05/2015,OTHER EMPLOYEE EXPENSES,FUSION,EMPLOYEE EXPENSES,100767153,6.03
United Kingdom Atomic Energy Authority,United Kingdom Atomic Energy Authority,16/05/2015,OTHER EMPLOYEE EXPENSES,FUSION,EMPLOYEE EXPENSES,100767153,10.56
United Kingdom Atomic Energy Authority,United Kingdom Atomic Energy Authority,16/05/2015,OTHER EMPLOYEE EXPENSES,FUSION,EMPLOYEE EXPENSES,100767153,12.93
United Kingdom Atomic Energy Authority,United Kingdom Atomic Energy Authority,16/05/2015,OTHER EMPLOYEE EXPENSES,FUSION,EMPLOYEE EXPENSES,100767153,135.43
United Kingdom Atomic Energy Authority,United Kingdom Atomic Energy Authority,16/05/2015,OTHER EMPLOYEE EXPENSES,FUSION,EMPLOYEE EXPENSES,100767154,4.77
United Kingdom Atomic Energy Authority,United Kingdom Atomic Energy Authority,16/05/2015,OTHER EMPLOYEE EXPENSES,FUSION,EMPLOYEE EXPENSES,100767154,6.00
United Kingdom Atomic Energy Authority,United Kingdom Atomic Energy Authority,16/05/2015,OTHER EMPLOYEE EXPENSES,FUSION,EMPLOYEE EXPENSES,100767154,11.68
United Kingdom Atomic Energy Authority,United Kingdom Atomic Energy Authority,16/05/2015,OTHER EMPLOYEE EXPENSES,FUSION,EMPLOYEE EXPENSES,100767154,242.76
United Kingdom Atomic Energy Authority,United Kingdom Atomic Energy Authority,16/05/2015,AIR TRAVEL,FUSION,EMPLOYEE EXPENSES,100767155,884.71
United Kingdom Atomic Energy Authority,United Kingdom Atomic Energy Authority,16/05/2015,CAR HIRE,FUSION,EMPLOYEE EXPENSES,100767156,252.84
United Kingdom Atomic Energy Authority,United Kingdom Atomic Energy Authority,16/05/2015,ROAD TRAVEL,FUSION,EMPLOYEE EXPENSES,100767157,35.20
United Kingdom Atomic Energy Authority,United Kingdom Atomic Energy Authority,16/05/2015,ROAD TRAVEL,FUSION,EMPLOYEE EXPENSES,100767157,224.30
United Kingdom Atomic Energy Authority,United Kingdom Atomic Energy Authority,16/05/2015,ROAD TRAVEL,FUSION,EMPLOYEE EXPENSES,100767157,485.44
United Kingdom Atomic Energy Authority,United Kingdom Atomic Energy Authority,16/05/2015,RAIL TRAVEL,FUSION,EMPLOYEE EXPENSES,100767158,8.52
United Kingdom Atomic Energy Authority,United Kingdom Atomic Energy Authority,16/05/2015,RAIL TRAVEL,FUSION,EMPLOYEE EXPENSES,100767158,"1,357.00"
United Kingdom Atomic Energy Authority,United Kingdom Atomic Energy Authority,16/05/2015,OTHER EMPLOYEE EXPENSES,FUSION,EMPLOYEE EXPENSES,100767159,3.00
United Kingdom Atomic Energy Authority,United Kingdom Atomic Energy Authority,16/05/2015,OTHER EMPLOYEE EXPENSES,FUSION,EMPLOYEE EXPENSES,100767159,10.64
United Kingdom Atomic Energy Authority,United Kingdom Atomic Energy Authority,16/05/2015,OTHER EMPLOYEE EXPENSES,FUSION,EMPLOYEE EXPENSES,100767159,14.00
United Kingdom Atomic Energy Authority,United Kingdom Atomic Energy Authority,16/05/2015,OTHER EMPLOYEE EXPENSES,FUSION,EMPLOYEE EXPENSES,100767159,27.00
United Kingdom Atomic Energy Authority,United Kingdom Atomic Energy Authority,16/05/2015,OTHER EMPLOYEE EXPENSES,FUSION,EMPLOYEE EXPENSES,100767159,296.12
United Kingdom Atomic Energy Authority,United Kingdom Atomic Energy Authority,16/05/2015,ROAD TRAVEL,FUSION,EMPLOYEE EXPENSES,100767160,5.24
United Kingdom Atomic Energy Authority,United Kingdom Atomic Energy Authority,16/05/2015,ROAD TRAVEL,FUSION,EMPLOYEE EXPENSES,100767160,5.53
United Kingdom Atomic Energy Authority,United Kingdom Atomic Energy Authority,16/05/2015,ROAD TRAVEL,FUSION,EMPLOYEE EXPENSES,100767160,40.54
United Kingdom Atomic Energy Authority,United Kingdom Atomic Energy Authority,16/05/2015,ROAD TRAVEL,FUSION,EMPLOYEE EXPENSES,100767160,46.00
United Kingdom Atomic Energy Authority,United Kingdom Atomic Energy Authority,16/05/2015,ROAD TRAVEL,FUSION,EMPLOYEE EXPENSES,100767160,50.19
United Kingdom Atomic Energy Authority,United Kingdom Atomic Energy Authority,16/05/2015,ROAD TRAVEL,FUSION,EMPLOYEE EXPENSES,100767160,194.03
United Kingdom Atomic Energy Authority,United Kingdom Atomic Energy Authority,16/05/2015,ROAD TRAVEL,FUSION,EMPLOYEE EXPENSES,100767160,257.60
United Kingdom Atomic Energy Authority,United Kingdom Atomic Energy Authority,16/05/2015,ROAD TRAVEL,FUSION,EMPLOYEE EXPENSES,100767160,929.39
United Kingdom Atomic Energy Authority,United Kingdom Atomic Energy Authority,16/05/2015,ROAD TRAVEL,FUSION,EMPLOYEE EXPENSES,100767160,"1,112.58"
United Kingdom Atomic Energy Authority,United Kingdom Atomic Energy Authority,16/05/2015,SUBSISTENCE,FUSION,EMPLOYEE EXPENSES,100767161,9.08
United Kingdom Atomic Energy Authority,United Kingdom Atomic Energy Authority,16/05/2015,SUBSISTENCE,FUSION,EMPLOYEE EXPENSES,100767161,23.00
United Kingdom Atomic Energy Authority,United Kingdom Atomic Energy Authority,16/05/2015,SUBSISTENCE,FUSION,EMPLOYEE EXPENSES,100767161,340.70
United Kingdom Atomic Energy Authority,United Kingdom Atomic Energy Authority,16/05/2015,MILEAGE ALLOWANCE,FUSION,EMPLOYEE EXPENSES,100767162,66.60
United Kingdom Atomic Energy Authority,United Kingdom Atomic Energy Authority,16/05/2015,MILEAGE ALLOWANCE,FUSION,EMPLOYEE EXPENSES,100767163,66.60
United Kingdom Atomic Energy Authority,United Kingdom Atomic Energy Authority,16/05/2015,MILEAGE ALLOWANCE,FUSION,EMPLOYEE EXPENSES,100767164,66.60
United Kingdom Atomic Energy Authority,United Kingdom Atomic Energy Authority,16/05/2015,SUBSISTENCE,FUSION,EMPLOYEE EXPENSES,100767165,10.00
United Kingdom Atomic Energy Authority,United Kingdom Atomic Energy Authority,16/05/2015,SUBSISTENCE,FUSION,EMPLOYEE EXPENSES,100767165,11.80
United Kingdom Atomic Energy Authority,United Kingdom Atomic Energy Authority,16/05/2015,MILEAGE ALLOWANCE,FUSION,EMPLOYEE EXPENSES,100767166,58.50
United Kingdom Atomic Energy Authority,United Kingdom Atomic Energy Authority,16/05/2015,MILEAGE ALLOWANCE,FUSION,EMPLOYEE EXPENSES,100767167,58.50
United Kingdom Atomic Energy Authority,United Kingdom Atomic Energy Authority,16/05/2015,MILEAGE ALLOWANCE,FUSION,EMPLOYEE EXPENSES,100767168,58.50
United Kingdom Atomic Energy Authority,United Kingdom Atomic Energy Authority,16/05/2015,MILEAGE ALLOWANCE,FUSION,EMPLOYEE EXPENSES,100767169,58.50
United Kingdom Atomic Energy Authority,United Kingdom Atomic Energy Authority,16/05/2015,OTHER EMPLOYEE EXPENSES,FUSION,EMPLOYEE EXPENSES,100767170,4.68
United Kingdom Atomic Energy Authority,United Kingdom Atomic Energy Authority,16/05/2015,OTHER EMPLOYEE EXPENSES,FUSION,EMPLOYEE EXPENSES,100767170,102.24
United Kingdom Atomic Energy Authority,United Kingdom Atomic Energy Authority,16/05/2015,OTHER EMPLOYEE EXPENSES,FUSION,EMPLOYEE EXPENSES,100767170,121.83
United Kingdom Atomic Energy Authority,United Kingdom Atomic Energy Authority,16/05/2015,ROAD TRAVEL,FUSION,EMPLOYEE EXPENSES,100767171,11.00
United Kingdom Atomic Energy Authority,United Kingdom Atomic Energy Authority,16/05/2015,ROAD TRAVEL,FUSION,EMPLOYEE EXPENSES,100767171,18.67
United Kingdom Atomic Energy Authority,United Kingdom Atomic Energy Authority,16/05/2015,RAIL TRAVEL,FUSION,EMPLOYEE EXPENSES,100767172,204.40
United Kingdom Atomic Energy Authority,United Kingdom Atomic Energy Authority,16/05/2015,MILEAGE ALLOWANCE,SUPPORT SERVICES,EMPLOYEE EXPENSES,100767173,13.50
United Kingdom Atomic Energy Authority,United Kingdom Atomic Energy Authority,16/05/2015,MILEAGE ALLOWANCE,SUPPORT SERVICES,EMPLOYEE EXPENSES,100767174,13.50
United Kingdom Atomic Energy Authority,United Kingdom Atomic Energy Authority,16/05/2015,MILEAGE ALLOWANCE,SUPPORT SERVICES,EMPLOYEE EXPENSES,100767175,13.50
United Kingdom Atomic Energy Authority,United Kingdom Atomic Energy Authority,16/05/2015,MILEAGE ALLOWANCE,SUPPORT SERVICES,EMPLOYEE EXPENSES,100767176,13.50
United Kingdom Atomic Energy Authority,United Kingdom Atomic Energy Authority,16/05/2015,MILEAGE ALLOWANCE,SUPPORT SERVICES,EMPLOYEE EXPENSES,100767177,13.50
United Kingdom Atomic Energy Authority,United Kingdom Atomic Energy Authority,16/05/2015,MILEAGE ALLOWANCE,SUPPORT SERVICES,EMPLOYEE EXPENSES,100767178,13.50
United Kingdom Atomic Energy Authority,United Kingdom Atomic Energy Authority,16/05/2015,MILEAGE ALLOWANCE,SUPPORT SERVICES,EMPLOYEE EXPENSES,100767179,13.50
United Kingdom Atomic Energy Authority,United Kingdom Atomic Energy Authority,16/05/2015,MILEAGE ALLOWANCE,SUPPORT SERVICES,EMPLOYEE EXPENSES,100767180,13.50
United Kingdom Atomic Energy Authority,United Kingdom Atomic Energy Authority,16/05/2015,MILEAGE ALLOWANCE,SUPPORT SERVICES,EMPLOYEE EXPENSES,100767181,13.50
United Kingdom Atomic Energy Authority,United Kingdom Atomic Energy Authority,16/05/2015,RAIL TRAVEL,FUSION,EMPLOYEE EXPENSES,100767182,65.00
United Kingdom Atomic Energy Authority,United Kingdom Atomic Energy Authority,16/05/2015,ROAD TRAVEL,FUSION,EMPLOYEE EXPENSES,100767183,12.00
United Kingdom Atomic Energy Authority,United Kingdom Atomic Energy Authority,16/05/2015,TAXIS,FUSION,EMPLOYEE EXPENSES,100767183,65.00
United Kingdom Atomic Energy Authority,United Kingdom Atomic Energy Authority,16/05/2015,ROAD TRAVEL,FUSION,EMPLOYEE EXPENSES,100767184,6.20
United Kingdom Atomic Energy Authority,United Kingdom Atomic Energy Authority,16/05/2015,ROAD TRAVEL,FUSION,EMPLOYEE EXPENSES,100767184,50.90
United Kingdom Atomic Energy Authority,United Kingdom Atomic Energy Authority,16/05/2015,ROAD TRAVEL,FUSION,EMPLOYEE EXPENSES,100767185,6.20
United Kingdom Atomic Energy Authority,United Kingdom Atomic Energy Authority,16/05/2015,ROAD TRAVEL,FUSION,EMPLOYEE EXPENSES,100767185,9.15
United Kingdom Atomic Energy Authority,United Kingdom Atomic Energy Authority,16/05/2015,ROAD TRAVEL,FUSION,EMPLOYEE EXPENSES,100767185,43.60
United Kingdom Atomic Energy Authority,United Kingdom Atomic Energy Authority,16/05/2015,EFDA TRAVEL EXPENSES,FUSION,VISITOR EXPENSES,100767186,891.60
United Kingdom Atomic Energy Authority,United Kingdom Atomic Energy Authority,16/05/2015,RAIL TRAVEL,FUSION,EMPLOYEE EXPENSES,100767187,35.00
United Kingdom Atomic Energy Authority,United Kingdom Atomic Energy Authority,16/05/2015,RAIL TRAVEL,FUSION,EMPLOYEE EXPENSES,100767187,38.00
United Kingdom Atomic Energy Authority,United Kingdom Atomic Energy Authority,16/05/2015,RELOCATION COSTS,FUSION,EMPLOYEE EXPENSES,100767188,"1,150.00"
United Kingdom Atomic Energy Authority,United Kingdom Atomic Energy Authority,21/05/2015,MILEAGE ALLOWANCE,FUSION,EMPLOYEE EXPENSES,100769976,7.20
United Kingdom Atomic Energy Authority,United Kingdom Atomic Energy Authority,21/05/2015,ROAD TRAVEL,FUSION,EMPLOYEE EXPENSES,100769977,29.00
United Kingdom Atomic Energy Authority,United Kingdom Atomic Energy Authority,21/05/2015,ROAD TRAVEL,FUSION,EMPLOYEE EXPENSES,100769977,100.00
United Kingdom Atomic Energy Authority,United Kingdom Atomic Energy Authority,21/05/2015,MILEAGE ALLOWANCE,FUSION,EMPLOYEE EXPENSES,100769978,54.00
United Kingdom Atomic Energy Authority,United Kingdom Atomic Energy Authority,21/05/2015,ROAD TRAVEL,SUPPORT SERVICES,EMPLOYEE EXPENSES,100769979,5.42
United Kingdom Atomic Energy Authority,United Kingdom Atomic Energy Authority,21/05/2015,ROAD TRAVEL,SUPPORT SERVICES,EMPLOYEE EXPENSES,100769979,18.00
United Kingdom Atomic Energy Authority,United Kingdom Atomic Energy Authority,21/05/2015,PROFESSIONAL SUBSCRIPTION,SUPPORT SERVICES,EMPLOYEE EXPENSES,100769980,97.00
United Kingdom Atomic Energy Authority,United Kingdom Atomic Energy Authority,21/05/2015,SUBSISTENCE,FUSION,EMPLOYEE EXPENSES,100769981,6.60
United Kingdom Atomic Energy Authority,United Kingdom Atomic Energy Authority,21/05/2015,SUBSISTENCE,FUSION,EMPLOYEE EXPENSES,100769982,5.60
United Kingdom Atomic Energy Authority,United Kingdom Atomic Energy Authority,21/05/2015,SUBSISTENCE,FUSION,EMPLOYEE EXPENSES,100769983,6.50
United Kingdom Atomic Energy Authority,United Kingdom Atomic Energy Authority,21/05/2015,SUBSISTENCE,FUSION,EMPLOYEE EXPENSES,100769983,14.00
United Kingdom Atomic Energy Authority,United Kingdom Atomic Energy Authority,21/05/2015,SUBSISTENCE,FUSION,EMPLOYEE EXPENSES,100769983,177.89
United Kingdom Atomic Energy Authority,United Kingdom Atomic Energy Authority,21/05/2015,SUBSISTENCE,FUSION,EMPLOYEE EXPENSES,100769983,466.77
United Kingdom Atomic Energy Authority,United Kingdom Atomic Energy Authority,21/05/2015,OTHER EMPLOYEE EXPENSES,FUSION,EMPLOYEE EXPENSES,100769984,29.87
United Kingdom Atomic Energy Authority,United Kingdom Atomic Energy Authority,21/05/2015,OTHER EMPLOYEE EXPENSES,FUSION,EMPLOYEE EXPENSES,100769984,"2,826.51"
United Kingdom Atomic Energy Authority,United Kingdom Atomic Energy Authority,21/05/2015,SUBSISTENCE,FUSION,EMPLOYEE EXPENSES,100769985,665.86
United Kingdom Atomic Energy Authority,United Kingdom Atomic Energy Authority,21/05/2015,EFDA TRAVEL EXPENSES,FUSION,VISITOR EXPENSES,100769986,173.07
United Kingdom Atomic Energy Authority,United Kingdom Atomic Energy Authority,21/05/2015,OTHER EMPLOYEE EXPENSES,FUSION,EMPLOYEE EXPENSES,100769987,3.00
United Kingdom Atomic Energy Authority,United Kingdom Atomic Energy Authority,21/05/2015,OTHER EMPLOYEE EXPENSES,FUSION,EMPLOYEE EXPENSES,100769987,10.50
United Kingdom Atomic Energy Authority,United Kingdom Atomic Energy Authority,21/05/2015,OTHER EMPLOYEE EXPENSES,FUSION,EMPLOYEE EXPENSES,100769987,14.00
United Kingdom Atomic Energy Authority,United Kingdom Atomic Energy Authority,21/05/2015,OTHER EMPLOYEE EXPENSES,FUSION,EMPLOYEE EXPENSES,100769987,27.00
United Kingdom Atomic Energy Authority,United Kingdom Atomic Energy Authority,21/05/2015,OTHER EMPLOYEE EXPENSES,FUSION,EMPLOYEE EXPENSES,100769987,192.37
United Kingdom Atomic Energy Authority,United Kingdom Atomic Energy Authority,21/05/2015,ROAD TRAVEL,FUSION,EMPLOYEE EXPENSES,100769988,5.21
United Kingdom Atomic Energy Authority,United Kingdom Atomic Energy Authority,21/05/2015,ROAD TRAVEL,FUSION,EMPLOYEE EXPENSES,100769988,10.00
United Kingdom Atomic Energy Authority,United Kingdom Atomic Energy Authority,21/05/2015,ROAD TRAVEL,FUSION,EMPLOYEE EXPENSES,100769988,37.50
United Kingdom Atomic Energy Authority,United Kingdom Atomic Energy Authority,21/05/2015,ROAD TRAVEL,FUSION,EMPLOYEE EXPENSES,100769989,5.21
United Kingdom Atomic Energy Authority,United Kingdom Atomic Energy Authority,21/05/2015,ROAD TRAVEL,FUSION,EMPLOYEE EXPENSES,100769989,10.00
United Kingdom Atomic Energy Authority,United Kingdom Atomic Energy Authority,21/05/2015,ROAD TRAVEL,FUSION,EMPLOYEE EXPENSES,100769989,37.50
United Kingdom Atomic Energy Authority,United Kingdom Atomic Energy Authority,21/05/2015,ROAD TRAVEL,FUSION,EMPLOYEE EXPENSES,100769990,6.25
United Kingdom Atomic Energy Authority,United Kingdom Atomic Energy Authority,21/05/2015,ROAD TRAVEL,FUSION,EMPLOYEE EXPENSES,100769990,10.00
United Kingdom Atomic Energy Authority,United Kingdom Atomic Energy Authority,21/05/2015,ROAD TRAVEL,FUSION,EMPLOYEE EXPENSES,100769990,15.25
United Kingdom Atomic Energy Authority,United Kingdom Atomic Energy Authority,21/05/2015,ROAD TRAVEL,FUSION,EMPLOYEE EXPENSES,100769991,5.21
United Kingdom Atomic Energy Authority,United Kingdom Atomic Energy Authority,21/05/2015,ROAD TRAVEL,FUSION,EMPLOYEE EXPENSES,100769991,10.00
United Kingdom Atomic Energy Authority,United Kingdom Atomic Energy Authority,21/05/2015,ROAD TRAVEL,FUSION,EMPLOYEE EXPENSES,100769991,56.80
United Kingdom Atomic Energy Authority,United Kingdom Atomic Energy Authority,21/05/2015,ROAD TRAVEL,SUPPORT SERVICES,EMPLOYEE EXPENSES,100769992,10.50
United Kingdom Atomic Energy Authority,United Kingdom Atomic Energy Authority,21/05/2015,ROAD TRAVEL,SUPPORT SERVICES,EMPLOYEE EXPENSES,100769992,54.00
United Kingdom Atomic Energy Authority,United Kingdom Atomic Energy Authority,21/05/2015,ROAD TRAVEL,SUPPORT SERVICES,EMPLOYEE EXPENSES,100769993,10.50
United Kingdom Atomic Energy Authority,United Kingdom Atomic Energy Authority,21/05/2015,ROAD TRAVEL,SUPPORT SERVICES,EMPLOYEE EXPENSES,100769993,54.00
United Kingdom Atomic Energy Authority,United Kingdom Atomic Energy Authority,21/05/2015,SUBSISTENCE,FUSION,EMPLOYEE EXPENSES,100769994,5.00
United Kingdom Atomic Energy Authority,United Kingdom Atomic Energy Authority,21/05/2015,SUBSISTENCE,FUSION,EMPLOYEE EXPENSES,100769994,128.29
United Kingdom Atomic Energy Authority,United Kingdom Atomic Energy Authority,21/05/2015,PROFESSIONAL SUBSCRIPTION,FUSION,EMPLOYEE EXPENSES,100769995,99.00
United Kingdom Atomic Energy Authority,United Kingdom Atomic Energy Authority,21/05/2015,ROAD TRAVEL,FUSION,EMPLOYEE EXPENSES,100769996,9.17
United Kingdom Atomic Energy Authority,United Kingdom Atomic Energy Authority,21/05/2015,ROAD TRAVEL,FUSION,EMPLOYEE EXPENSES,100769996,16.72
United Kingdom Atomic Energy Authority,United Kingdom Atomic Energy Authority,21/05/2015,ROAD TRAVEL,FUSION,EMPLOYEE EXPENSES,100769996,17.00
United Kingdom Atomic Energy Authority,United Kingdom Atomic Energy Authority,21/05/2015,ROAD TRAVEL,FUSION,EMPLOYEE EXPENSES,100769996,86.44
United Kingdom Atomic Energy Authority,United Kingdom Atomic Energy Authority,21/05/2015,POSTAGE & DISTRIBUTION,FUSION,EMPLOYEE EXPENSES,100769997,7.35
United Kingdom Atomic Energy Authority,United Kingdom Atomic Energy Authority,21/05/2015,POSTAGE & DISTRIBUTION,FUSION,EMPLOYEE EXPENSES,100769997,46.35
United Kingdom Atomic Energy Authority,United Kingdom Atomic Energy Authority,21/05/2015,POSTAGE & DISTRIBUTION,FUSION,EMPLOYEE EXPENSES,100769997,61.32
United Kingdom Atomic Energy Authority,United Kingdom Atomic Energy Authority,21/05/2015,POSTAGE & DISTRIBUTION,FUSION,EMPLOYEE EXPENSES,100769997,290.87
United Kingdom Atomic Energy Authority,United Kingdom Atomic Energy Authority,21/05/2015,POSTAGE & DISTRIBUTION,FUSION,EMPLOYEE EXPENSES,100769997,753.05
United Kingdom Atomic Energy Authority,United Kingdom Atomic Energy Authority,21/05/2015,OTHER EMPLOYEE EXPENSES,FUSION,EMPLOYEE EXPENSES,100769998,153.17
United Kingdom Atomic Energy Authority,United Kingdom Atomic Energy Authority,21/05/2015,OTHER EMPLOYEE EXPENSES,FUSION,EMPLOYEE EXPENSES,100769998,920.73
United Kingdom Atomic Energy Authority,United Kingdom Atomic Energy Authority,21/05/2015,PROFESSIONAL SUBSCRIPTION,FUSION,EMPLOYEE EXPENSES,100769999,245.70
United Kingdom Atomic Energy Authority,United Kingdom Atomic Energy Authority,21/05/2015,MILEAGE ALLOWANCE,FUSION,EMPLOYEE EXPENSES,100770000,9.00
United Kingdom Atomic Energy Authority,United Kingdom Atomic Energy Authority,21/05/2015,MILEAGE ALLOWANCE,FUSION,EMPLOYEE EXPENSES,100770001,9.00
United Kingdom Atomic Energy Authority,United Kingdom Atomic Energy Authority,21/05/2015,RAIL TRAVEL,FUSION,EMPLOYEE EXPENSES,100770002,79.13
United Kingdom Atomic Energy Authority,United Kingdom Atomic Energy Authority,21/05/2015,RAIL TRAVEL,FUSION,EMPLOYEE EXPENSES,100770002,374.50
United Kingdom Atomic Energy Authority,United Kingdom Atomic Energy Authority,21/05/2015,PROFESSIONAL SUBSCRIPTION,FUSION,EMPLOYEE EXPENSES,100770003,74.00
United Kingdom Atomic Energy Authority,United Kingdom Atomic Energy Authority,21/05/2015,PROFESSIONAL SUBSCRIPTION,FUSION,EMPLOYEE EXPENSES,100770004,120.00
United Kingdom Atomic Energy Authority,United Kingdom Atomic Energy Authority,21/05/2015,SUBSISTENCE,FUSION,EMPLOYEE EXPENSES,100770005,231.40
United Kingdom Atomic Energy Authority,United Kingdom Atomic Energy Authority,21/05/2015,SUBSISTENCE,FUSION,EMPLOYEE EXPENSES,100770005,231.40
United Kingdom Atomic Energy Authority,United Kingdom Atomic Energy Authority,21/05/2015,SUBSISTENCE,FUSION,EMPLOYEE EXPENSES,100770005,263.76
United Kingdom Atomic Energy Authority,United Kingdom Atomic Energy Authority,21/05/2015,SUBSISTENCE,FUSION,EMPLOYEE EXPENSES,100770005,263.76
United Kingdom Atomic Energy Authority,United Kingdom Atomic Energy Authority,21/05/2015,PROFESSIONAL SUBSCRIPTION,FUSION,EMPLOYEE EXPENSES,100770006,144.00
United Kingdom Atomic Energy Authority,United Kingdom Atomic Energy Authority,20/05/2015,TRAINING COSTS,FUSION,ENERGY INFORMATION CENTRE LTD,5100321596,"2,200.00"
United Kingdom Atomic Energy Authority,United Kingdom Atomic Energy Authority,11/05/2015,PROFESSIONAL SERVICES,SUPPORT SERVICES,ERNST and YOUNG LLP,5100321286,640.00
United Kingdom Atomic Energy Authority,United Kingdom Atomic Energy Authority,11/05/2015,PROFESSIONAL SERVICES,SUPPORT SERVICES,ERNST and YOUNG LLP,5100321288,760.00
United Kingdom Atomic Energy Authority,United Kingdom Atomic Energy Authority,06/05/2015,PLANT & EQUIPMENT,FUSION,ERODEX UK LTD,5100320972,369.62
United Kingdom Atomic Energy Authority,United Kingdom Atomic Energy Authority,27/04/2015,PROFESSIONAL SERVICES,FUSION,ESR TECHNOLOGY LTD,5100320771,"1,190.00"
United Kingdom Atomic Energy Authority,United Kingdom Atomic Energy Authority,06/05/2015,PROFESSIONAL SERVICES,FUSION,ESR TECHNOLOGY LTD,5100320970,"1,675.00"
United Kingdom Atomic Energy Authority,United Kingdom Atomic Energy Authority,13/05/2015,MATERIALS & SPARES,FUSION,Essex X-Ray & Medical Equipment Ltd,1900060901," 1,451.00"
United Kingdom Atomic Energy Authority,United Kingdom Atomic Energy Authority,06/05/2015,MATERIALS & SPARES,FUSION,ETS CABLE COMPONENTS,5100321122,316.00
United Kingdom Atomic Energy Authority,United Kingdom Atomic Energy Authority,18/05/2015,CONSUMABLES,FUSION,EUROTHERM LTD,5100321586,113.00
United Kingdom Atomic Energy Authority,United Kingdom Atomic Energy Authority,07/05/2015,SITE SUPPORT SERVICES,FUSION,EVERSON TESLA INC,5100320948,"-133,999.08"
United Kingdom Atomic Energy Authority,United Kingdom Atomic Energy Authority,07/05/2015,SITE SUPPORT SERVICES,FUSION,EVERSON TESLA INC,5100320947,"96,887.93"
United Kingdom Atomic Energy Authority,United Kingdom Atomic Energy Authority,07/05/2015,SITE SUPPORT SERVICES,FUSION,EVERSON TESLA INC,5100320949,"133,999.08"
United Kingdom Atomic Energy Authority,United Kingdom Atomic Energy Authority,20/05/2015,REPAIRS & MAINTENANCE,FUSION,FACTAIR LTD,5100321674,155.00
United Kingdom Atomic Energy Authority,United Kingdom Atomic Energy Authority,11/05/2015,PROFESSIONAL SERVICES,PROPERTY,FAITHFUL & GOULD,5100321408,"-6,527.00"
United Kingdom Atomic Energy Authority,United Kingdom Atomic Energy Authority,11/05/2015,PROFESSIONAL SERVICES,SUPPORT SERVICES,FAITHFUL & GOULD,5100321348,"-5,694.08"
United Kingdom Atomic Energy Authority,United Kingdom Atomic Energy Authority,27/04/2015,PROFESSIONAL SERVICES,FUSION,FAITHFUL & GOULD,5100320298,"4,878.46"
United Kingdom Atomic Energy Authority,United Kingdom Atomic Energy Authority,13/05/2015,PROFESSIONAL SERVICES,SUPPORT SERVICES,FAITHFUL & GOULD,5100321346,"5,332.08"
United Kingdom Atomic Energy Authority,United Kingdom Atomic Energy Authority,11/05/2015,PROFESSIONAL SERVICES,SUPPORT SERVICES,FAITHFUL & GOULD,5100321119,"5,694.08"
United Kingdom Atomic Energy Authority,United Kingdom Atomic Energy Authority,11/05/2015,PROFESSIONAL SERVICES,PROPERTY,FAITHFUL & GOULD,5100321006,"6,527.00"
United Kingdom Atomic Energy Authority,United Kingdom Atomic Energy Authority,13/05/2015,MATERIALS & SPARES,FUSION,FARNELL ELECTRONIC,5100321386,-646.78
United Kingdom Atomic Energy Authority,United Kingdom Atomic Energy Authority,13/05/2015,MATERIALS & SPARES,FUSION,FARNELL ELECTRONIC,5100321446,-18.86
United Kingdom Atomic Energy Authority,United Kingdom Atomic Energy Authority,13/05/2015,MATERIALS & SPARES,FUSION,FARNELL ELECTRONIC,5100321447,-14.89
United Kingdom Atomic Energy Authority,United Kingdom Atomic Energy Authority,27/04/2015,MATERIALS & SPARES,FUSION,FARNELL ELECTRONIC,5100320655,0.55
United Kingdom Atomic Energy Authority,United Kingdom Atomic Energy Authority,27/04/2015,MATERIALS & SPARES,FUSION,FARNELL ELECTRONIC,5100320554,0.90
United Kingdom Atomic Energy Authority,United Kingdom Atomic Energy Authority,29/04/2015,MATERIALS & SPARES,FUSION,FARNELL ELECTRONIC,5100320656,1.20
United Kingdom Atomic Energy Authority,United Kingdom Atomic Energy Authority,27/04/2015,MATERIALS & SPARES,FUSION,FARNELL ELECTRONIC,5100320557,3.60
United Kingdom Atomic Energy Authority,United Kingdom Atomic Energy Authority,20/05/2015,MATERIALS & SPARES,FUSION,FARNELL ELECTRONIC,5100321853,3.75
United Kingdom Atomic Energy Authority,United Kingdom Atomic Energy Authority,18/05/2015,MATERIALS & SPARES,FUSION,FARNELL ELECTRONIC,5100321782,4.00
United Kingdom Atomic Energy Authority,United Kingdom Atomic Energy Authority,13/05/2015,MATERIALS & SPARES,FUSION,FARNELL ELECTRONIC,5100321419,5.87
United Kingdom Atomic Energy Authority,United Kingdom Atomic Energy Authority,06/05/2015,MATERIALS & SPARES,FUSION,FARNELL ELECTRONIC,5100321087,6.06
United Kingdom Atomic Energy Authority,United Kingdom Atomic Energy Authority,27/04/2015,MATERIALS & SPARES,FUSION,FARNELL ELECTRONIC,5100320279,6.17
United Kingdom Atomic Energy Authority,United Kingdom Atomic Energy Authority,18/05/2015,MATERIALS & SPARES,FUSION,FARNELL ELECTRONIC,5100321787,6.70
United Kingdom Atomic Energy Authority,United Kingdom Atomic Energy Authority,27/04/2015,MATERIALS & SPARES,FUSION,FARNELL ELECTRONIC,5100320703,6.88
United Kingdom Atomic Energy Authority,United Kingdom Atomic Energy Authority,29/04/2015,MATERIALS & SPARES,FUSION,FARNELL ELECTRONIC,5100320676,7.06
United Kingdom Atomic Energy Authority,United Kingdom Atomic Energy Authority,27/04/2015,MATERIALS & SPARES,FUSION,FARNELL ELECTRONIC,5100320548,9.66
United Kingdom Atomic Energy Authority,United Kingdom Atomic Energy Authority,06/05/2015,MATERIALS & SPARES,FUSION,FARNELL ELECTRONIC,5100321088,10.70
United Kingdom Atomic Energy Authority,United Kingdom Atomic Energy Authority,06/05/2015,MATERIALS & SPARES,FUSION,FARNELL ELECTRONIC,5100321086,13.16
United Kingdom Atomic Energy Authority,United Kingdom Atomic Energy Authority,27/04/2015,MATERIALS & SPARES,FUSION,FARNELL ELECTRONIC,5100320701,15.28
United Kingdom Atomic Energy Authority,United Kingdom Atomic Energy Authority,18/05/2015,MATERIALS & SPARES,FUSION,FARNELL ELECTRONIC,5100321452,16.07
United Kingdom Atomic Energy Authority,United Kingdom Atomic Energy Authority,18/05/2015,MATERIALS & SPARES,FUSION,FARNELL ELECTRONIC,5100321789,20.91
United Kingdom Atomic Energy Authority,United Kingdom Atomic Energy Authority,20/05/2015,MATERIALS & SPARES,FUSION,FARNELL ELECTRONIC,5100321850,21.27
United Kingdom Atomic Energy Authority,United Kingdom Atomic Energy Authority,18/05/2015,MATERIALS & SPARES,FUSION,FARNELL ELECTRONIC,5100321676,23.81
United Kingdom Atomic Energy Authority,United Kingdom Atomic Energy Authority,27/04/2015,MATERIALS & SPARES,FUSION,FARNELL ELECTRONIC,5100320674,27.77
United Kingdom Atomic Energy Authority,United Kingdom Atomic Energy Authority,18/05/2015,MATERIALS & SPARES,FUSION,FARNELL ELECTRONIC,5100321448,32.51
United Kingdom Atomic Energy Authority,United Kingdom Atomic Energy Authority,29/04/2015,MATERIALS & SPARES,FUSION,FARNELL ELECTRONIC,5100320700,36.02
United Kingdom Atomic Energy Authority,United Kingdom Atomic Energy Authority,27/04/2015,MATERIALS & SPARES,FUSION,FARNELL ELECTRONIC,5100320774,36.40
United Kingdom Atomic Energy Authority,United Kingdom Atomic Energy Authority,20/05/2015,MATERIALS & SPARES,FUSION,FARNELL ELECTRONIC,5100321857,41.50
United Kingdom Atomic Energy Authority,United Kingdom Atomic Energy Authority,27/04/2015,MATERIALS & SPARES,FUSION,FARNELL ELECTRONIC,5100320668,41.82
United Kingdom Atomic Energy Authority,United Kingdom Atomic Energy Authority,27/04/2015,MATERIALS & SPARES,FUSION,FARNELL ELECTRONIC,5100320653,42.94
United Kingdom Atomic Energy Authority,United Kingdom Atomic Energy Authority,27/04/2015,MATERIALS & SPARES,FUSION,FARNELL ELECTRONIC,5100320555,45.95
United Kingdom Atomic Energy Authority,United Kingdom Atomic Energy Authority,20/05/2015,MATERIALS & SPARES,FUSION,FARNELL ELECTRONIC,5100321804,50.05
United Kingdom Atomic Energy Authority,United Kingdom Atomic Energy Authority,27/04/2015,MATERIALS & SPARES,FUSION,FARNELL ELECTRONIC,5100320659,51.38
United Kingdom Atomic Energy Authority,United Kingdom Atomic Energy Authority,06/05/2015,MATERIALS & SPARES,FUSION,FARNELL ELECTRONIC,5100320995,52.20
United Kingdom Atomic Energy Authority,United Kingdom Atomic Energy Authority,20/05/2015,MATERIALS & SPARES,FUSION,FARNELL ELECTRONIC,5100321854,62.00
United Kingdom Atomic Energy Authority,United Kingdom Atomic Energy Authority,13/05/2015,MATERIALS & SPARES,FUSION,FARNELL ELECTRONIC,5100321385,63.81
United Kingdom Atomic Energy Authority,United Kingdom Atomic Energy Authority,18/05/2015,MATERIALS & SPARES,FUSION,FARNELL ELECTRONIC,5100321511,65.31
United Kingdom Atomic Energy Authority,United Kingdom Atomic Energy Authority,13/05/2015,MATERIALS & SPARES,FUSION,FARNELL ELECTRONIC,5100321383,72.50
United Kingdom Atomic Energy Authority,United Kingdom Atomic Energy Authority,18/05/2015,MATERIALS & SPARES,FUSION,FARNELL ELECTRONIC,5100321801,74.00
United Kingdom Atomic Energy Authority,United Kingdom Atomic Energy Authority,13/05/2015,MATERIALS & SPARES,FUSION,FARNELL ELECTRONIC,5100321384,75.86
United Kingdom Atomic Energy Authority,United Kingdom Atomic Energy Authority,13/05/2015,MATERIALS & SPARES,FUSION,FARNELL ELECTRONIC,5100321423,78.65
United Kingdom Atomic Energy Authority,United Kingdom Atomic Energy Authority,18/05/2015,MATERIALS & SPARES,FUSION,FARNELL ELECTRONIC,5100321514,79.12
United Kingdom Atomic Energy Authority,United Kingdom Atomic Energy Authority,18/05/2015,MATERIALS & SPARES,FUSION,FARNELL ELECTRONIC,5100321675,79.20
United Kingdom Atomic Energy Authority,United Kingdom Atomic Energy Authority,20/05/2015,MATERIALS & SPARES,FUSION,FARNELL ELECTRONIC,5100321803,79.60
United Kingdom Atomic Energy Authority,United Kingdom Atomic Energy Authority,18/05/2015,MATERIALS & SPARES,FUSION,FARNELL ELECTRONIC,5100321797,82.94
United Kingdom Atomic Energy Authority,United Kingdom Atomic Energy Authority,18/05/2015,MATERIALS & SPARES,FUSION,FARNELL ELECTRONIC,5100321509,85.12
United Kingdom Atomic Energy Authority,United Kingdom Atomic Energy Authority,18/05/2015,MATERIALS & SPARES,FUSION,FARNELL ELECTRONIC,5100321774,89.27
United Kingdom Atomic Energy Authority,United Kingdom Atomic Energy Authority,27/04/2015,MATERIALS & SPARES,FUSION,FARNELL ELECTRONIC,5100320526,91.75
United Kingdom Atomic Energy Authority,United Kingdom Atomic Energy Authority,20/05/2015,MATERIALS & SPARES,FUSION,FARNELL ELECTRONIC,5100321856,93.59
United Kingdom Atomic Energy Authority,United Kingdom Atomic Energy Authority,18/05/2015,MATERIALS & SPARES,FUSION,FARNELL ELECTRONIC,5100321678,98.47
United Kingdom Atomic Energy Authority,United Kingdom Atomic Energy Authority,27/04/2015,MATERIALS & SPARES,FUSION,FARNELL ELECTRONIC,5100320551,101.55
United Kingdom Atomic Energy Authority,United Kingdom Atomic Energy Authority,20/05/2015,MATERIALS & SPARES,FUSION,FARNELL ELECTRONIC,5100321518,103.43
United Kingdom Atomic Energy Authority,United Kingdom Atomic Energy Authority,29/04/2015,MATERIALS & SPARES,FUSION,FARNELL ELECTRONIC,5100320775,105.36
United Kingdom Atomic Energy Authority,United Kingdom Atomic Energy Authority,29/04/2015,MATERIALS & SPARES,FUSION,FARNELL ELECTRONIC,5100320533,108.49
United Kingdom Atomic Energy Authority,United Kingdom Atomic Energy Authority,27/04/2015,MATERIALS & SPARES,FUSION,FARNELL ELECTRONIC,5100320541,111.27
United Kingdom Atomic Energy Authority,United Kingdom Atomic Energy Authority,20/05/2015,MATERIALS & SPARES,FUSION,FARNELL ELECTRONIC,5100321805,118.84
United Kingdom Atomic Energy Authority,United Kingdom Atomic Energy Authority,06/05/2015,MATERIALS & SPARES,FUSION,FARNELL ELECTRONIC,5100320998,119.27
United Kingdom Atomic Energy Authority,United Kingdom Atomic Energy Authority,20/05/2015,MATERIALS & SPARES,FUSION,FARNELL ELECTRONIC,5100321855,121.04
United Kingdom Atomic Energy Authority,United Kingdom Atomic Energy Authority,20/05/2015,MATERIALS & SPARES,FUSION,FARNELL ELECTRONIC,5100321852,121.39
United Kingdom Atomic Energy Authority,United Kingdom Atomic Energy Authority,06/05/2015,MATERIALS & SPARES,FUSION,FARNELL ELECTRONIC,5100321077,127.29
United Kingdom Atomic Energy Authority,United Kingdom Atomic Energy Authority,18/05/2015,MATERIALS & SPARES,FUSION,FARNELL ELECTRONIC,5100321778,131.21
United Kingdom Atomic Energy Authority,United Kingdom Atomic Energy Authority,29/04/2015,MATERIALS & SPARES,FUSION,FARNELL ELECTRONIC,5100320660,139.61
United Kingdom Atomic Energy Authority,United Kingdom Atomic Energy Authority,18/05/2015,MATERIALS & SPARES,FUSION,FARNELL ELECTRONIC,5100321677,139.98
United Kingdom Atomic Energy Authority,United Kingdom Atomic Energy Authority,27/04/2015,MATERIALS & SPARES,FUSION,FARNELL ELECTRONIC,5100320546,145.16
United Kingdom Atomic Energy Authority,United Kingdom Atomic Energy Authority,27/04/2015,MATERIALS & SPARES,FUSION,FARNELL ELECTRONIC,5100320556,155.32
United Kingdom Atomic Energy Authority,United Kingdom Atomic Energy Authority,06/05/2015,MATERIALS & SPARES,FUSION,FARNELL ELECTRONIC,5100321093,159.12
United Kingdom Atomic Energy Authority,United Kingdom Atomic Energy Authority,06/05/2015,MATERIALS & SPARES,FUSION,FARNELL ELECTRONIC,5100321092,172.22
United Kingdom Atomic Energy Authority,United Kingdom Atomic Energy Authority,13/05/2015,MATERIALS & SPARES,FUSION,FARNELL ELECTRONIC,5100320776,185.70
United Kingdom Atomic Energy Authority,United Kingdom Atomic Energy Authority,13/05/2015,MATERIALS & SPARES,FUSION,FARNELL ELECTRONIC,5100320661,193.56
United Kingdom Atomic Energy Authority,United Kingdom Atomic Energy Authority,18/05/2015,MATERIALS & SPARES,FUSION,FARNELL ELECTRONIC,5100321520,194.17
United Kingdom Atomic Energy Authority,United Kingdom Atomic Energy Authority,20/05/2015,MATERIALS & SPARES,FUSION,FARNELL ELECTRONIC,5100321501,199.12
United Kingdom Atomic Energy Authority,United Kingdom Atomic Energy Authority,27/04/2015,MATERIALS & SPARES,FUSION,FARNELL ELECTRONIC,5100320669,202.23
United Kingdom Atomic Energy Authority,United Kingdom Atomic Energy Authority,29/04/2015,MATERIALS & SPARES,FUSION,FARNELL ELECTRONIC,5100320698,203.28
United Kingdom Atomic Energy Authority,United Kingdom Atomic Energy Authority,18/05/2015,MATERIALS & SPARES,FUSION,FARNELL ELECTRONIC,5100321780,206.66
United Kingdom Atomic Energy Authority,United Kingdom Atomic Energy Authority,13/05/2015,MATERIALS & SPARES,FUSION,FARNELL ELECTRONIC,5100320665,207.29
United Kingdom Atomic Energy Authority,United Kingdom Atomic Energy Authority,06/05/2015,MATERIALS & SPARES,FUSION,FARNELL ELECTRONIC,5100321094,210.41
United Kingdom Atomic Energy Authority,United Kingdom Atomic Energy Authority,06/05/2015,MATERIALS & SPARES,FUSION,FARNELL ELECTRONIC,5100321090,221.21
United Kingdom Atomic Energy Authority,United Kingdom Atomic Energy Authority,27/04/2015,MATERIALS & SPARES,FUSION,FARNELL ELECTRONIC,5100320705,227.50
United Kingdom Atomic Energy Authority,United Kingdom Atomic Energy Authority,18/05/2015,MATERIALS & SPARES,FUSION,FARNELL ELECTRONIC,5100321775,240.02
United Kingdom Atomic Energy Authority,United Kingdom Atomic Energy Authority,20/05/2015,MATERIALS & SPARES,FUSION,FARNELL ELECTRONIC,5100321851,251.99
United Kingdom Atomic Energy Authority,United Kingdom Atomic Energy Authority,29/04/2015,MATERIALS & SPARES,FUSION,FARNELL ELECTRONIC,5100320673,270.79
United Kingdom Atomic Energy Authority,United Kingdom Atomic Energy Authority,18/05/2015,MATERIALS & SPARES,FUSION,FARNELL ELECTRONIC,5100321779,292.95
United Kingdom Atomic Energy Authority,United Kingdom Atomic Energy Authority,06/05/2015,MATERIALS & SPARES,FUSION,FARNELL ELECTRONIC,5100320663,307.99
United Kingdom Atomic Energy Authority,United Kingdom Atomic Energy Authority,27/04/2015,MATERIALS & SPARES,FUSION,FARNELL ELECTRONIC,5100320662,319.13
United Kingdom Atomic Energy Authority,United Kingdom Atomic Energy Authority,13/05/2015,MATERIALS & SPARES,FUSION,FARNELL ELECTRONIC,5100321415,323.44
United Kingdom Atomic Energy Authority,United Kingdom Atomic Energy Authority,18/05/2015,MATERIALS & SPARES,FUSION,FARNELL ELECTRONIC,5100321784,324.72
United Kingdom Atomic Energy Authority,United Kingdom Atomic Energy Authority,27/04/2015,MATERIALS & SPARES,FUSION,FARNELL ELECTRONIC,5100320536,326.40
United Kingdom Atomic Energy Authority,United Kingdom Atomic Energy Authority,18/05/2015,MATERIALS & SPARES,FUSION,FARNELL ELECTRONIC,5100321451,424.43
United Kingdom Atomic Energy Authority,United Kingdom Atomic Energy Authority,18/05/2015,MATERIALS & SPARES,FUSION,FARNELL ELECTRONIC,5100321799,436.05
United Kingdom Atomic Energy Authority,United Kingdom Atomic Energy Authority,18/05/2015,MATERIALS & SPARES,FUSION,FARNELL ELECTRONIC,5100321796,437.18
United Kingdom Atomic Energy Authority,United Kingdom Atomic Energy Authority,18/05/2015,MATERIALS & SPARES,FUSION,FARNELL ELECTRONIC,5100321798,441.74
United Kingdom Atomic Energy Authority,United Kingdom Atomic Energy Authority,18/05/2015,MATERIALS & SPARES,FUSION,FARNELL ELECTRONIC,5100321506,442.31
United Kingdom Atomic Energy Authority,United Kingdom Atomic Energy Authority,29/04/2015,MATERIALS & SPARES,FUSION,FARNELL ELECTRONIC,5100320654,491.33
United Kingdom Atomic Energy Authority,United Kingdom Atomic Energy Authority,18/05/2015,MATERIALS & SPARES,FUSION,FARNELL ELECTRONIC,5100321450,544.05
United Kingdom Atomic Energy Authority,United Kingdom Atomic Energy Authority,06/05/2015,MATERIALS & SPARES,FUSION,FARNELL ELECTRONIC,5100321091,715.08
United Kingdom Atomic Energy Authority,United Kingdom Atomic Energy Authority,20/05/2015,MATERIALS & SPARES,FUSION,FARNELL ELECTRONIC,5100321412,"1,019.81"
United Kingdom Atomic Energy Authority,United Kingdom Atomic Energy Authority,27/04/2015,MATERIALS & SPARES,FUSION,FARNELL ELECTRONIC,5100320773,"1,460.47"
United Kingdom Atomic Energy Authority,United Kingdom Atomic Energy Authority,06/05/2015,MATERIALS & SPARES,FUSION,FARNELL ELECTRONIC,5100321078,"1,802.00"
United Kingdom Atomic Energy Authority,United Kingdom Atomic Energy Authority,20/05/2015,MATERIALS & SPARES,FUSION,FARNELL ELECTRONIC,5100321807,"5,125.00"
United Kingdom Atomic Energy Authority,United Kingdom Atomic Energy Authority,11/05/2015,MATERIALS & SPARES,FUSION,FASTFIX,5100321334,124.93
United Kingdom Atomic Energy Authority,United Kingdom Atomic Energy Authority,06/05/2015,MATERIALS & SPARES,FUSION,FC LANE ELECTRONICS LTD,5100321097,935.90
United Kingdom Atomic Energy Authority,United Kingdom Atomic Energy Authority,29/04/2015,PLANT & EQUIPMENT,FUSION,FEI UK,5100320745,"1,732.00"
United Kingdom Atomic Energy Authority,United Kingdom Atomic Energy Authority,06/05/2015,PLANT & EQUIPMENT,FUSION,FEI UK,5100320876,"5,516.00"
United Kingdom Atomic Energy Authority,United Kingdom Atomic Energy Authority,18/05/2015,STATIONERY,FUSION,FINE PRINT SERVICES,5100321333,635.00
United Kingdom Atomic Energy Authority,United Kingdom Atomic Energy Authority,29/04/2015,STATIONERY,FUSION,FINE PRINT SERVICES,5100320923,648.00
United Kingdom Atomic Energy Authority,United Kingdom Atomic Energy Authority,06/05/2015,PLANT & EQUIPMENT,FUSION,FISHER SCIENTIFIC UK LTD,5100321102,49.81
United Kingdom Atomic Energy Authority,United Kingdom Atomic Energy Authority,18/05/2015,PLANT & EQUIPMENT,FUSION,FISHER SCIENTIFIC UK LTD,5100321576,127.46
United Kingdom Atomic Energy Authority,United Kingdom Atomic Energy Authority,27/04/2015,PLANT & EQUIPMENT,FUSION,FISHER SCIENTIFIC UK LTD,5100320601,183.90
United Kingdom Atomic Energy Authority,United Kingdom Atomic Energy Authority,18/05/2015,PLANT & EQUIPMENT,FUSION,FISHER SCIENTIFIC UK LTD,5100321502,196.00
United Kingdom Atomic Energy Authority,United Kingdom Atomic Energy Authority,06/05/2015,PLANT & EQUIPMENT,SUPPORT SERVICES,FISHER SCIENTIFIC UK LTD,5100321023,296.85
United Kingdom Atomic Energy Authority,United Kingdom Atomic Energy Authority,27/04/2015,PLANT & EQUIPMENT,FUSION,FISHER SCIENTIFIC UK LTD,5100320602,438.78
United Kingdom Atomic Energy Authority,United Kingdom Atomic Energy Authority,18/05/2015,PLANT & EQUIPMENT,FUSION,FISHER SCIENTIFIC UK LTD,5100321790,572.89
United Kingdom Atomic Energy Authority,United Kingdom Atomic Energy Authority,27/04/2015,PLANT & EQUIPMENT,FUSION,FISHER SCIENTIFIC UK LTD,5100320562,"1,784.98"
United Kingdom Atomic Energy Authority,United Kingdom Atomic Energy Authority,11/05/2015,MATERIALS & SPARES,FUSION,Fits Out Contracts Ltd,5100321179,132.65
United Kingdom Atomic Energy Authority,United Kingdom Atomic Energy Authority,11/05/2015,PLANT SPARES,FUSION,FLUID CONTROL LTD,5100321202,519.33
United Kingdom Atomic Energy Authority,United Kingdom Atomic Energy Authority,27/04/2015,MATERIALS & SPARES,FUSION,FORGEWELD LTD,5100320643,162.45
United Kingdom Atomic Energy Authority,United Kingdom Atomic Energy Authority,27/04/2015,MATERIALS & SPARES,FUSION,FORGEWELD LTD,5100320644,247.00
United Kingdom Atomic Energy Authority,United Kingdom Atomic Energy Authority,18/05/2015,MATERIALS & SPARES,FUSION,FORGEWELD LTD,5100321453,333.64
United Kingdom Atomic Energy Authority,United Kingdom Atomic Energy Authority,11/05/2015,RESEARCH & DEVELOPMENT,FUSION,FRAZER NASH CONSULTANCY,5100321216,"15,033.00"
United Kingdom Atomic Energy Authority,United Kingdom Atomic Energy Authority,14/05/2015,PLANT & EQUIPMENT,FUSION,Furness Controls Ltd,1900060902," 1,012.20"
United Kingdom Atomic Energy Authority,United Kingdom Atomic Energy Authority,29/04/2015,MATERIALS & SPARES,FUSION,GARNER OSBORNE CIRCUITS LTD,5100320475,270.76
United Kingdom Atomic Energy Authority,United Kingdom Atomic Energy Authority,18/05/2015,MATERIALS & SPARES,FUSION,GARNER OSBORNE CIRCUITS LTD,5100321691,302.64
United Kingdom Atomic Energy Authority,United Kingdom Atomic Energy Authority,11/05/2015,MATERIALS & SPARES,FUSION,GARNER OSBORNE CIRCUITS LTD,5100320567,305.64
United Kingdom Atomic Energy Authority,United Kingdom Atomic Energy Authority,20/05/2015,MATERIALS & SPARES,FUSION,GARNER OSBORNE CIRCUITS LTD,5100321341,590.14
United Kingdom Atomic Energy Authority,United Kingdom Atomic Energy Authority,11/05/2015,MATERIALS & SPARES,FUSION,Gear Cutting Ltd,5100321096,"1,735.00"
United Kingdom Atomic Energy Authority,United Kingdom Atomic Energy Authority,07/05/2015,SUBSISTENCE,FUSION,VISITOR EXPENSES,1900060883, 207.36
United Kingdom Atomic Energy Authority,United Kingdom Atomic Energy Authority,11/05/2015,CONSUMABLES,FUSION,GM BAILEY AIR CONDITIONING,5100321303,159.50
United Kingdom Atomic Energy Authority,United Kingdom Atomic Energy Authority,18/05/2015,PLANT & EQUIPMENT,FUSION,GOODFELLOW CAMBRIDGE LTD,5100321668,151.00
United Kingdom Atomic Energy Authority,United Kingdom Atomic Energy Authority,06/05/2015,MATERIALS & SPARES,FUSION,GOODMAND STEEL SERVICES LTD,5100321066,103.70
United Kingdom Atomic Energy Authority,United Kingdom Atomic Energy Authority,06/05/2015,MATERIALS & SPARES,FUSION,GOODMAND STEEL SERVICES LTD,5100321068,122.40
United Kingdom Atomic Energy Authority,United Kingdom Atomic Energy Authority,11/05/2015,PROFESSIONAL SERVICES,FUSION,GRAFX,5100321353,-500.00
United Kingdom Atomic Energy Authority,United Kingdom Atomic Energy Authority,11/05/2015,PROFESSIONAL SERVICES,FUSION,GRAFX,5100320940,"1,000.00"
United Kingdom Atomic Energy Authority,United Kingdom Atomic Energy Authority,11/05/2015,MATERIALS & SPARES,FUSION,GREYHOUND CHROMATOGRAPHY,5100321168,874.50
United Kingdom Atomic Energy Authority,United Kingdom Atomic Energy Authority,13/05/2015,REPAIRS & MAINTENANCE,FUSION,GUYSON INTERNATIONAL,5100321395,41.14
United Kingdom Atomic Energy Authority,United Kingdom Atomic Energy Authority,20/05/2015,PLANT SPARES,FUSION,HARDMETAL ENG CORNWALL LTD,5100321962,492.75
United Kingdom Atomic Energy Authority,United Kingdom Atomic Energy Authority,11/05/2015,TAXIS,FUSION,HAROLDS CARS,5100321266,"3,565.26"
United Kingdom Atomic Energy Authority,United Kingdom Atomic Energy Authority,18/05/2015,PROFESSIONAL SERVICES,SUPPORT SERVICES,Hays Specialist Recruitment Ltd.,5100321625,"12,687.50"
United Kingdom Atomic Energy Authority,United Kingdom Atomic Energy Authority,27/04/2015,PLANT & EQUIPMENT,FUSION,HEWDEN,5100320102,615.00
United Kingdom Atomic Energy Authority,United Kingdom Atomic Energy Authority,27/04/2015,MATERIALS & SPARES,FUSION,HIDEN ANALYTICAL LTD,5100320735,"5,355.00"
United Kingdom Atomic Energy Authority,United Kingdom Atomic Energy Authority,06/05/2015,PLANT SPARES,FUSION,HILTI GB LTD,5100320881,137.00
United Kingdom Atomic Energy Authority,United Kingdom Atomic Energy Authority,06/05/2015,STATIONERY,FUSION,HOBS REPROGRAPHICS PLC,5100320919,2.12
United Kingdom Atomic Energy Authority,United Kingdom Atomic Energy Authority,06/05/2015,STATIONERY,FUSION,HOBS REPROGRAPHICS PLC,5100320266,3.13
United Kingdom Atomic Energy Authority,United Kingdom Atomic Energy Authority,06/05/2015,STATIONERY,FUSION,HOBS REPROGRAPHICS PLC,5100320920,3.13
United Kingdom Atomic Energy Authority,United Kingdom Atomic Energy Authority,06/05/2015,STATIONERY,FUSION,HOBS REPROGRAPHICS PLC,5100320903,8.49
United Kingdom Atomic Energy Authority,United Kingdom Atomic Energy Authority,29/04/2015,STATIONERY,FUSION,HOBS REPROGRAPHICS PLC,5100320931,15.00
United Kingdom Atomic Energy Authority,United Kingdom Atomic Energy Authority,06/05/2015,STATIONERY,FUSION,HOBS REPROGRAPHICS PLC,5100320935,16.40
United Kingdom Atomic Energy Authority,United Kingdom Atomic Energy Authority,06/05/2015,STATIONERY,FUSION,HOBS REPROGRAPHICS PLC,5100320908,21.32
United Kingdom Atomic Energy Authority,United Kingdom Atomic Energy Authority,29/04/2015,STATIONERY,FUSION,HOBS REPROGRAPHICS PLC,5100320939,22.02
United Kingdom Atomic Energy Authority,United Kingdom Atomic Energy Authority,06/05/2015,STATIONERY,FUSION,HOBS REPROGRAPHICS PLC,5100320926,23.59
United Kingdom Atomic Energy Authority,United Kingdom Atomic Energy Authority,29/04/2015,STATIONERY,FUSION,HOBS REPROGRAPHICS PLC,5100320938,25.00
United Kingdom Atomic Energy Authority,United Kingdom Atomic Energy Authority,29/04/2015,STATIONERY,FUSION,HOBS REPROGRAPHICS PLC,5100320924,40.00
United Kingdom Atomic Energy Authority,United Kingdom Atomic Energy Authority,29/04/2015,STATIONERY,FUSION,HOBS REPROGRAPHICS PLC,5100320927,40.00
United Kingdom Atomic Energy Authority,United Kingdom Atomic Energy Authority,06/05/2015,STATIONERY,FUSION,HOBS REPROGRAPHICS PLC,5100320910,41.60
United Kingdom Atomic Energy Authority,United Kingdom Atomic Energy Authority,18/05/2015,STATIONERY,FUSION,HOBS REPROGRAPHICS PLC,5100321555,48.00
United Kingdom Atomic Energy Authority,United Kingdom Atomic Energy Authority,29/04/2015,STATIONERY,FUSION,HOBS REPROGRAPHICS PLC,5100320925,80.00
United Kingdom Atomic Energy Authority,United Kingdom Atomic Energy Authority,29/04/2015,STATIONERY,FUSION,HOBS REPROGRAPHICS PLC,5100320928,80.00
United Kingdom Atomic Energy Authority,United Kingdom Atomic Energy Authority,18/05/2015,TRAVEL,SUPPORT SERVICES,Hogg Robinson(Travel)Ltd T/A HRG UK,5100321338,"14,507.17"
United Kingdom Atomic Energy Authority,United Kingdom Atomic Energy Authority,14/05/2015,PROFESSIONAL SERVICES,FUSION,HONEYWELL ANALYTICS (SALES &SERVICE,5100321720,"-1,296.00"
United Kingdom Atomic Energy Authority,United Kingdom Atomic Energy Authority,14/05/2015,PROFESSIONAL SERVICES,FUSION,HONEYWELL ANALYTICS (SALES &SERVICE,5100321305,"1,296.00"
United Kingdom Atomic Energy Authority,United Kingdom Atomic Energy Authority,06/05/2015,PROFESSIONAL SERVICES,FUSION,HUTTON ENGINEERING (PRECISION) LTD,5100321254,207.00
United Kingdom Atomic Energy Authority,United Kingdom Atomic Energy Authority,11/05/2015,PROFESSIONAL SERVICES,FUSION,HUTTON ENGINEERING (PRECISION) LTD,5100321444,225.84
United Kingdom Atomic Energy Authority,United Kingdom Atomic Energy Authority,11/05/2015,PROFESSIONAL SERVICES,FUSION,HUTTON ENGINEERING (PRECISION) LTD,5100321445,225.84
United Kingdom Atomic Energy Authority,United Kingdom Atomic Energy Authority,18/05/2015,PROFESSIONAL SERVICES,FUSION,HUTTON ENGINEERING (PRECISION) LTD,5100321770,365.30
United Kingdom Atomic Energy Authority,United Kingdom Atomic Energy Authority,27/04/2015,PROFESSIONAL SERVICES,FUSION,HUTTON ENGINEERING (PRECISION) LTD,5100320697,"2,143.52"
United Kingdom Atomic Energy Authority,United Kingdom Atomic Energy Authority,11/05/2015,PROFESSIONAL SERVICES,FUSION,HUTTON ENGINEERING (PRECISION) LTD,5100321442,"2,358.50"
United Kingdom Atomic Energy Authority,United Kingdom Atomic Energy Authority,06/05/2015,PROFESSIONAL SERVICES,FUSION,HUTTON ENGINEERING (PRECISION) LTD,5100321255,"22,595.58"
United Kingdom Atomic Energy Authority,United Kingdom Atomic Energy Authority,06/05/2015,MATERIALS & SPARES,FUSION,HV WOODING LIMITED,5100321029,143.32
United Kingdom Atomic Energy Authority,United Kingdom Atomic Energy Authority,06/05/2015,MATERIALS & SPARES,FUSION,HV WOODING LIMITED,5100321030,874.40
United Kingdom Atomic Energy Authority,United Kingdom Atomic Energy Authority,13/05/2015,CLEANING,FUSION,HYDROBLAST,5100321404,320.00
United Kingdom Atomic Energy Authority,United Kingdom Atomic Energy Authority,06/05/2015,CLEANING,FUSION,HYDROBLAST,5100321004,550.00
United Kingdom Atomic Energy Authority,United Kingdom Atomic Energy Authority,29/04/2015,CLEANING,FUSION,HYDROBLAST,5100320798,665.00
United Kingdom Atomic Energy Authority,United Kingdom Atomic Energy Authority,18/05/2015,PROFESSIONAL SERVICES,FUSION,HYTEC ELECTRONICS LTD,5100321059,"1,478.60"
United Kingdom Atomic Energy Authority,United Kingdom Atomic Energy Authority,06/05/2015,MATERIALS & SPARES,FUSION,ICS Cool Energy Ltd,5100321256,"3,251.50"
United Kingdom Atomic Energy Authority,United Kingdom Atomic Energy Authority,11/05/2015,MATERIALS & SPARES,FUSION,Idom Merebrook Ltd,5100321283,"11,311.33"
United Kingdom Atomic Energy Authority,United Kingdom Atomic Energy Authority,20/05/2015,MATERIALS: NON-HAZARDOUS,FUSION,ILF Ltd,5100321904,113.50
United Kingdom Atomic Energy Authority,United Kingdom Atomic Energy Authority,11/05/2015,MATERIALS: NON-HAZARDOUS,FUSION,ILF Ltd,5100321212,"2,149.75"
United Kingdom Atomic Energy Authority,United Kingdom Atomic Energy Authority,27/04/2015,UNIVERSITY PLACEMENT,FUSION,IMPERIAL COLLEGE,5100320348,"4,761.96"
United Kingdom Atomic Energy Authority,United Kingdom Atomic Energy Authority,20/05/2015,MATERIALS & SPARES,FUSION,Industrial Technical Ltd,5100321892,134.20
United Kingdom Atomic Energy Authority,United Kingdom Atomic Energy Authority,06/05/2015,MATERIALS & SPARES,FUSION,Industrial Technical Ltd,5100321115,217.80
United Kingdom Atomic Energy Authority,United Kingdom Atomic Energy Authority,06/05/2015,MATERIALS & SPARES,FUSION,Industrial Technical Ltd,5100321116,220.12
United Kingdom Atomic Energy Authority,United Kingdom Atomic Energy Authority,20/05/2015,MATERIALS & SPARES,FUSION,Industrial Technical Ltd,5100321888,223.30
United Kingdom Atomic Energy Authority,United Kingdom Atomic Energy Authority,11/05/2015,MATERIALS & SPARES,FUSION,Industrial Technical Ltd,5100321113,267.75
United Kingdom Atomic Energy Authority,United Kingdom Atomic Energy Authority,27/04/2015,MATERIALS & SPARES,FUSION,Industrial Technical Ltd,5100320744,585.05
United Kingdom Atomic Energy Authority,United Kingdom Atomic Energy Authority,20/05/2015,MATERIALS & SPARES,FUSION,Industrial Technical Ltd,5100321889,732.40
United Kingdom Atomic Energy Authority,United Kingdom Atomic Energy Authority,20/05/2015,MATERIALS & SPARES,PROPERTY,Industrial Technical Ltd,5100321891,892.50
United Kingdom Atomic Energy Authority,United Kingdom Atomic Energy Authority,18/05/2015,PLANT & EQUIPMENT,FUSION,INSIGHT DIRECT LTD,5100321484,31.99
United Kingdom Atomic Energy Authority,United Kingdom Atomic Energy Authority,18/05/2015,PLANT & EQUIPMENT,FUSION,INSIGHT DIRECT LTD,5100321483,999.99
United Kingdom Atomic Energy Authority,United Kingdom Atomic Energy Authority,18/05/2015,PLANT & EQUIPMENT,FUSION,INSIGHT DIRECT LTD,5100321507,"1,070.98"
United Kingdom Atomic Energy Authority,United Kingdom Atomic Energy Authority,11/05/2015,INTERVIEW EXPENSES,FUSION,INTERVIEW EXPENSES,1900060893, 12.60
United Kingdom Atomic Energy Authority,United Kingdom Atomic Energy Authority,11/05/2015,INTERVIEW EXPENSES,FUSION,INTERVIEW EXPENSES,1900060892, 40.50
United Kingdom Atomic Energy Authority,United Kingdom Atomic Energy Authority,11/05/2015,INTERVIEW EXPENSES,FUSION,INTERVIEW EXPENSES,1900060894, 45.45
United Kingdom Atomic Energy Authority,United Kingdom Atomic Energy Authority,11/05/2015,INTERVIEW EXPENSES,FUSION,INTERVIEW EXPENSES,1900060891, 60.30
United Kingdom Atomic Energy Authority,United Kingdom Atomic Energy Authority,11/05/2015,INTERVIEW EXPENSES,FUSION,INTERVIEW EXPENSES,1900060896, 72.00
United Kingdom Atomic Energy Authority,United Kingdom Atomic Energy Authority,29/04/2015,INTERVIEW EXPENSES,FUSION,INTERVIEW EXPENSES,1900060875, 101.70
United Kingdom Atomic Energy Authority,United Kingdom Atomic Energy Authority,11/05/2015,INTERVIEW EXPENSES,FUSION,INTERVIEW EXPENSES,1900060897, 136.05
United Kingdom Atomic Energy Authority,United Kingdom Atomic Energy Authority,07/05/2015,INTERVIEW EXPENSES,FUSION,INTERVIEW EXPENSES,1900060885, 137.25
United Kingdom Atomic Energy Authority,United Kingdom Atomic Energy Authority,29/04/2015,INTERVIEW EXPENSES,SUPPORT SERVICES,INTERVIEW EXPENSES,1900060877, 239.15
United Kingdom Atomic Energy Authority,United Kingdom Atomic Energy Authority,11/05/2015,INTERVIEW EXPENSES,FUSION,INTERVIEW EXPENSES,1900060895, 254.90
United Kingdom Atomic Energy Authority,United Kingdom Atomic Energy Authority,11/05/2015,INTERVIEW EXPENSES,FUSION,INTERVIEW EXPENSES,1900060890, 271.40
United Kingdom Atomic Energy Authority,United Kingdom Atomic Energy Authority,27/04/2015,PUBLICATIONS,FUSION,IOP PUBLISHING LTD,5100320519,"1,125.00"
United Kingdom Atomic Energy Authority,United Kingdom Atomic Energy Authority,18/05/2015,PUBLICATIONS,FUSION,IOP PUBLISHING LTD,5100321661,"1,160.63"
United Kingdom Atomic Energy Authority,United Kingdom Atomic Energy Authority,27/04/2015,PUBLICATIONS,FUSION,IOP PUBLISHING LTD,5100320518,"1,312.50"
United Kingdom Atomic Energy Authority,United Kingdom Atomic Energy Authority,27/04/2015,PUBLICATIONS,FUSION,IOP PUBLISHING LTD,5100320520,"1,593.75"
United Kingdom Atomic Energy Authority,United Kingdom Atomic Energy Authority,06/05/2015,PLANT & EQUIPMENT,FUSION,IPM FITTINGS,5100321150,53.08
United Kingdom Atomic Energy Authority,United Kingdom Atomic Energy Authority,20/05/2015,PLANT & EQUIPMENT,FUSION,IPM FITTINGS,5100321149,78.36
United Kingdom Atomic Energy Authority,United Kingdom Atomic Energy Authority,13/05/2015,PLANT & EQUIPMENT,FUSION,IPM FITTINGS,5100321151,107.50
United Kingdom Atomic Energy Authority,United Kingdom Atomic Energy Authority,06/05/2015,PLANT & EQUIPMENT,FUSION,IPM FITTINGS,5100321152,211.53
United Kingdom Atomic Energy Authority,United Kingdom Atomic Energy Authority,20/05/2015,MATERIALS & SPARES,FUSION,JAC TOOLS LTD,5100321893,177.60
United Kingdom Atomic Energy Authority,United Kingdom Atomic Energy Authority,29/04/2015,MATERIALS & SPARES,FUSION,JAMES WALKER AND CO LTD,5100320973,-144.84
United Kingdom Atomic Energy Authority,United Kingdom Atomic Energy Authority,29/04/2015,MATERIALS & SPARES,FUSION,JAMES WALKER AND CO LTD,5100320974,144.84
United Kingdom Atomic Energy Authority,United Kingdom Atomic Energy Authority,11/05/2015,IT EQUIPMENT NON CAPITAL,FUSION,JANET (UK),5100320942,"-24,261.92"
United Kingdom Atomic Energy Authority,United Kingdom Atomic Energy Authority,11/05/2015,IT EQUIPMENT NON CAPITAL,FUSION,JANET (UK),5100321075,"15,381.92"
United Kingdom Atomic Energy Authority,United Kingdom Atomic Energy Authority,11/05/2015,IT EQUIPMENT NON CAPITAL,FUSION,JANET (UK),5100319794,"72,572.60"
United Kingdom Atomic Energy Authority,United Kingdom Atomic Energy Authority,20/05/2015,PLANT SPARES,FUSION,KAISER OPTICAL SYSTEMS INC,5100321730,"4,698.41"
United Kingdom Atomic Energy Authority,United Kingdom Atomic Energy Authority,11/05/2015,MATERIALS & SPARES,FUSION,KEMET INTERNATIONAL LTD,5100321207,89.40
United Kingdom Atomic Energy Authority,United Kingdom Atomic Energy Authority,13/05/2015,PROFESSIONAL SERVICES,PROPERTY,KEMP & KEMP,5100321219,"3,900.00"
United Kingdom Atomic Energy Authority,United Kingdom Atomic Energy Authority,06/05/2015,PLANT & EQUIPMENT REPAIR,FUSION,KERRCO AUTOMATION LTD,5100321015,"1,512.50"
United Kingdom Atomic Energy Authority,United Kingdom Atomic Energy Authority,06/05/2015,MATERIALS & SPARES,FUSION,KEY INDUSTRIAL EQUIPMENT LTD,5100321058,33.25
United Kingdom Atomic Energy Authority,United Kingdom Atomic Energy Authority,06/05/2015,MATERIALS & SPARES,FUSION,KEY INDUSTRIAL EQUIPMENT LTD,5100320960,229.90
United Kingdom Atomic Energy Authority,United Kingdom Atomic Energy Authority,06/05/2015,MATERIALS & SPARES,FUSION,KEY INDUSTRIAL EQUIPMENT LTD,5100321010,260.30
United Kingdom Atomic Energy Authority,United Kingdom Atomic Energy Authority,27/04/2015,MATERIALS & SPARES,FUSION,KEY INDUSTRIAL EQUIPMENT LTD,5100320748,431.30
United Kingdom Atomic Energy Authority,United Kingdom Atomic Energy Authority,11/05/2015,SITE INFRASTRUCTURE,PROPERTY,KINGDOM SIGNS LTD,5100321167,265.00
United Kingdom Atomic Energy Authority,United Kingdom Atomic Energy Authority,11/05/2015,PLANT SPARES,FUSION,Knight Electrical Switchgear Ltd,5100321160,"16,658.00"
United Kingdom Atomic Energy Authority,United Kingdom Atomic Energy Authority,06/05/2015,PLANT SPARES,FUSION,KNIGHT OPTICAL UK LTD,5100321067,"-2,489.00"
United Kingdom Atomic Energy Authority,United Kingdom Atomic Energy Authority,11/05/2015,PLANT SPARES,FUSION,KNIGHT OPTICAL UK LTD,5100321437,-826.00
United Kingdom Atomic Energy Authority,United Kingdom Atomic Energy Authority,11/05/2015,PLANT SPARES,FUSION,KNIGHT OPTICAL UK LTD,5100320483,320.00
United Kingdom Atomic Energy Authority,United Kingdom Atomic Energy Authority,06/05/2015,PLANT SPARES,FUSION,KNIGHT OPTICAL UK LTD,5100320883,721.50
United Kingdom Atomic Energy Authority,United Kingdom Atomic Energy Authority,11/05/2015,PLANT SPARES,FUSION,KNIGHT OPTICAL UK LTD,5100321105,837.00
United Kingdom Atomic Energy Authority,United Kingdom Atomic Energy Authority,18/05/2015,PLANT SPARES,FUSION,KNIGHT OPTICAL UK LTD,5100321709,"1,481.00"
United Kingdom Atomic Energy Authority,United Kingdom Atomic Energy Authority,06/05/2015,PLANT SPARES,FUSION,KNIGHT OPTICAL UK LTD,5100320882,"2,489.00"
United Kingdom Atomic Energy Authority,United Kingdom Atomic Energy Authority,08/05/2015,BUILDING REPAIRS,FUSION,KNOWLES & SONS (OXFORD) LTD,5100321389,"-4,021.88"
United Kingdom Atomic Energy Authority,United Kingdom Atomic Energy Authority,27/04/2015,BUILDING REPAIRS,PROPERTY,KNOWLES & SONS (OXFORD) LTD,5100320750,"-3,770.14"
United Kingdom Atomic Energy Authority,United Kingdom Atomic Energy Authority,13/05/2015,BUILDING REPAIRS,FUSION,KNOWLES & SONS (OXFORD) LTD,5100321388,-400.00
United Kingdom Atomic Energy Authority,United Kingdom Atomic Energy Authority,27/04/2015,BUILDING REPAIRS,PROPERTY,KNOWLES & SONS (OXFORD) LTD,5100320751,-42.63
United Kingdom Atomic Energy Authority,United Kingdom Atomic Energy Authority,18/05/2015,BUILDING REPAIRS,FUSION,KNOWLES & SONS (OXFORD) LTD,5100321717,25.00
United Kingdom Atomic Energy Authority,United Kingdom Atomic Energy Authority,06/05/2015,BUILDING REPAIRS,FUSION,KNOWLES & SONS (OXFORD) LTD,5100321018,33.62
United Kingdom Atomic Energy Authority,United Kingdom Atomic Energy Authority,18/05/2015,BUILDING REPAIRS,FUSION,KNOWLES & SONS (OXFORD) LTD,5100321716,36.54
United Kingdom Atomic Energy Authority,United Kingdom Atomic Energy Authority,06/05/2015,BUILDING REPAIRS,SUPPORT SERVICES,KNOWLES & SONS (OXFORD) LTD,5100321014,48.39
United Kingdom Atomic Energy Authority,United Kingdom Atomic Energy Authority,06/05/2015,BUILDING REPAIRS,PROPERTY,KNOWLES & SONS (OXFORD) LTD,5100321017,72.35
United Kingdom Atomic Energy Authority,United Kingdom Atomic Energy Authority,18/05/2015,BUILDING REPAIRS,PROPERTY,KNOWLES & SONS (OXFORD) LTD,5100321715,94.81
United Kingdom Atomic Energy Authority,United Kingdom Atomic Energy Authority,18/05/2015,BUILDING REPAIRS,FUSION,KNOWLES & SONS (OXFORD) LTD,5100321713,121.00
United Kingdom Atomic Energy Authority,United Kingdom Atomic Energy Authority,06/05/2015,BUILDING REPAIRS,SUPPORT SERVICES,KNOWLES & SONS (OXFORD) LTD,5100321013,143.35
United Kingdom Atomic Energy Authority,United Kingdom Atomic Energy Authority,18/05/2015,BUILDING REPAIRS,PROPERTY,KNOWLES & SONS (OXFORD) LTD,5100321711,164.76
United Kingdom Atomic Energy Authority,United Kingdom Atomic Energy Authority,06/05/2015,BUILDING REPAIRS,FUSION,KNOWLES & SONS (OXFORD) LTD,5100321019,202.91
United Kingdom Atomic Energy Authority,United Kingdom Atomic Energy Authority,18/05/2015,BUILDING REPAIRS,FUSION,KNOWLES & SONS (OXFORD) LTD,5100321707,335.50
United Kingdom Atomic Energy Authority,United Kingdom Atomic Energy Authority,06/05/2015,BUILDING REPAIRS,FUSION,KNOWLES & SONS (OXFORD) LTD,5100321011,336.60
United Kingdom Atomic Energy Authority,United Kingdom Atomic Energy Authority,06/05/2015,BUILDING REPAIRS,SUPPORT SERVICES,KNOWLES & SONS (OXFORD) LTD,5100321009,380.17
United Kingdom Atomic Energy Authority,United Kingdom Atomic Energy Authority,18/05/2015,BUILDING REPAIRS,PROPERTY,KNOWLES & SONS (OXFORD) LTD,5100321705,"1,263.41"
United Kingdom Atomic Energy Authority,United Kingdom Atomic Energy Authority,06/05/2015,BUILDING REPAIRS,FUSION,KNOWLES & SONS (OXFORD) LTD,5100321007,"2,328.11"
United Kingdom Atomic Energy Authority,United Kingdom Atomic Energy Authority,18/05/2015,BUILDING REPAIRS,PROPERTY,KNOWLES & SONS (OXFORD) LTD,5100321704,"3,009.75"
United Kingdom Atomic Energy Authority,United Kingdom Atomic Energy Authority,18/05/2015,BUILDING REPAIRS,PROPERTY,KNOWLES & SONS (OXFORD) LTD,5100321702,"3,018.51"
United Kingdom Atomic Energy Authority,United Kingdom Atomic Energy Authority,08/05/2015,BUILDING REPAIRS,FUSION,KNOWLES & SONS (OXFORD) LTD,5100321387,"4,021.88"
United Kingdom Atomic Energy Authority,United Kingdom Atomic Energy Authority,13/05/2015,BUILDING REPAIRS,FUSION,KNOWLES & SONS (OXFORD) LTD,5100321390,"4,021.88"
United Kingdom Atomic Energy Authority,United Kingdom Atomic Energy Authority,27/04/2015,BUILDING REPAIRS,PROPERTY,KNOWLES & SONS (OXFORD) LTD,5100320190,"14,554.92"
United Kingdom Atomic Energy Authority,United Kingdom Atomic Energy Authority,27/04/2015,BUILDING REPAIRS,PROPERTY,KNOWLES & SONS (OXFORD) LTD,5100320191,"37,549.30"
United Kingdom Atomic Energy Authority,United Kingdom Atomic Energy Authority,11/05/2015,RENT OF VEHICLE & EQUIPMENT,FUSION,KONSTRUCTA SITE ACCOMMODATION HIRE,5100321279,402.00
United Kingdom Atomic Energy Authority,United Kingdom Atomic Energy Authority,11/05/2015,CONFERENCES/MEETINGS,FUSION,VISITOR EXPENSES,1900060898, 723.38
United Kingdom Atomic Energy Authority,United Kingdom Atomic Energy Authority,13/05/2015,MATERIALS & SPARES,FUSION,KURT J LESKER,5100321335,35.00
United Kingdom Atomic Energy Authority,United Kingdom Atomic Energy Authority,11/05/2015,MATERIALS & SPARES,FUSION,KURT J LESKER,5100321194,279.00
United Kingdom Atomic Energy Authority,United Kingdom Atomic Energy Authority,11/05/2015,MATERIALS & SPARES,FUSION,KURT J LESKER,5100321331,375.75
United Kingdom Atomic Energy Authority,United Kingdom Atomic Energy Authority,18/05/2015,MATERIALS & SPARES,FUSION,KURT J LESKER,5100321786,403.00
United Kingdom Atomic Energy Authority,United Kingdom Atomic Energy Authority,20/05/2015,CAR HIRE,FUSION,LEASEDRIVE VELO,5100321963,-189.93
United Kingdom Atomic Energy Authority,United Kingdom Atomic Energy Authority,27/04/2015,CAR HIRE,FUSION,LEASEDRIVE VELO,5100320682,35.84
United Kingdom Atomic Energy Authority,United Kingdom Atomic Energy Authority,18/05/2015,CAR HIRE,FUSION,LEASEDRIVE VELO,5100321670,36.44
United Kingdom Atomic Energy Authority,United Kingdom Atomic Energy Authority,18/05/2015,CAR HIRE,FUSION,LEASEDRIVE VELO,5100321673,40.20
United Kingdom Atomic Energy Authority,United Kingdom Atomic Energy Authority,27/04/2015,CAR HIRE,FUSION,LEASEDRIVE VELO,5100320681,40.83
United Kingdom Atomic Energy Authority,United Kingdom Atomic Energy Authority,18/05/2015,CAR HIRE,FUSION,LEASEDRIVE VELO,5100321330,45.86
United Kingdom Atomic Energy Authority,United Kingdom Atomic Energy Authority,06/05/2015,CAR HIRE,FUSION,LEASEDRIVE VELO,5100321028,45.86
United Kingdom Atomic Energy Authority,United Kingdom Atomic Energy Authority,11/05/2015,CAR HIRE,FUSION,LEASEDRIVE VELO,5100321024,48.06
United Kingdom Atomic Energy Authority,United Kingdom Atomic Energy Authority,11/05/2015,CAR HIRE,FUSION,LEASEDRIVE VELO,5100321026,59.38
United Kingdom Atomic Energy Authority,United Kingdom Atomic Energy Authority,06/05/2015,CAR HIRE,FUSION,LEASEDRIVE VELO,5100320839,67.50
United Kingdom Atomic Energy Authority,United Kingdom Atomic Energy Authority,18/05/2015,CAR HIRE,FUSION,LEASEDRIVE VELO,5100321669,72.88
United Kingdom Atomic Energy Authority,United Kingdom Atomic Energy Authority,06/05/2015,CAR HIRE,FUSION,LEASEDRIVE VELO,5100321025,74.14
United Kingdom Atomic Energy Authority,United Kingdom Atomic Energy Authority,18/05/2015,CAR HIRE,FUSION,LEASEDRIVE VELO,5100321672,91.72
United Kingdom Atomic Energy Authority,United Kingdom Atomic Energy Authority,06/05/2015,CAR HIRE,FUSION,LEASEDRIVE VELO,5100321027,119.14
United Kingdom Atomic Energy Authority,United Kingdom Atomic Energy Authority,20/05/2015,CAR HIRE,FUSION,LEASEDRIVE VELO,5100321964,189.93
United Kingdom Atomic Energy Authority,United Kingdom Atomic Energy Authority,27/04/2015,PLANT & EQUIPMENT,FUSION,LEMO UK LTD,5100320889,-361.46
United Kingdom Atomic Energy Authority,United Kingdom Atomic Energy Authority,27/04/2015,PLANT & EQUIPMENT,FUSION,LEMO UK LTD,5100320150,98.00
United Kingdom Atomic Energy Authority,United Kingdom Atomic Energy Authority,27/04/2015,PLANT & EQUIPMENT,FUSION,LEMO UK LTD,5100320545,141.75
United Kingdom Atomic Energy Authority,United Kingdom Atomic Energy Authority,27/04/2015,PLANT & EQUIPMENT,FUSION,LEMO UK LTD,5100320747,220.55
United Kingdom Atomic Energy Authority,United Kingdom Atomic Energy Authority,06/05/2015,PLANT & EQUIPMENT,FUSION,LEMO UK LTD,5100321016,262.50
United Kingdom Atomic Energy Authority,United Kingdom Atomic Energy Authority,27/04/2015,PLANT & EQUIPMENT,FUSION,LEMO UK LTD,5100320000,359.25
United Kingdom Atomic Energy Authority,United Kingdom Atomic Energy Authority,27/04/2015,PLANT & EQUIPMENT,FUSION,LEMO UK LTD,5100320890,361.46
United Kingdom Atomic Energy Authority,United Kingdom Atomic Energy Authority,27/04/2015,PLANT & EQUIPMENT,FUSION,LEMO UK LTD,5100319745,"3,836.90"
United Kingdom Atomic Energy Authority,United Kingdom Atomic Energy Authority,07/05/2015,MATERIALS & SPARES,FUSION,Lennox Uk Ltd,5100320577,735.00
United Kingdom Atomic Energy Authority,United Kingdom Atomic Energy Authority,11/05/2015,PROFESSIONAL SERVICES,SUPPORT SERVICES,LOGICA CMG UK LTD,5100321108,"2,616.37"
United Kingdom Atomic Energy Authority,United Kingdom Atomic Energy Authority,07/05/2015,SUBSISTENCE,FUSION,VISITOR EXPENSES,1900060882, 202.25
United Kingdom Atomic Energy Authority,United Kingdom Atomic Energy Authority,20/05/2015,BUILDING REPAIRS,PROPERTY,LORNE STEWART PLC,5100321759,"-6,131.20"
United Kingdom Atomic Energy Authority,United Kingdom Atomic Energy Authority,20/05/2015,BUILDING REPAIRS,PROPERTY,LORNE STEWART PLC,5100321731,38.84
United Kingdom Atomic Energy Authority,United Kingdom Atomic Energy Authority,20/05/2015,BUILDING REPAIRS,FUSION,LORNE STEWART PLC,5100321751,92.02
United Kingdom Atomic Energy Authority,United Kingdom Atomic Energy Authority,20/05/2015,BUILDING REPAIRS,PROPERTY,LORNE STEWART PLC,5100321737,105.16
United Kingdom Atomic Energy Authority,United Kingdom Atomic Energy Authority,20/05/2015,BUILDING REPAIRS,PROPERTY,LORNE STEWART PLC,5100321757,131.45
United Kingdom Atomic Energy Authority,United Kingdom Atomic Energy Authority,20/05/2015,BUILDING REPAIRS,FUSION,LORNE STEWART PLC,5100321758,158.26
United Kingdom Atomic Energy Authority,United Kingdom Atomic Energy Authority,20/05/2015,BUILDING REPAIRS,FUSION,LORNE STEWART PLC,5100321760,228.98
United Kingdom Atomic Energy Authority,United Kingdom Atomic Energy Authority,20/05/2015,BUILDING REPAIRS,PROPERTY,LORNE STEWART PLC,5100321728,350.43
United Kingdom Atomic Energy Authority,United Kingdom Atomic Energy Authority,20/05/2015,BUILDING REPAIRS,FUSION,LORNE STEWART PLC,5100321762,436.55
United Kingdom Atomic Energy Authority,United Kingdom Atomic Energy Authority,20/05/2015,BUILDING REPAIRS,FUSION,LORNE STEWART PLC,5100321753,440.34
United Kingdom Atomic Energy Authority,United Kingdom Atomic Energy Authority,20/05/2015,BUILDING REPAIRS,FUSION,LORNE STEWART PLC,5100321761,496.05
United Kingdom Atomic Energy Authority,United Kingdom Atomic Energy Authority,20/05/2015,BUILDING REPAIRS,PROPERTY,LORNE STEWART PLC,5100321727,700.85
United Kingdom Atomic Energy Authority,United Kingdom Atomic Energy Authority,20/05/2015,BUILDING REPAIRS,FUSION,LORNE STEWART PLC,5100321736,712.95
United Kingdom Atomic Energy Authority,United Kingdom Atomic Energy Authority,20/05/2015,BUILDING REPAIRS,FUSION,LORNE STEWART PLC,5100321754,831.60
United Kingdom Atomic Energy Authority,United Kingdom Atomic Energy Authority,20/05/2015,BUILDING REPAIRS,PROPERTY,LORNE STEWART PLC,5100321729,"1,853.05"
United Kingdom Atomic Energy Authority,United Kingdom Atomic Energy Authority,20/05/2015,BUILDING REPAIRS,PROPERTY,LORNE STEWART PLC,5100321756,"1,987.89"
United Kingdom Atomic Energy Authority,United Kingdom Atomic Energy Authority,20/05/2015,BUILDING REPAIRS,PROPERTY,LORNE STEWART PLC,5100321755,"2,132.82"
United Kingdom Atomic Energy Authority,United Kingdom Atomic Energy Authority,20/05/2015,BUILDING REPAIRS,SUPPORT SERVICES,LORNE STEWART PLC,5100321750,"3,363.72"
United Kingdom Atomic Energy Authority,United Kingdom Atomic Energy Authority,20/05/2015,BUILDING REPAIRS,PROPERTY,LORNE STEWART PLC,5100321724,"3,474.78"
United Kingdom Atomic Energy Authority,United Kingdom Atomic Energy Authority,20/05/2015,BUILDING REPAIRS,FUSION,LORNE STEWART PLC,5100321745,"4,152.14"
United Kingdom Atomic Energy Authority,United Kingdom Atomic Energy Authority,20/05/2015,BUILDING REPAIRS,FUSION,LORNE STEWART PLC,5100321726,"6,196.57"
United Kingdom Atomic Energy Authority,United Kingdom Atomic Energy Authority,20/05/2015,BUILDING REPAIRS,PROPERTY,LORNE STEWART PLC,5100321723,"12,217.38"
United Kingdom Atomic Energy Authority,United Kingdom Atomic Energy Authority,20/05/2015,BUILDING REPAIRS,FUSION,LORNE STEWART PLC,5100321725,"19,702.84"
United Kingdom Atomic Energy Authority,United Kingdom Atomic Energy Authority,20/05/2015,BUILDING REPAIRS,PROPERTY,LORNE STEWART PLC,5100321738,"30,944.08"
United Kingdom Atomic Energy Authority,United Kingdom Atomic Energy Authority,11/05/2015,PROFESSIONAL SERVICES,FUSION,LOUGHBOROUGH UNIVERSITY,5100321318,727.32
United Kingdom Atomic Energy Authority,United Kingdom Atomic Energy Authority,27/04/2015,MATERIALS & SPARES,FUSION,LPKF LASER AND ELECTRONICS LTD,5100320768,552.90
United Kingdom Atomic Energy Authority,United Kingdom Atomic Energy Authority,27/04/2015,STATIONERY,FUSION,LYRECO UK LIMITED,5100320729,35.48
United Kingdom Atomic Energy Authority,United Kingdom Atomic Energy Authority,06/05/2015,STATIONERY,FUSION,LYRECO UK LIMITED,5100321062,71.44
United Kingdom Atomic Energy Authority,United Kingdom Atomic Energy Authority,06/05/2015,STATIONERY,FUSION,LYRECO UK LIMITED,5100321061,143.80
United Kingdom Atomic Energy Authority,United Kingdom Atomic Energy Authority,27/04/2015,STATIONERY,FUSION,LYRECO UK LIMITED,5100320730,155.26
United Kingdom Atomic Energy Authority,United Kingdom Atomic Energy Authority,20/05/2015,STATIONERY,FUSION,LYRECO UK LIMITED,5100321898,163.05
United Kingdom Atomic Energy Authority,United Kingdom Atomic Energy Authority,27/04/2015,STATIONERY,FUSION,LYRECO UK LIMITED,5100320731,277.19
United Kingdom Atomic Energy Authority,United Kingdom Atomic Energy Authority,29/04/2015,STATIONERY,FUSION,LYRECO UK LIMITED,5100320732,439.19
United Kingdom Atomic Energy Authority,United Kingdom Atomic Energy Authority,20/05/2015,STATIONERY,FUSION,LYRECO UK LIMITED,5100321897,496.07
United Kingdom Atomic Energy Authority,United Kingdom Atomic Energy Authority,27/04/2015,STATIONERY,FUSION,LYRECO UK LIMITED,5100320733,642.17
United Kingdom Atomic Energy Authority,United Kingdom Atomic Energy Authority,20/05/2015,TRAINING COURSE FEES,FUSION,MACGREGOR INDUSTRIES LTD,5100321876,124.20
United Kingdom Atomic Energy Authority,United Kingdom Atomic Energy Authority,27/04/2015,PROFESSIONAL SERVICES,FUSION,MACHINING TECHNOLOGY (MACH-TECH),5100320781,135.00
United Kingdom Atomic Energy Authority,United Kingdom Atomic Energy Authority,11/05/2015,PROFESSIONAL SERVICES,FUSION,MACHINING TECHNOLOGY (MACH-TECH),5100321263,242.25
United Kingdom Atomic Energy Authority,United Kingdom Atomic Energy Authority,06/05/2015,PROFESSIONAL SERVICES,FUSION,MACHINING TECHNOLOGY (MACH-TECH),5100321031,279.62
United Kingdom Atomic Energy Authority,United Kingdom Atomic Energy Authority,11/05/2015,PROFESSIONAL SERVICES,FUSION,MACHINING TECHNOLOGY (MACH-TECH),5100321259,320.00
United Kingdom Atomic Energy Authority,United Kingdom Atomic Energy Authority,06/05/2015,PROFESSIONAL SERVICES,FUSION,MACHINING TECHNOLOGY (MACH-TECH),5100321032,466.27
United Kingdom Atomic Energy Authority,United Kingdom Atomic Energy Authority,11/05/2015,PROFESSIONAL SERVICES,FUSION,MACHINING TECHNOLOGY (MACH-TECH),5100321260,505.68
United Kingdom Atomic Energy Authority,United Kingdom Atomic Energy Authority,27/04/2015,PROFESSIONAL SERVICES,FUSION,MACHINING TECHNOLOGY (MACH-TECH),5100320782,801.85
United Kingdom Atomic Energy Authority,United Kingdom Atomic Energy Authority,27/04/2015,PROFESSIONAL SERVICES,FUSION,MACHINING TECHNOLOGY (MACH-TECH),5100320783,931.00
United Kingdom Atomic Energy Authority,United Kingdom Atomic Energy Authority,11/05/2015,PROFESSIONAL SERVICES,FUSION,MACHINING TECHNOLOGY (MACH-TECH),5100321264,949.19
United Kingdom Atomic Energy Authority,United Kingdom Atomic Energy Authority,11/05/2015,PROFESSIONAL SERVICES,FUSION,MACHINING TECHNOLOGY (MACH-TECH),5100321261,"2,743.00"
United Kingdom Atomic Energy Authority,United Kingdom Atomic Energy Authority,06/05/2015,CONSUMABLES,FUSION,MacHowie Transport ltd,5100321118,700.00
United Kingdom Atomic Energy Authority,United Kingdom Atomic Energy Authority,06/05/2015,PLANT & EQUIPMENT,FUSION,MANNTEC LIMITED,5100320741,60.00
United Kingdom Atomic Energy Authority,United Kingdom Atomic Energy Authority,06/05/2015,PLANT & EQUIPMENT,FUSION,MANNTEC LIMITED,5100320742,75.00
United Kingdom Atomic Energy Authority,United Kingdom Atomic Energy Authority,20/05/2015,PROFESSIONAL SERVICES,FUSION,MARCHAM SCIENTIFIC LTD,5100321826,"3,250.00"
United Kingdom Atomic Energy Authority,United Kingdom Atomic Energy Authority,11/05/2015,MATERIALS & SPARES,FUSION,Marker Tech ltd,5100321325,126.57
United Kingdom Atomic Energy Authority,United Kingdom Atomic Energy Authority,29/04/2015,INSURANCE,SUPPORT SERVICES,MARSH UK LIMITED,5100320912,"-1,590.00"
United Kingdom Atomic Energy Authority,United Kingdom Atomic Energy Authority,29/04/2015,INSURANCE,SUPPORT SERVICES,MARSH UK LIMITED,5100320845,"1,060.00"
United Kingdom Atomic Energy Authority,United Kingdom Atomic Energy Authority,06/05/2015,INSURANCE,SUPPORT SERVICES,MARSH UK LIMITED,5100320914,"1,179.25"
United Kingdom Atomic Energy Authority,United Kingdom Atomic Energy Authority,06/05/2015,INSURANCE,SUPPORT SERVICES,MARSH UK LIMITED,5100321131,"1,200.00"
United Kingdom Atomic Energy Authority,United Kingdom Atomic Energy Authority,29/04/2015,INSURANCE,SUPPORT SERVICES,MARSH UK LIMITED,5100320911,"1,590.00"
United Kingdom Atomic Energy Authority,United Kingdom Atomic Energy Authority,29/04/2015,INSURANCE,SUPPORT SERVICES,MARSH UK LIMITED,5100320913,"1,590.00"
United Kingdom Atomic Energy Authority,United Kingdom Atomic Energy Authority,29/04/2015,INSURANCE,SUPPORT SERVICES,MARSH UK LIMITED,5100320834,"7,091.40"
United Kingdom Atomic Energy Authority,United Kingdom Atomic Energy Authority,27/04/2015,INSURANCE,SUPPORT SERVICES,MARSH UK LIMITED,5100320521,"8,193.80"
United Kingdom Atomic Energy Authority,United Kingdom Atomic Energy Authority,18/05/2015,INSURANCE,SUPPORT SERVICES,MARSH UK LIMITED,5100321679,"20,000.00"
United Kingdom Atomic Energy Authority,United Kingdom Atomic Energy Authority,29/04/2015,INSURANCE,SUPPORT SERVICES,MARSH UK LIMITED,5100320842,"62,467.92"
United Kingdom Atomic Energy Authority,United Kingdom Atomic Energy Authority,07/05/2015,HEALTH PHYSICS,FUSION,Marshalton Research,5100320961,"2,063.73"
United Kingdom Atomic Energy Authority,United Kingdom Atomic Energy Authority,18/05/2015,PROFESSIONAL SERVICES,FUSION,MATERIAL MEASUREMENTS LTD.,5100321457,95.00
United Kingdom Atomic Energy Authority,United Kingdom Atomic Energy Authority,13/05/2015,MATERIALS: NON-HAZARDOUS,FUSION,Materion Electrofusion,5100320293,"16,119.76"
United Kingdom Atomic Energy Authority,United Kingdom Atomic Energy Authority,13/05/2015,MATERIALS: NON-HAZARDOUS,FUSION,Materion Electrofusion,5100320583,"16,215.88"
United Kingdom Atomic Energy Authority,United Kingdom Atomic Energy Authority,06/05/2015,PROFESSIONAL SERVICES,PROPERTY,MCBAINS COOPER,5100320984,50.00
United Kingdom Atomic Energy Authority,United Kingdom Atomic Energy Authority,06/05/2015,PROFESSIONAL SERVICES,PROPERTY,MCBAINS COOPER,5100320985,175.00
United Kingdom Atomic Energy Authority,United Kingdom Atomic Energy Authority,06/05/2015,PROFESSIONAL SERVICES,PROPERTY,MCBAINS COOPER,5100320986,225.00
United Kingdom Atomic Energy Authority,United Kingdom Atomic Energy Authority,06/05/2015,PROFESSIONAL SERVICES,PROPERTY,MCBAINS COOPER,5100320971,900.00
United Kingdom Atomic Energy Authority,United Kingdom Atomic Energy Authority,06/05/2015,PROFESSIONAL SERVICES,FUSION,MCBAINS COOPER,5100321041,"1,000.00"
United Kingdom Atomic Energy Authority,United Kingdom Atomic Energy Authority,06/05/2015,PLANT & EQUIPMENT,FUSION,MCDC VACCUUM LTD,5100321040,132.00
United Kingdom Atomic Energy Authority,United Kingdom Atomic Energy Authority,06/05/2015,PLANT & EQUIPMENT,FUSION,MCDC VACCUUM LTD,5100320861,153.80
United Kingdom Atomic Energy Authority,United Kingdom Atomic Energy Authority,29/04/2015,PLANT & EQUIPMENT,FUSION,MCDC VACCUUM LTD,5100320217,347.08
United Kingdom Atomic Energy Authority,United Kingdom Atomic Energy Authority,18/05/2015,PLANT & EQUIPMENT,FUSION,MCDC VACCUUM LTD,5100321633,537.16
United Kingdom Atomic Energy Authority,United Kingdom Atomic Energy Authority,27/04/2015,MATERIALS & SPARES,FUSION,MCT Brattberg Ltd,5100320534,"6,025.67"
United Kingdom Atomic Energy Authority,United Kingdom Atomic Energy Authority,06/05/2015,MATERIALS & SPARES,FUSION,MECHANICAL CLEANSING SERVICES LIMITED,5100320900,545.06
United Kingdom Atomic Energy Authority,United Kingdom Atomic Energy Authority,29/04/2015,MATERIALS & SPARES,FUSION,MEDLINE SCIENTIFIC LTD,5100320513,63.97
United Kingdom Atomic Energy Authority,United Kingdom Atomic Energy Authority,11/05/2015,MATERIALS & SPARES,FUSION,MEDLINE SCIENTIFIC LTD,5100321204,67.63
United Kingdom Atomic Energy Authority,United Kingdom Atomic Energy Authority,27/04/2015,MATERIALS & SPARES,FUSION,MEDLINE SCIENTIFIC LTD,5100320512,126.99
United Kingdom Atomic Energy Authority,United Kingdom Atomic Energy Authority,13/05/2015,PLANT SPARES,FUSION,MERSEN UK PORTSLADE LTD,5100321233,366.93
United Kingdom Atomic Energy Authority,United Kingdom Atomic Energy Authority,06/05/2015,MATERIALS & SPARES,FUSION,METALFAST (A DIVISION OF,5100321262,-123.50
United Kingdom Atomic Energy Authority,United Kingdom Atomic Energy Authority,29/04/2015,MATERIALS & SPARES,FUSION,METALFAST (A DIVISION OF,5100320529,87.00
United Kingdom Atomic Energy Authority,United Kingdom Atomic Energy Authority,27/04/2015,MATERIALS & SPARES,FUSION,METALFAST (A DIVISION OF,5100320753,88.50
United Kingdom Atomic Energy Authority,United Kingdom Atomic Energy Authority,11/05/2015,MATERIALS & SPARES,FUSION,METALFAST (A DIVISION OF,5100321188,110.00
United Kingdom Atomic Energy Authority,United Kingdom Atomic Energy Authority,06/05/2015,MATERIALS & SPARES,FUSION,METALFAST (A DIVISION OF,5100320916,123.50
United Kingdom Atomic Energy Authority,United Kingdom Atomic Energy Authority,06/05/2015,MATERIALS & SPARES,FUSION,METALFAST (A DIVISION OF,5100321265,123.50
United Kingdom Atomic Energy Authority,United Kingdom Atomic Energy Authority,29/04/2015,MATERIALS & SPARES,FUSION,METALFAST (A DIVISION OF,5100320377,184.50
United Kingdom Atomic Energy Authority,United Kingdom Atomic Energy Authority,06/05/2015,MATERIALS & SPARES,FUSION,METALFAST (A DIVISION OF,5100320915,260.73
United Kingdom Atomic Energy Authority,United Kingdom Atomic Energy Authority,29/04/2015,MATERIALS & SPARES,FUSION,METALWEB,5100320709,288.00
United Kingdom Atomic Energy Authority,United Kingdom Atomic Energy Authority,06/05/2015,PROFESSIONAL SERVICES,FUSION,METRO ENGINEERING AND PLATING WORKS,5100321121,100.00
United Kingdom Atomic Energy Authority,United Kingdom Atomic Energy Authority,11/05/2015,MATERIALS & SPARES,FUSION,METSPIN LTD,5100321193,831.50
United Kingdom Atomic Energy Authority,United Kingdom Atomic Energy Authority,27/04/2015,PLANT & EQUIPMENT,FUSION,MF HYDRAULICS LTD,5100320532,24.44
United Kingdom Atomic Energy Authority,United Kingdom Atomic Energy Authority,06/05/2015,PLANT & EQUIPMENT,FUSION,MF HYDRAULICS LTD,5100320785,557.40
United Kingdom Atomic Energy Authority,United Kingdom Atomic Energy Authority,13/05/2015,PLANT & EQUIPMENT,FUSION,MILLHILL TOOLS LTD,5100321409,4.62
United Kingdom Atomic Energy Authority,United Kingdom Atomic Energy Authority,13/05/2015,PLANT & EQUIPMENT,FUSION,MILLHILL TOOLS LTD,5100321398,4.64
United Kingdom Atomic Energy Authority,United Kingdom Atomic Energy Authority,13/05/2015,PLANT & EQUIPMENT,FUSION,MILLHILL TOOLS LTD,5100321400,17.83
United Kingdom Atomic Energy Authority,United Kingdom Atomic Energy Authority,13/05/2015,PLANT & EQUIPMENT,FUSION,MILLHILL TOOLS LTD,5100321403,39.12
United Kingdom Atomic Energy Authority,United Kingdom Atomic Energy Authority,13/05/2015,PLANT & EQUIPMENT,FUSION,MILLHILL TOOLS LTD,5100321411,47.12
United Kingdom Atomic Energy Authority,United Kingdom Atomic Energy Authority,13/05/2015,PLANT & EQUIPMENT,FUSION,MILLHILL TOOLS LTD,5100321406,56.21
United Kingdom Atomic Energy Authority,United Kingdom Atomic Energy Authority,13/05/2015,PLANT & EQUIPMENT,FUSION,MILLHILL TOOLS LTD,5100321405,59.23
United Kingdom Atomic Energy Authority,United Kingdom Atomic Energy Authority,13/05/2015,PLANT & EQUIPMENT,FUSION,MILLHILL TOOLS LTD,5100321399,92.47
United Kingdom Atomic Energy Authority,United Kingdom Atomic Energy Authority,13/05/2015,PLANT & EQUIPMENT,FUSION,MILLHILL TOOLS LTD,5100321401,94.39
United Kingdom Atomic Energy Authority,United Kingdom Atomic Energy Authority,13/05/2015,PLANT & EQUIPMENT,FUSION,MILLHILL TOOLS LTD,5100321407,94.73
United Kingdom Atomic Energy Authority,United Kingdom Atomic Energy Authority,13/05/2015,PLANT & EQUIPMENT,FUSION,MILLHILL TOOLS LTD,5100321402,149.56
United Kingdom Atomic Energy Authority,United Kingdom Atomic Energy Authority,06/05/2015,MATERIALS & SPARES,FUSION,MINATOL LIMITED,5100320918,161.04
United Kingdom Atomic Energy Authority,United Kingdom Atomic Energy Authority,06/05/2015,MATERIALS & SPARES,FUSION,MINI-CIRCUITS EUROPE,5100320848,122.20
United Kingdom Atomic Energy Authority,United Kingdom Atomic Energy Authority,27/04/2015,PROFESSIONAL SERVICES,FUSION,MKS INSTRUMENT UK LIMITED,5100320816,"1,883.00"
United Kingdom Atomic Energy Authority,United Kingdom Atomic Energy Authority,18/05/2015,PROFESSIONAL SERVICES,FUSION,MKS INSTRUMENT UK LIMITED,5100321569,"4,010.00"
United Kingdom Atomic Energy Authority,United Kingdom Atomic Energy Authority,06/05/2015,PROFESSIONAL SERVICES,FUSION,MKS INSTRUMENT UK LIMITED,5100320992,"9,980.00"
United Kingdom Atomic Energy Authority,United Kingdom Atomic Energy Authority,01/05/2015,VISITOR EXPENSES,FUSION,VISITOR EXPENSES,1900060880," 1,148.69"
United Kingdom Atomic Energy Authority,United Kingdom Atomic Energy Authority,27/04/2015,LEGAL FEES,PROPERTY,MORGAN COLE,5100320542,3.00
United Kingdom Atomic Energy Authority,United Kingdom Atomic Energy Authority,27/04/2015,LEGAL FEES,PROPERTY,MORGAN COLE,5100320553,9.00
United Kingdom Atomic Energy Authority,United Kingdom Atomic Energy Authority,27/04/2015,LEGAL FEES,PROPERTY,MORGAN COLE,5100320547,255.00
United Kingdom Atomic Energy Authority,United Kingdom Atomic Energy Authority,27/04/2015,LEGAL FEES,PROPERTY,MORGAN COLE,5100320544,405.00
United Kingdom Atomic Energy Authority,United Kingdom Atomic Energy Authority,27/04/2015,LEGAL FEES,PROPERTY,MORGAN COLE,5100320552,420.00
United Kingdom Atomic Energy Authority,United Kingdom Atomic Energy Authority,13/05/2015,LEGAL FEES,PROPERTY,MORGAN COLE,5100321414,449.50
United Kingdom Atomic Energy Authority,United Kingdom Atomic Energy Authority,27/04/2015,LEGAL FEES,PROPERTY,MORGAN COLE,5100320549,450.00
United Kingdom Atomic Energy Authority,United Kingdom Atomic Energy Authority,13/05/2015,LEGAL FEES,PROPERTY,MORGAN COLE,5100321416,508.50
United Kingdom Atomic Energy Authority,United Kingdom Atomic Energy Authority,20/05/2015,LEGAL FEES,PROPERTY,MORGAN COLE,5100321942,660.00
United Kingdom Atomic Energy Authority,United Kingdom Atomic Energy Authority,13/05/2015,LEGAL FEES,PROPERTY,MORGAN COLE,5100321417,"1,352.50"
United Kingdom Atomic Energy Authority,United Kingdom Atomic Energy Authority,27/04/2015,LEGAL FEES,PROPERTY,MORGAN COLE,5100320339,"1,455.00"
United Kingdom Atomic Energy Authority,United Kingdom Atomic Energy Authority,27/04/2015,LEGAL FEES,PROPERTY,MORGAN COLE,5100320540,"2,000.00"
United Kingdom Atomic Energy Authority,United Kingdom Atomic Energy Authority,18/05/2015,HIRED STAFF,FUSION,MORSON INTERNATIONAL,5100321649,-433.62
United Kingdom Atomic Energy Authority,United Kingdom Atomic Energy Authority,11/05/2015,HIRED STAFF,FUSION,MORSON INTERNATIONAL,5100321185,-47.00
United Kingdom Atomic Energy Authority,United Kingdom Atomic Energy Authority,18/05/2015,HIRED STAFF,FUSION,MORSON INTERNATIONAL,5100321652,433.62
United Kingdom Atomic Energy Authority,United Kingdom Atomic Energy Authority,11/05/2015,HIRED STAFF,FUSION,MORSON INTERNATIONAL,5100321232,"2,276.27"
United Kingdom Atomic Energy Authority,United Kingdom Atomic Energy Authority,11/05/2015,HIRED STAFF,FUSION,MORSON INTERNATIONAL,5100321252,"448,581.37"
United Kingdom Atomic Energy Authority,United Kingdom Atomic Energy Authority,11/05/2015,PLANT SPARES,FUSION,MOTION CONTROL PRODUCTS,5100321328,"3,161.27"
United Kingdom Atomic Energy Authority,United Kingdom Atomic Energy Authority,20/05/2015,MATERIALS & SPARES,FUSION,MOUSER ELECTRONICS,5100321684,27.60
United Kingdom Atomic Energy Authority,United Kingdom Atomic Energy Authority,06/05/2015,PLANT & EQUIPMENT,FUSION,MR BOX LTD,5100321039,52.00
United Kingdom Atomic Energy Authority,United Kingdom Atomic Energy Authority,01/05/2015,VISITOR EXPENSES,FUSION,VISITOR EXPENSES,1900060881, 874.53
United Kingdom Atomic Energy Authority,United Kingdom Atomic Energy Authority,18/05/2015,TRAINING COURSE FEES,FUSION,NAFEMS LTD,5100321685,152.00
United Kingdom Atomic Energy Authority,United Kingdom Atomic Energy Authority,11/05/2015,ELECTRICITY,FUSION,NATIONAL GRID TRANSCO,5100321095,"3,821.45"
United Kingdom Atomic Energy Authority,United Kingdom Atomic Energy Authority,20/05/2015,PLANT & EQUIPMENT,FUSION,NATIONAL INSTITUTE FOR LASER PLASMA,5100321340,737.21
United Kingdom Atomic Energy Authority,United Kingdom Atomic Energy Authority,27/04/2015,PLANT & EQUIPMENT,FUSION,NATIONAL INSTRUMENTS LTD,5100320619,95.08
United Kingdom Atomic Energy Authority,United Kingdom Atomic Energy Authority,11/05/2015,SAFETY STORES,FUSION,NETWORK SIGNS,5100321312,402.00
United Kingdom Atomic Energy Authority,United Kingdom Atomic Energy Authority,29/04/2015,PLANT & EQUIPMENT,FUSION,NEW PIG LTD,5100320792,12.45
United Kingdom Atomic Energy Authority,United Kingdom Atomic Energy Authority,29/04/2015,PLANT & EQUIPMENT,FUSION,NEW PIG LTD,5100320620,49.50
United Kingdom Atomic Energy Authority,United Kingdom Atomic Energy Authority,29/04/2015,PLANT & EQUIPMENT,FUSION,NEW PIG LTD,5100320683,92.90
United Kingdom Atomic Energy Authority,United Kingdom Atomic Energy Authority,29/04/2015,PLANT & EQUIPMENT,FUSION,NEW PIG LTD,5100320622,183.21
United Kingdom Atomic Energy Authority,United Kingdom Atomic Energy Authority,27/04/2015,PLANT & EQUIPMENT,FUSION,NEW PIG LTD,5100320724,759.40
United Kingdom Atomic Energy Authority,United Kingdom Atomic Energy Authority,13/05/2015,MATERIALS & SPARES,FUSION,NEWBURY ELECTRONICS,5100320593,107.71
United Kingdom Atomic Energy Authority,United Kingdom Atomic Energy Authority,13/05/2015,MATERIALS & SPARES,FUSION,NEWBURY ELECTRONICS,5100320591,168.98
United Kingdom Atomic Energy Authority,United Kingdom Atomic Energy Authority,13/05/2015,MATERIALS & SPARES,FUSION,NEWBURY ELECTRONICS,5100320628,224.08
United Kingdom Atomic Energy Authority,United Kingdom Atomic Energy Authority,13/05/2015,MATERIALS & SPARES,FUSION,NEWBURY ELECTRONICS,5100321332,241.50
United Kingdom Atomic Energy Authority,United Kingdom Atomic Energy Authority,20/05/2015,MATERIALS & SPARES,FUSION,NEWBURY ELECTRONICS,5100321688,513.00
United Kingdom Atomic Energy Authority,United Kingdom Atomic Energy Authority,20/05/2015,MATERIALS & SPARES,FUSION,NEWBURY ELECTRONICS,5100321686,600.69
United Kingdom Atomic Energy Authority,United Kingdom Atomic Energy Authority,06/05/2015,MATERIALS & SPARES,FUSION,NEWBURY ELECTRONICS,5100320627,612.83
United Kingdom Atomic Energy Authority,United Kingdom Atomic Energy Authority,06/05/2015,MATERIALS & SPARES,FUSION,NEWBURY ELECTRONICS,5100320979,722.85
United Kingdom Atomic Energy Authority,United Kingdom Atomic Energy Authority,06/05/2015,MATERIALS & SPARES,FUSION,NEWBURY ELECTRONICS,5100320977,"2,834.40"
United Kingdom Atomic Energy Authority,United Kingdom Atomic Energy Authority,29/04/2015,PLANT & EQUIPMENT,FUSION,NOR-CAL UK LTD,5100320219,"2,852.25"
United Kingdom Atomic Energy Authority,United Kingdom Atomic Energy Authority,11/05/2015,PROFESSIONAL SERVICES,FUSION,NUCLEAR MANAGEMENT CONSULTANCE LTD,5100321314,840.00
United Kingdom Atomic Energy Authority,United Kingdom Atomic Energy Authority,18/05/2015,HEALTH PHYSICS,SUPPORT SERVICES,NUVIA LIMITED,5100321773,"1,033.83"
United Kingdom Atomic Energy Authority,United Kingdom Atomic Energy Authority,06/05/2015,HEALTH PHYSICS,SUPPORT SERVICES,NUVIA LIMITED,5100320789,"5,815.30"
United Kingdom Atomic Energy Authority,United Kingdom Atomic Energy Authority,06/05/2015,HEALTH PHYSICS,FUSION,NUVIA LIMITED,5100320880,"24,883.92"
United Kingdom Atomic Energy Authority,United Kingdom Atomic Energy Authority,20/05/2015,HEALTH PHYSICS,FUSION,NUVIA LIMITED,5100321776,"28,183.75"
United Kingdom Atomic Energy Authority,United Kingdom Atomic Energy Authority,20/05/2015,MATERIALS & SPARES,FUSION,NW Keys Ltd,5100321849,24.74
United Kingdom Atomic Energy Authority,United Kingdom Atomic Energy Authority,19/05/2015,CLEANING,FUSION,OCS CLEANING & SUPPORT SERVICES,5100321930,"-1,495.50"
United Kingdom Atomic Energy Authority,United Kingdom Atomic Energy Authority,19/05/2015,CLEANING,PROPERTY,OCS CLEANING & SUPPORT SERVICES,5100321931,"-1,395.80"
United Kingdom Atomic Energy Authority,United Kingdom Atomic Energy Authority,20/05/2015,CLEANING,FUSION,OCS CLEANING & SUPPORT SERVICES,5100321809,14.86
United Kingdom Atomic Energy Authority,United Kingdom Atomic Energy Authority,18/05/2015,CLEANING,PROPERTY,OCS CLEANING & SUPPORT SERVICES,5100321783,"1,395.80"
United Kingdom Atomic Energy Authority,United Kingdom Atomic Energy Authority,19/05/2015,CLEANING,PROPERTY,OCS CLEANING & SUPPORT SERVICES,5100321933,"1,395.80"
United Kingdom Atomic Energy Authority,United Kingdom Atomic Energy Authority,18/05/2015,CLEANING,FUSION,OCS CLEANING & SUPPORT SERVICES,5100321802,"1,495.50"
United Kingdom Atomic Energy Authority,United Kingdom Atomic Energy Authority,19/05/2015,CLEANING,FUSION,OCS CLEANING & SUPPORT SERVICES,5100321932,"1,495.50"
United Kingdom Atomic Energy Authority,United Kingdom Atomic Energy Authority,11/05/2015,CLEANING,PROPERTY,OCS CLEANING & SUPPORT SERVICES,5100321170,"1,535.38"
United Kingdom Atomic Energy Authority,United Kingdom Atomic Energy Authority,11/05/2015,CLEANING,FUSION,OCS CLEANING & SUPPORT SERVICES,5100321171,"1,645.05"
United Kingdom Atomic Energy Authority,United Kingdom Atomic Energy Authority,11/05/2015,CLEANING,FUSION,OCS CLEANING & SUPPORT SERVICES,5100321186,"1,645.05"
United Kingdom Atomic Energy Authority,United Kingdom Atomic Energy Authority,11/05/2015,CLEANING,PROPERTY,OCS CLEANING & SUPPORT SERVICES,5100321184,"2,287.14"
United Kingdom Atomic Energy Authority,United Kingdom Atomic Energy Authority,11/05/2015,CLEANING,PROPERTY,OCS CLEANING & SUPPORT SERVICES,5100321181,"5,843.54"
United Kingdom Atomic Energy Authority,United Kingdom Atomic Energy Authority,27/04/2015,CLEANING,PROPERTY,OCS CLEANING & SUPPORT SERVICES,5100320629,"28,521.78"
United Kingdom Atomic Energy Authority,United Kingdom Atomic Energy Authority,18/05/2015,MATERIALS & SPARES,FUSION,OERLIKON LEYBOLD VACUUM UK LTD,5100321665,50.82
United Kingdom Atomic Energy Authority,United Kingdom Atomic Energy Authority,11/05/2015,MATERIALS & SPARES,FUSION,OERLIKON LEYBOLD VACUUM UK LTD,5100321298,611.22
United Kingdom Atomic Energy Authority,United Kingdom Atomic Energy Authority,06/05/2015,MATERIALS & SPARES,FUSION,OERLIKON LEYBOLD VACUUM UK LTD,5100320946,865.58
United Kingdom Atomic Energy Authority,United Kingdom Atomic Energy Authority,18/05/2015,MATERIALS & SPARES,FUSION,OERLIKON LEYBOLD VACUUM UK LTD,5100321664,"3,462.32"
United Kingdom Atomic Energy Authority,United Kingdom Atomic Energy Authority,20/05/2015,PROFESSIONAL SERVICES,FUSION,OHES ENNVIRONMENTAL LTD,5100321884,"2,088.33"
United Kingdom Atomic Energy Authority,United Kingdom Atomic Energy Authority,27/04/2015,PROFESSIONAL SERVICES,FUSION,OHES ENNVIRONMENTAL LTD,5100320616,"3,997.91"
United Kingdom Atomic Energy Authority,United Kingdom Atomic Energy Authority,06/05/2015,PROFESSIONAL SERVICES,FUSION,ONE FIX RECRUITMENT,5100321076,275.00
United Kingdom Atomic Energy Authority,United Kingdom Atomic Energy Authority,13/05/2015,PROFESSIONAL SERVICES,FUSION,ONE FIX RECRUITMENT,5100321382,375.00
United Kingdom Atomic Energy Authority,United Kingdom Atomic Energy Authority,29/04/2015,PROFESSIONAL SERVICES,SUPPORT SERVICES,ONE FIX RECRUITMENT,5100320788,455.00
United Kingdom Atomic Energy Authority,United Kingdom Atomic Energy Authority,06/05/2015,PROFESSIONAL SERVICES,FUSION,ONE FIX RECRUITMENT,5100320363,455.00
United Kingdom Atomic Energy Authority,United Kingdom Atomic Energy Authority,06/05/2015,PROFESSIONAL SERVICES,FUSION,ONE FIX RECRUITMENT,5100321071,455.00
United Kingdom Atomic Energy Authority,United Kingdom Atomic Energy Authority,27/04/2015,MATERIALS & SPARES,FUSION,OXFORD BOLTS & BEARINGS,5100320870,-116.30
United Kingdom Atomic Energy Authority,United Kingdom Atomic Energy Authority,11/05/2015,MATERIALS & SPARES,FUSION,OXFORD BOLTS & BEARINGS,5100321285,19.20
United Kingdom Atomic Energy Authority,United Kingdom Atomic Energy Authority,18/05/2015,MATERIALS & SPARES,FUSION,OXFORD BOLTS & BEARINGS,5100321482,23.70
United Kingdom Atomic Energy Authority,United Kingdom Atomic Energy Authority,27/04/2015,MATERIALS & SPARES,FUSION,OXFORD BOLTS & BEARINGS,5100320722,49.66
United Kingdom Atomic Energy Authority,United Kingdom Atomic Energy Authority,06/05/2015,MATERIALS & SPARES,FUSION,OXFORD BOLTS & BEARINGS,5100320868,50.60
United Kingdom Atomic Energy Authority,United Kingdom Atomic Energy Authority,18/05/2015,MATERIALS & SPARES,FUSION,OXFORD BOLTS & BEARINGS,5100321712,57.60
United Kingdom Atomic Energy Authority,United Kingdom Atomic Energy Authority,27/04/2015,MATERIALS & SPARES,FUSION,OXFORD BOLTS & BEARINGS,5100320685,60.40
United Kingdom Atomic Energy Authority,United Kingdom Atomic Energy Authority,27/04/2015,MATERIALS & SPARES,FUSION,OXFORD BOLTS & BEARINGS,5100320720,67.50
United Kingdom Atomic Energy Authority,United Kingdom Atomic Energy Authority,18/05/2015,MATERIALS & SPARES,FUSION,OXFORD BOLTS & BEARINGS,5100321714,91.36
United Kingdom Atomic Energy Authority,United Kingdom Atomic Energy Authority,18/05/2015,MATERIALS & SPARES,FUSION,OXFORD BOLTS & BEARINGS,5100321481,95.00
United Kingdom Atomic Energy Authority,United Kingdom Atomic Energy Authority,27/04/2015,MATERIALS & SPARES,FUSION,OXFORD BOLTS & BEARINGS,5100320690,106.50
United Kingdom Atomic Energy Authority,United Kingdom Atomic Energy Authority,27/04/2015,MATERIALS & SPARES,FUSION,OXFORD BOLTS & BEARINGS,5100320871,116.30
United Kingdom Atomic Energy Authority,United Kingdom Atomic Energy Authority,27/04/2015,MATERIALS & SPARES,FUSION,OXFORD BOLTS & BEARINGS,5100320696,123.50
United Kingdom Atomic Energy Authority,United Kingdom Atomic Energy Authority,11/05/2015,MATERIALS & SPARES,FUSION,OXFORD BOLTS & BEARINGS,5100321337,162.00
United Kingdom Atomic Energy Authority,United Kingdom Atomic Energy Authority,27/04/2015,MATERIALS & SPARES,FUSION,OXFORD BOLTS & BEARINGS,5100320752,195.00
United Kingdom Atomic Energy Authority,United Kingdom Atomic Energy Authority,11/05/2015,MATERIALS & SPARES,FUSION,OXFORD BOLTS & BEARINGS,5100321200,200.95
United Kingdom Atomic Energy Authority,United Kingdom Atomic Energy Authority,11/05/2015,MATERIALS & SPARES,FUSION,OXFORD BOLTS & BEARINGS,5100321296,204.61
United Kingdom Atomic Energy Authority,United Kingdom Atomic Energy Authority,11/05/2015,MATERIALS & SPARES,FUSION,OXFORD BOLTS & BEARINGS,5100321201,214.99
United Kingdom Atomic Energy Authority,United Kingdom Atomic Energy Authority,11/05/2015,MATERIALS & SPARES,FUSION,OXFORD BOLTS & BEARINGS,5100321293,236.70
United Kingdom Atomic Energy Authority,United Kingdom Atomic Energy Authority,27/04/2015,MATERIALS & SPARES,FUSION,OXFORD BOLTS & BEARINGS,5100320694,384.50
United Kingdom Atomic Energy Authority,United Kingdom Atomic Energy Authority,11/05/2015,MATERIALS & SPARES,FUSION,OXFORD BOLTS & BEARINGS,5100321287,589.20
United Kingdom Atomic Energy Authority,United Kingdom Atomic Energy Authority,27/04/2015,MATERIALS & SPARES,FUSION,OXFORD BOLTS & BEARINGS,5100320686,700.77
United Kingdom Atomic Energy Authority,United Kingdom Atomic Energy Authority,11/05/2015,MATERIALS & SPARES,FUSION,OXFORD BOLTS & BEARINGS,5100321197,793.25
United Kingdom Atomic Energy Authority,United Kingdom Atomic Energy Authority,18/05/2015,MATERIALS & SPARES,FUSION,OXFORD BOLTS & BEARINGS,5100321336,"1,719.38"
United Kingdom Atomic Energy Authority,United Kingdom Atomic Energy Authority,29/04/2015,PLANT & EQUIPMENT,FUSION,PATRICO LTD,5100320582,"4,891.20"
United Kingdom Atomic Energy Authority,United Kingdom Atomic Energy Authority,06/05/2015,MATERIALS & SPARES,FUSION,PDS (CNC) Engineering  LTD,5100320869,-428.00
United Kingdom Atomic Energy Authority,United Kingdom Atomic Energy Authority,27/04/2015,MATERIALS & SPARES,FUSION,PDS (CNC) Engineering  LTD,5100320537,58.24
United Kingdom Atomic Energy Authority,United Kingdom Atomic Energy Authority,27/04/2015,MATERIALS & SPARES,FUSION,PDS (CNC) Engineering  LTD,5100320530,90.00
United Kingdom Atomic Energy Authority,United Kingdom Atomic Energy Authority,27/04/2015,MATERIALS & SPARES,FUSION,PDS (CNC) Engineering  LTD,5100320525,92.00
United Kingdom Atomic Energy Authority,United Kingdom Atomic Energy Authority,06/05/2015,MATERIALS & SPARES,FUSION,PDS (CNC) Engineering  LTD,5100320879,129.20
United Kingdom Atomic Energy Authority,United Kingdom Atomic Energy Authority,27/04/2015,MATERIALS & SPARES,FUSION,PDS (CNC) Engineering  LTD,5100320528,228.72
United Kingdom Atomic Energy Authority,United Kingdom Atomic Energy Authority,06/05/2015,MATERIALS & SPARES,FUSION,PDS (CNC) Engineering  LTD,5100321056,233.40
United Kingdom Atomic Energy Authority,United Kingdom Atomic Energy Authority,27/04/2015,MATERIALS & SPARES,FUSION,PDS (CNC) Engineering  LTD,5100320543,277.32
United Kingdom Atomic Energy Authority,United Kingdom Atomic Energy Authority,29/04/2015,MATERIALS & SPARES,FUSION,PDS (CNC) Engineering  LTD,5100320539,298.80
United Kingdom Atomic Energy Authority,United Kingdom Atomic Energy Authority,06/05/2015,MATERIALS & SPARES,FUSION,PDS (CNC) Engineering  LTD,5100320867,404.56
United Kingdom Atomic Energy Authority,United Kingdom Atomic Energy Authority,06/05/2015,MATERIALS & SPARES,FUSION,PDS (CNC) Engineering  LTD,5100320866,428.00
United Kingdom Atomic Energy Authority,United Kingdom Atomic Energy Authority,27/04/2015,MATERIALS & SPARES,FUSION,PDS (CNC) Engineering  LTD,5100320527,462.80
United Kingdom Atomic Energy Authority,United Kingdom Atomic Energy Authority,06/05/2015,MATERIALS & SPARES,FUSION,PDS (CNC) Engineering  LTD,5100320877,582.00
United Kingdom Atomic Energy Authority,United Kingdom Atomic Energy Authority,06/05/2015,MATERIALS & SPARES,FUSION,PDS (CNC) Engineering  LTD,5100321055,690.79
United Kingdom Atomic Energy Authority,United Kingdom Atomic Energy Authority,27/04/2015,MATERIALS & SPARES,FUSION,PDS (CNC) Engineering  LTD,5100320523,971.74
United Kingdom Atomic Energy Authority,United Kingdom Atomic Energy Authority,06/05/2015,HIRED STAFF,FUSION,PELICAN SOFTWARE LTD,5100320565,"2,447.01"
United Kingdom Atomic Energy Authority,United Kingdom Atomic Energy Authority,06/05/2015,HIRED STAFF,FUSION,PELICAN SOFTWARE LTD,5100320566,"4,258.13"
United Kingdom Atomic Energy Authority,United Kingdom Atomic Energy Authority,20/05/2015,HIRED STAFF,FUSION,PELICAN SOFTWARE LTD,5100321831,"6,588.54"
United Kingdom Atomic Energy Authority,United Kingdom Atomic Energy Authority,20/05/2015,PROFESSIONAL SERVICES,FUSION,PERKIN ELMER LAS UK LTD,5100321868,"2,199.17"
United Kingdom Atomic Energy Authority,United Kingdom Atomic Energy Authority,29/04/2015,PROFESSIONAL SERVICES,FUSION,PERKIN ELMER LAS UK LTD,5100320793,"3,252.00"
United Kingdom Atomic Energy Authority,United Kingdom Atomic Energy Authority,01/05/2015,MATERIALS & SPARES,FUSION,Permali Gloucester Ltd,1900060879, 450.00
United Kingdom Atomic Energy Authority,United Kingdom Atomic Energy Authority,27/04/2015,TRAINING COURSE FEES,SUPPORT SERVICES,PETER METCALF MANAGEMENT COACH,5100319985,550.00
United Kingdom Atomic Energy Authority,United Kingdom Atomic Energy Authority,06/05/2015,PLANT & EQUIPMENT,FUSION,PFEIFFER VACUUM UK,5100321104,82.75
United Kingdom Atomic Energy Authority,United Kingdom Atomic Energy Authority,27/04/2015,PLANT & EQUIPMENT,FUSION,PFEIFFER VACUUM UK,5100320795,256.37
United Kingdom Atomic Energy Authority,United Kingdom Atomic Energy Authority,27/04/2015,PLANT & EQUIPMENT,FUSION,PFEIFFER VACUUM UK,5100320796,306.77
United Kingdom Atomic Energy Authority,United Kingdom Atomic Energy Authority,06/05/2015,PLANT & EQUIPMENT,FUSION,PFEIFFER VACUUM UK,5100321021,"1,623.65"
United Kingdom Atomic Energy Authority,United Kingdom Atomic Energy Authority,06/05/2015,PLANT & EQUIPMENT,FUSION,PHS GROUP PLC,5100321012,37.50
United Kingdom Atomic Energy Authority,United Kingdom Atomic Energy Authority,06/05/2015,MATERIALS & SPARES,FUSION,PIPELINE PEOPLE.COM,5100321054,78.44
United Kingdom Atomic Energy Authority,United Kingdom Atomic Energy Authority,20/05/2015,MATERIALS & SPARES,FUSION,PIPELINE PEOPLE.COM,5100321864,203.35
United Kingdom Atomic Energy Authority,United Kingdom Atomic Energy Authority,27/04/2015,MATERIALS & SPARES,FUSION,PIPELINE PEOPLE.COM,5100320595,500.56
United Kingdom Atomic Energy Authority,United Kingdom Atomic Energy Authority,27/04/2015,PLANT SPARES,FUSION,PLANSEE METALS LTD,5100320740,437.48
United Kingdom Atomic Energy Authority,United Kingdom Atomic Energy Authority,29/04/2015,PLANT SPARES,FUSION,PLANSEE METALS LTD,5100320945,698.17
United Kingdom Atomic Energy Authority,United Kingdom Atomic Energy Authority,27/04/2015,PLANT SPARES,FUSION,PLANSEE METALS LTD,5100320739,"1,888.28"
United Kingdom Atomic Energy Authority,United Kingdom Atomic Energy Authority,27/04/2015,MATERIALS & SPARES,FUSION,PMD (UK) LTD,5100320734,59.90
United Kingdom Atomic Energy Authority,United Kingdom Atomic Energy Authority,13/05/2015,IT SOFTWARE,SUPPORT SERVICES,PORTCULLIS COMPUTER SECURITY,5100321098,"4,500.00"
United Kingdom Atomic Energy Authority,United Kingdom Atomic Energy Authority,27/04/2015,F&F,SUPPORT SERVICES,POSTURITE UK LTD,5100320678,57.45
United Kingdom Atomic Energy Authority,United Kingdom Atomic Energy Authority,01/05/2015,MATERIALS & SPARES,FUSION,Powerline Electric Motors ,1900060878," 1,550.00"
United Kingdom Atomic Energy Authority,United Kingdom Atomic Energy Authority,13/05/2015,STATIONERY,FUSION,PREMIER PAPER GROUP LTD,5100321345,-10.00
United Kingdom Atomic Energy Authority,United Kingdom Atomic Energy Authority,13/05/2015,STATIONERY,FUSION,PREMIER PAPER GROUP LTD,5100320706,58.45
United Kingdom Atomic Energy Authority,United Kingdom Atomic Energy Authority,11/05/2015,STATIONERY,FUSION,PREMIER PAPER GROUP LTD,5100321222,311.72
United Kingdom Atomic Energy Authority,United Kingdom Atomic Energy Authority,11/05/2015,STATIONERY,FUSION,PREMIER PAPER GROUP LTD,5100321356,"2,453.00"
United Kingdom Atomic Energy Authority,United Kingdom Atomic Energy Authority,06/05/2015,PLANT & EQUIPMENT,FUSION,PRINCETON INSTRUMENTS LTD,5100320878,205.00
United Kingdom Atomic Energy Authority,United Kingdom Atomic Energy Authority,20/05/2015,VISITOR EXPENSES,FUSION,VISITOR EXPENSES,1900060909," 4,888.05"
United Kingdom Atomic Energy Authority,United Kingdom Atomic Energy Authority,29/04/2015,MATERIALS & SPARES,FUSION,Prismtech (PT FRANCE),5100320573,"4,942.00"
United Kingdom Atomic Energy Authority,United Kingdom Atomic Energy Authority,13/05/2015,IT EQUIPMENT NON CAPITAL,FUSION,Probrand Limited,5100321559,"2,606.00"
United Kingdom Atomic Energy Authority,United Kingdom Atomic Energy Authority,13/05/2015,IT EQUIPMENT NON CAPITAL,FUSION,Probrand Limited,5100321557,"7,591.92"
United Kingdom Atomic Energy Authority,United Kingdom Atomic Energy Authority,13/05/2015,IT EQUIPMENT NON CAPITAL,FUSION,Probrand Limited,5100321556,"7,797.96"
United Kingdom Atomic Energy Authority,United Kingdom Atomic Energy Authority,27/04/2015,CONSUMABLES,FUSION,PROFESSIONAL PROTECTION SYSTEMS,5100320746,177.50
United Kingdom Atomic Energy Authority,United Kingdom Atomic Energy Authority,06/05/2015,PLANT & EQUIPMENT,FUSION,PROFESSIONALFABRICATION SERVICES LTD,5100321101,386.65
United Kingdom Atomic Energy Authority,United Kingdom Atomic Energy Authority,06/05/2015,PLANT & EQUIPMENT,FUSION,PROFESSIONALFABRICATION SERVICES LTD,5100321100,550.00
United Kingdom Atomic Energy Authority,United Kingdom Atomic Energy Authority,18/05/2015,PLANT & EQUIPMENT,FUSION,PROFESSIONALFABRICATION SERVICES LTD,5100321765,800.00
United Kingdom Atomic Energy Authority,United Kingdom Atomic Energy Authority,20/05/2015,PLANT & EQUIPMENT,FUSION,PROFESSIONALFABRICATION SERVICES LTD,5100321766,"2,620.00"
United Kingdom Atomic Energy Authority,United Kingdom Atomic Energy Authority,11/05/2015,PLANT & EQUIPMENT,FUSION,PROFESSIONALFABRICATION SERVICES LTD,5100321099,"2,830.00"
United Kingdom Atomic Energy Authority,United Kingdom Atomic Energy Authority,18/05/2015,PLANT & EQUIPMENT,FUSION,PROFESSIONALFABRICATION SERVICES LTD,5100321767,"7,900.00"
United Kingdom Atomic Energy Authority,United Kingdom Atomic Energy Authority,18/05/2015,PLANT & EQUIPMENT,FUSION,PROFESSIONALFABRICATION SERVICES LTD,5100321768,"9,900.00"
United Kingdom Atomic Energy Authority,United Kingdom Atomic Energy Authority,11/05/2015,MATERIALS & SPARES,FUSION,Promega UK,5100321196,94.00
United Kingdom Atomic Energy Authority,United Kingdom Atomic Energy Authority,18/05/2015,MATERIALS & SPARES,FUSION,Promega UK,5100321706,634.00
United Kingdom Atomic Energy Authority,United Kingdom Atomic Energy Authority,27/04/2015,PLANT & EQUIPMENT,FUSION,PULSE POWER AND MEASUREMENT LTD,5100320684,685.00
United Kingdom Atomic Energy Authority,United Kingdom Atomic Energy Authority,03/05/2015,IT EQUIPMENT: NON CAPITAL,FUSION,PURCHASE CARDS,100767137,528.00
United Kingdom Atomic Energy Authority,United Kingdom Atomic Energy Authority,03/05/2015,PROFESSIONAL SERVICES,SUPPORT SERVICES,PURCHASE CARDS,100767141,588.00
United Kingdom Atomic Energy Authority,United Kingdom Atomic Energy Authority,03/05/2015,MATERIALS & SPARES,FUSION,PURCHASE CARDS,100767128,603.00
